Workbook

Sheet Main
B10: 2019-04-11
B12: Sheet No. | C12: Template Name | D12: Summary
B13: 1 | C13: Future Intra | D13: For Intraday trading in F&O segment
B14: 2 | C14: Cash Intra | D14: For Intraday trading in cash market segment
B15: 3 | C15: Mid-cap Intra | D15: For Intraday trading in Mid-cap stocks
B16: 4 | C16: Bulk Deals | D16: Reveals Bulk Deals carried on NSE & BSE
B17: 5 | C17: Call Tracker

Sheet Future Intra
M5: Back to Main Page
A6: FOR INTRA DAY TRADING | L6: =Main!B10 -> 2019-04-11
A9: Sr.no | B9: Sector | C9: Scrip | D9: CLOSE RATE | E9: Pivot Point | F9: Supports | I9: Resistances
B10: Sector | D10: Point | E10: Point | F10: S1 | G10: S2 | H10: S3 | I10: R1 | J10: R2 | K10: R3 | L10: HIGH | M10: LOW | N10: OI | O10: % Change in OI
A11: 1 | B11: Index | C11: BANKNIFTY | D11: 29979.25 | E11: 30077.83 | F11: 29820.67 | G11: 29662.08 | H11: 29404.92 | I11: 30236.42 | J11: 30493.58 | K11: 30652.17 | L11: 30335 | M11: 29919.25 | N11: 2073500 | O11: -0.82%
A12: 2 | B12: Index | C12: NIFTY | D12: 11652.90 | E12: 11679.82 | F12: 11615.63 | G12: 11578.37 | H12: 11514.18 | I12: 11717.08 | J12: 11781.27 | K12: 11818.53 | L12: 11744 | M12: 11642.55 | N12: 17250675 | O12: -0.38%
A13: 3 | B13: Index | C13: NIFTYIT | D13: 16094.00 | E13: 16139.00 | F13: 16030.00 | G13: 15966.00 | H13: 15857.00 | I13: 16203.00 | J13: 16312.00 | K13: 16376.00 | L13: 16248 | M13: 16075 | N13: 27250 | O13: 11.91%
A14: 4 | B14: Cement | C14: ACC | D14: 1644.95 | E14: 1650.93 | F14: 1634.77 | G14: 1624.58 | H14: 1608.42 | I14: 1661.12 | J14: 1677.28 | K14: 1687.47 | L14: 1667.1 | M14: 1640.75 | N14: 2477600 | O14: 0.90%
A15: 5 | B15: Others | C15: ADANIENT | D15: 143.80 | E15: 144.90 | F15: 141.65 | G15: 139.50 | H15: 136.25 | I15: 147.05 | J15: 150.30 | K15: 152.45 | L15: 148.15 | M15: 142.75 | N15: 40716000 | O15: 0.44%
A16: 6 | B16: Others | C16: ADANIPORTS | D16: 384.90 | E16: 383.15 | F16: 379.40 | G16: 373.90 | H16: 370.15 | I16: 388.65 | J16: 392.40 | K16: 397.90 | L16: 386.9 | M16: 377.65 | N16: 20012500 | O16: -0.98%
A17: 7 | B17: Power | C17: ADANIPOWER | D17: 49.40 | E17: 49.75 | F17: 48.75 | G17: 48.10 | H17: 47.10 | I17: 50.40 | J17: 51.40 | K17: 52.05 | L17: 50.75 | M17: 49.1 | N17: 153840000 | O17: -0.14%
A18: 8 | B18: Pharma | C18: AJANTPHARM | D18: 1018.55 | E18: 1019.97 | F18: 1012.53 | G18: 1006.52 | H18: 999.08 | I18: 1025.98 | J18: 1033.42 | K18: 1039.43 | L18: 1027.4 | M18: 1013.95 | N18: 803500 | O18: 3.81%
A19: 9 | B19: Banking | C19: ALBK | D19: 53.35 | E19: 53.33 | F19: 52.67 | G19: 51.98 | H19: 51.32 | I19: 54.02 | J19: 54.68 | K19: 55.37 | L19: 54 | M19: 52.65 | N19: 23816000 | O19: -7.24%
A20: 10 | B20: Automobile | C20: AMARAJABAT | D20: 688.80 | E20: 683.27 | F20: 673.98 | G20: 659.17 | H20: 649.88 | I20: 698.08 | J20: 707.37 | K20: 722.18 | L20: 692.55 | M20: 668.45 | N20: 1992900 | O20: -3.56%
A21: 11 | B21: Cement | C21: AMBUJACEM | D21: 224.95 | E21: 225.85 | F21: 223.10 | G21: 221.25 | H21: 218.50 | I21: 227.70 | J21: 230.45 | K21: 232.30 | L21: 228.6 | M21: 224 | N21: 20992500 | O21: -2.00%
A22: 12 | B22: Others | C22: APOLLOHOSP | D22: 1254.20 | E22: 1260.43 | F22: 1242.27 | G22: 1230.33 | H22: 1212.17 | I22: 1272.37 | J22: 1290.53 | K22: 1302.47 | L22: 1278.6 | M22: 1248.5 | N22: 1292500 | O22: -0.58%
A23: 13 | B23: Automobile | C23: APOLLOTYRE | D23: 217.15 | E23: 217.70 | F23: 214.70 | G23: 212.25 | H23: 209.25 | I23: 220.15 | J23: 223.15 | K23: 225.60 | L23: 220.7 | M23: 215.25 | N23: 10194000 | O23: -2.05%
A24: 14 | B24: Textile | C24: ARVIND | D24: 88.70 | E24: 89.40 | F24: 87.45 | G24: 86.20 | H24: 84.25 | I24: 90.65 | J24: 92.60 | K24: 93.85 | L24: 91.35 | M24: 88.15 | N24: 4100000 | O24: -1.35%
A25: 15 | B25: Automobile | C25: ASHOKLEY | D25: 91.95 | E25: 91.95 | F25: 90.90 | G25: 89.85 | H25: 88.80 | I25: 93.00 | J25: 94.05 | K25: 95.10 | L25: 93 | M25: 90.9 | N25: 67188000 | O25: -1.41%
A26: 16 | B26: FMCG | C26: ASIANPAINT | D26: 1421.20 | E26: 1431.95 | F26: 1407.00 | G26: 1392.80 | H26: 1367.85 | I26: 1446.15 | J26: 1471.10 | K26: 1485.30 | L26: 1456.9 | M26: 1417.75 | N26: 5548200 | O26: 5.27%
A27: 17 | B27: Pharma | C27: AUROPHARMA | D27: 796.10 | E27: 796.20 | F27: 784.90 | G27: 773.70 | H27: 762.40 | I27: 807.40 | J27: 818.70 | K27: 829.90 | L27: 807.5 | M27: 785 | N27: 15688000 | O27: 0.89%
A28: 18 | B28: Banking | C28: AXISBANK | D28: 766.45 | E28: 767.75 | F28: 762.05 | G28: 757.65 | H28: 751.95 | I28: 772.15 | J28: 777.85 | K28: 782.25 | L28: 773.45 | M28: 763.35 | N28: 31954800 | O28: -0.20%
A29: 19 | B29: Automobile | C29: BAJAJ-AUTO | D29: 2942.35 | E29: 2934.47 | F29: 2917.93 | G29: 2893.52 | H29: 2876.98 | I29: 2958.88 | J29: 2975.42 | K29: 2999.83 | L29: 2951 | M29: 2910.05 | N29: 3624500 | O29: 1.47%
A30: 20 | B30: Others | C30: BAJAJFINSV | D30: 7457.30 | E30: 7440.20 | F30: 7411.30 | G30: 7365.30 | H30: 7336.40 | I30: 7486.20 | J30: 7515.10 | K30: 7561.10 | L30: 7469.1 | M30: 7394.2 | N30: 679875 | O30: 0.22%
A31: 21 | B31: Finance | C31: BAJFINANCE | D31: 3021.30 | E31: 3026.68 | F31: 3000.17 | G31: 2979.03 | H31: 2952.52 | I31: 3047.82 | J31: 3074.33 | K31: 3095.47 | L31: 3053.2 | M31: 3005.55 | N31: 5250500 | O31: 0.07%
A32: 22 | B32: Others | C32: BALKRISIND | D32: 971.30 | E32: 976.10 | F32: 963.35 | G32: 955.40 | H32: 942.65 | I32: 984.05 | J32: 996.80 | K32: 1004.75 | L32: 988.85 | M32: 968.15 | N32: 1916000 | O32: -3.39%
A33: 23 | B33: Banking | C33: BANKBARODA | D33: 130.35 | E33: 131.32 | F33: 128.93 | G33: 127.52 | H33: 125.13 | I33: 132.73 | J33: 135.12 | K33: 136.53 | L33: 133.7 | M33: 129.9 | N33: 48396000 | O33: 2.16%
A34: 24 | B34: Banking | C34: BANKINDIA | D34: 101.15 | E34: 102.05 | F34: 99.90 | G34: 98.65 | H34: 96.50 | I34: 103.30 | J34: 105.45 | K34: 106.70 | L34: 104.2 | M34: 100.8 | N34: 24018000 | O34: 2.22%
A35: 25 | B35: FMCG | C35: BATAINDIA | D35: 1399.65 | E35: 1402.27 | F35: 1394.13 | G35: 1388.62 | H35: 1380.48 | I35: 1407.78 | J35: 1415.92 | K35: 1421.43 | L35: 1410.4 | M35: 1396.75 | N35: 1888150 | O35: -3.92%
A36: 26 | B36: Capital_Goods | C36: BEL | D36: 96.15 | E36: 96.33 | F36: 95.22 | G36: 94.28 | H36: 93.17 | I36: 97.27 | J36: 98.38 | K36: 99.32 | L36: 97.45 | M36: 95.4 | N36: 33702000 | O36: 0.59%
A37: 27 | B37: Infrastructure | C37: BEML | D37: 977.65 | E37: 977.87 | F37: 967.78 | G37: 957.92 | H37: 947.83 | I37: 987.73 | J37: 997.82 | K37: 1007.68 | L37: 987.95 | M37: 968 | N37: 1432900 | O37: -3.35%
A38: 28 | B38: Others | C38: BERGEPAINT | D38: 322.85 | E38: 323.87 | F38: 319.48 | G38: 316.12 | H38: 311.73 | I38: 327.23 | J38: 331.62 | K38: 334.98 | L38: 328.25 | M38: 320.5 | N38: 3366000 | O38: 3.38%
A39: 29 | B39: Finance | C39: BHARATFIN | D39: 1110.85 | E39: 1114.55 | F39: 1102.70 | G39: 1094.55 | H39: 1082.70 | I39: 1122.70 | J39: 1134.55 | K39: 1142.70 | L39: 1126.4 | M39: 1106.4 | N39: 4248500 | O39: 0.11%
A40: 30 | B40: Automobile | C40: BHARATFORG | D40: 501.05 | E40: 503.88 | F40: 496.82 | G40: 492.58 | H40: 485.52 | I40: 508.12 | J40: 515.18 | K40: 519.42 | L40: 510.95 | M40: 499.65 | N40: 9280800 | O40: 0.12%
A41: 31 | B41: Telecom | C41: BHARTIARTL | D41: 341.20 | E41: 345.17 | F41: 334.83 | G41: 328.47 | H41: 318.13 | I41: 351.53 | J41: 361.87 | K41: 368.23 | L41: 355.5 | M41: 338.8 | N41: 32529500 | O41: -7.44%
A42: 32 | B42: Capital_Goods | C42: BHEL | D42: 72.60 | E42: 72.92 | F42: 72.03 | G42: 71.47 | H42: 70.58 | I42: 73.48 | J42: 74.37 | K42: 74.93 | L42: 73.8 | M42: 72.35 | N42: 66337500 | O42: -1.42%
A43: 33 | B43: Pharma | C43: BIOCON | D43: 632.95 | E43: 630.82 | F43: 619.83 | G43: 606.72 | H43: 595.73 | I43: 643.93 | J43: 654.92 | K43: 668.03 | L43: 641.8 | M43: 617.7 | N43: 5481900 | O43: -3.10%
A44: 34 | B44: Automobile | C44: BOSCHLTD | D44: 17880.50 | E44: 17889.52 | F44: 17826.03 | G44: 17771.57 | H44: 17708.08 | I44: 17943.98 | J44: 18007.47 | K44: 18061.93 | L44: 17953 | M44: 17835.05 | N44: 153150 | O44: 0.53%
A45: 35 | B45: Oil_Gas | C45: BPCL | D45: 359.35 | E45: 358.98 | F45: 355.97 | G45: 352.58 | H45: 349.57 | I45: 362.37 | J45: 365.38 | K45: 368.77 | L45: 362 | M45: 355.6 | N45: 11145600 | O45: -1.54%
A46: 36 | B46: FMCG | C46: BRITANNIA | D46: 2977.90 | E46: 2988.63 | F46: 2961.27 | G46: 2944.63 | H46: 2917.27 | I46: 3005.27 | J46: 3032.63 | K46: 3049.27 | L46: 3016 | M46: 2972 | N46: 2046000 | O46: 1.34%
A47: 37 | B47: Pharma | C47: CADILAHC | D47: 346.20 | E47: 346.57 | F47: 341.63 | G47: 337.07 | H47: 332.13 | I47: 351.13 | J47: 356.07 | K47: 360.63 | L47: 351.5 | M47: 342 | N47: 11147200 | O47: 0.78%
A48: 38 | B48: Banking | C48: CANBK | D48: 282.80 | E48: 284.33 | F48: 280.17 | G48: 277.53 | H48: 273.37 | I48: 286.97 | J48: 291.13 | K48: 293.77 | L48: 288.5 | M48: 281.7 | N48: 10048000 | O48: -7.58%
A49: 39 | B49: Others | C49: CANFINHOME | D49: 349.30 | E49: 352.58 | F49: 344.32 | G49: 339.33 | H49: 331.07 | I49: 357.57 | J49: 365.83 | K49: 370.82 | L49: 360.85 | M49: 347.6 | N49: 3700800 | O49: 0.05%
A50: 40 | B50: Oil_Gas | C50: CASTROLIND | D50: 166.20 | E50: 166.88 | F50: 164.97 | G50: 163.73 | H50: 161.82 | I50: 168.12 | J50: 170.03 | K50: 171.27 | L50: 168.8 | M50: 165.65 | N50: 7208000 | O50: -2.84%
A51: 41 | B51: Automobile | C51: CEATLTD | D51: 1086.65 | E51: 1086.42 | F51: 1073.83 | G51: 1061.02 | H51: 1048.43 | I51: 1099.23 | J51: 1111.82 | K51: 1124.63 | L51: 1099 | M51: 1073.6 | N51: 1249600 | O51: 2.80%
A52: 42 | B52: Textile | C52: CENTURYTEX | D52: 902.75 | E52: 899.57 | F52: 889.78 | G52: 876.82 | H52: 867.03 | I52: 912.53 | J52: 922.32 | K52: 935.28 | L52: 909.35 | M52: 886.6 | N52: 4209000 | O52: -2.08%
A53: 43 | B53: Power | C53: CESC | D53: 727.75 | E53: 728.50 | F53: 719.75 | G53: 711.75 | H53: 703.00 | I53: 736.50 | J53: 745.25 | K53: 753.25 | L53: 737.25 | M53: 720.5 | N53: 1362350 | O53: 1.60%
A54: 44 | B54: Power | C54: CGPOWER | D54: 38.65 | E54: 38.97 | F54: 38.23 | G54: 37.82 | H54: 37.08 | I54: 39.38 | J54: 40.12 | K54: 40.53 | L54: 39.7 | M54: 38.55 | N54: 24708000 | O54: -1.67%
A55: 45 | B55: Others | C55: CHENNPETRO | D55: 254.95 | E55: 254.47 | F55: 251.58 | G55: 248.22 | H55: 245.33 | I55: 257.83 | J55: 260.72 | K55: 264.08 | L55: 257.35 | M55: 251.1 | N55: 1161000 | O55: -1.07%
A56: 46 | B56: Others | C56: CHOLAFIN | D56: 1482.25 | E56: 1489.98 | F56: 1469.52 | G56: 1456.78 | H56: 1436.32 | I56: 1502.72 | J56: 1523.18 | K56: 1535.92 | L56: 1510.45 | M56: 1477.25 | N56: 597500 | O56: 5.85%
A57: 47 | B57: Pharma | C57: CIPLA | D57: 548.75 | E57: 546.42 | F57: 537.33 | G57: 525.92 | H57: 516.83 | I57: 557.83 | J57: 566.92 | K57: 578.33 | L57: 555.5 | M57: 535 | N57: 9912000 | O57: -2.41%
A58: 48 | B58: Others | C58: COALINDIA | D58: 241.35 | E58: 241.62 | F58: 239.28 | G58: 237.22 | H58: 234.88 | I58: 243.68 | J58: 246.02 | K58: 248.08 | L58: 243.95 | M58: 239.55 | N58: 32430200 | O58: 3.08%
A59: 49 | B59: FMCG | C59: COLPAL | D59: 1223.80 | E59: 1230.32 | F59: 1212.48 | G59: 1201.17 | H59: 1183.33 | I59: 1241.63 | J59: 1259.47 | K59: 1270.78 | L59: 1248.15 | M59: 1219 | N59: 1892800 | O59: 1.96%
A60: 50 | B60: Others | C60: CONCOR | D60: 521.30 | E60: 521.87 | F60: 517.48 | G60: 513.67 | H60: 509.28 | I60: 525.68 | J60: 530.07 | K60: 533.88 | L60: 526.25 | M60: 518.05 | N60: 1556748 | O60: 3.32%
A61: 51 | B61: Capital_Goods | C61: CUMMINSIND | D61: 750.40 | E61: 745.57 | F61: 737.23 | G61: 724.07 | H61: 715.73 | I61: 758.73 | J61: 767.07 | K61: 780.23 | L61: 753.9 | M61: 732.4 | N61: 1570800 | O61: -3.69%
A62: 52 | B62: FMCG | C62: DABUR | D62: 405.10 | E62: 406.28 | F62: 401.92 | G62: 398.73 | H62: 394.37 | I62: 409.47 | J62: 413.83 | K62: 417.02 | L62: 410.65 | M62: 403.1 | N62: 13413750 | O62: 0.00%
A63: 53 | B63: Banking | C63: DCBBANK | D63: 198.50 | E63: 198.82 | F63: 197.13 | G63: 195.77 | H63: 194.08 | I63: 200.18 | J63: 201.87 | K63: 203.23 | L63: 200.5 | M63: 197.45 | N63: 6237000 | O63: -4.15%
A64: 54 | B64: Finance | C64: DHFL | D64: 168.50 | E64: 169.33 | F64: 164.42 | G64: 160.33 | H64: 155.42 | I64: 173.42 | J64: 178.33 | K64: 182.42 | L64: 174.25 | M64: 165.25 | N64: 21765000 | O64: -0.30%
A65: 55 | B65: Media | C65: DISHTV | D65: 37.70 | E65: 37.38 | F65: 36.82 | G65: 35.93 | H65: 35.37 | I65: 38.27 | J65: 38.83 | K65: 39.72 | L65: 37.95 | M65: 36.5 | N65: 62704000 | O65: 2.63%
A66: 56 | B66: Pharma | C66: DIVISLAB | D66: 1731.40 | E66: 1731.78 | F66: 1717.17 | G66: 1702.93 | H66: 1688.32 | I66: 1746.02 | J66: 1760.63 | K66: 1774.87 | L66: 1746.4 | M66: 1717.55 | N66: 2616800 | O66: -3.50%
A67: 57 | B67: Realty | C67: DLF | D67: 181.60 | E67: 184.58 | F67: 177.52 | G67: 173.43 | H67: 166.37 | I67: 188.67 | J67: 195.73 | K67: 199.82 | L67: 191.65 | M67: 180.5 | N67: 49613200 | O67: -6.21%
A68: 58 | B68: Pharma | C68: DRREDDY | D68: 2782.20 | E68: 2801.98 | F68: 2747.07 | G68: 2711.93 | H68: 2657.02 | I68: 2837.12 | J68: 2892.03 | K68: 2927.17 | L68: 2856.9 | M68: 2766.85 | N68: 3743750 | O68: 1.60%
A69: 59 | B69: Automobile | C69: EICHERMOT | D69: 21107.75 | E69: 21022.17 | F69: 20828.78 | G69: 20549.82 | H69: 20356.43 | I69: 21301.13 | J69: 21494.52 | K69: 21773.48 | L69: 21215.55 | M69: 20743.2 | N69: 400125 | O69: -1.23%
A70: 60 | B70: Infrastructure | C70: ENGINERSIN | D70: 117.20 | E70: 117.78 | F70: 115.97 | G70: 114.73 | H70: 112.92 | I70: 119.02 | J70: 120.83 | K70: 122.07 | L70: 119.6 | M70: 116.55 | N70: 10303300 | O70: 5.46%
A71: 61 | B71: Finance | C71: EQUITAS | D71: 134.70 | E71: 134.22 | F71: 132.43 | G71: 130.17 | H71: 128.38 | I71: 136.48 | J71: 138.27 | K71: 140.53 | L71: 136 | M71: 131.95 | N71: 11888000 | O71: -0.77%
A72: 62 | B72: Automobile | C72: ESCORTS | D72: 781.95 | E72: 782.35 | F72: 774.85 | G72: 767.75 | H72: 760.25 | I72: 789.45 | J72: 796.95 | K72: 804.05 | L72: 789.85 | M72: 775.25 | N72: 3016200 | O72: 1.74%
A73: 63 | B73: Automobile | C73: EXIDEIND | D73: 220.85 | E73: 220.62 | F73: 218.43 | G73: 216.02 | H73: 213.83 | I73: 223.03 | J73: 225.22 | K73: 227.63 | L73: 222.8 | M73: 218.2 | N73: 9038000 | O73: -2.63%
A74: 64 | B74: Banking | C74: FEDERALBNK | D74: 98.25 | E74: 98.63 | F74: 97.47 | G74: 96.68 | H74: 95.52 | I74: 99.42 | J74: 100.58 | K74: 101.37 | L74: 99.8 | M74: 97.85 | N74: 61096000 | O74: -2.48%
A75: 65 | B75: Oil_Gas | C75: GAIL | D75: 340.50 | E75: 342.30 | F75: 337.90 | G75: 335.30 | H75: 330.90 | I75: 344.90 | J75: 349.30 | K75: 351.90 | L75: 346.7 | M75: 339.7 | N75: 11417427 | O75: 6.65%
A76: 66 | B76: Pharma | C76: GLENMARK | D76: 653.50 | E76: 651.52 | F76: 643.63 | G76: 633.77 | H76: 625.88 | I76: 661.38 | J76: 669.27 | K76: 679.13 | L76: 659.4 | M76: 641.65 | N76: 3841000 | O76: -0.44%
A77: 67 | B77: Infrastructure | C77: GMRINFRA | D77: 18.55 | E77: 18.60 | F77: 18.25 | G77: 17.95 | H77: 17.60 | I77: 18.90 | J77: 19.25 | K77: 19.55 | L77: 18.95 | M77: 18.3 | N77: 183420000 | O77: -3.34%
A78: 68 | B78: Others | C78: GODFRYPHLP | D78: 1166.55 | E78: 1149.15 | F78: 1126.35 | G78: 1086.15 | H78: 1063.35 | I78: 1189.35 | J78: 1212.15 | K78: 1252.35 | L78: 1171.95 | M78: 1108.95 | N78: 622300 | O78: 7.89%
A79: 69 | B79: FMCG | C79: GODREJCP | D79: 668.70 | E79: 666.92 | F79: 663.93 | G79: 659.17 | H79: 656.18 | I79: 671.68 | J79: 674.67 | K79: 679.43 | L79: 669.9 | M79: 662.15 | N79: 6294600 | O79: 8.73%
A80: 70 | B80: FMCG | C80: GODREJIND | D80: 531.20 | E80: 533.60 | F80: 527.60 | G80: 524.00 | H80: 518.00 | I80: 537.20 | J80: 543.20 | K80: 546.80 | L80: 539.6 | M80: 530 | N80: 1224000 | O80: -0.61%
A81: 71 | B81: Cement | C81: GRASIM | D81: 850.90 | E81: 850.83 | F81: 844.07 | G81: 837.23 | H81: 830.47 | I81: 857.67 | J81: 864.43 | K81: 871.27 | L81: 857.6 | M81: 844 | N81: 11118000 | O81: -1.03%
A82: 72 | B82: Others | C82: GSFC | D82: 105.30 | E82: 105.25 | F82: 103.75 | G82: 102.20 | H82: 100.70 | I82: 106.80 | J82: 108.30 | K82: 109.85 | L82: 106.75 | M82: 103.7 | N82: 10654900 | O82: 0.27%
A83: 73 | B83: Others | C83: HAVELLS | D83: 761.55 | E83: 763.30 | F83: 756.80 | G83: 752.05 | H83: 745.55 | I83: 768.05 | J83: 774.55 | K83: 779.30 | L83: 769.8 | M83: 758.55 | N83: 4161000 | O83: 1.91%
A84: 74 | B84: Technology | C84: HCLTECH | D84: 1105.65 | E84: 1112.87 | F84: 1095.88 | G84: 1086.12 | H84: 1069.13 | I84: 1122.63 | J84: 1139.62 | K84: 1149.38 | L84: 1129.85 | M84: 1103.1 | N84: 8334900 | O84: -1.85%
A85: 75 | B85: Finance | C85: HDFC | D85: 2040.60 | E85: 2048.97 | F85: 2027.98 | G85: 2015.37 | H85: 1994.38 | I85: 2061.58 | J85: 2082.57 | K85: 2095.18 | L85: 2069.95 | M85: 2036.35 | N85: 25703000 | O85: 0.14%
A86: 76 | B86: Banking | C86: HDFCBANK | D86: 2255.15 | E86: 2268.73 | F86: 2238.97 | G86: 2222.78 | H86: 2193.02 | I86: 2284.92 | J86: 2314.68 | K86: 2330.87 | L86: 2298.5 | M86: 2252.55 | N86: 12742750 | O86: 31.37%
A87: 77 | B87: Automobile | C87: HEROMOTOCO | D87: 2613.00 | E87: 2618.65 | F87: 2598.35 | G87: 2583.70 | H87: 2563.40 | I87: 2633.30 | J87: 2653.60 | K87: 2668.25 | L87: 2638.95 | M87: 2604 | N87: 2743000 | O87: 1.33%
A88: 78 | B88: Technology | C88: HEXAWARE | D88: 350.20 | E88: 351.38 | F88: 347.67 | G88: 345.13 | H88: 341.42 | I88: 353.92 | J88: 357.63 | K88: 360.17 | L88: 355.1 | M88: 348.85 | N88: 2722500 | O88: 3.54%
A89: 79 | B89: Metals | C89: HINDALCO | D89: 212.65 | E89: 213.70 | F89: 209.65 | G89: 206.65 | H89: 202.60 | I89: 216.70 | J89: 220.75 | K89: 223.75 | L89: 217.75 | M89: 210.7 | N89: 33029500 | O89: 5.58%
A90: 80 | B90: Oil_Gas | C90: HINDPETRO | D90: 257.80 | E90: 258.70 | F90: 255.65 | G90: 253.50 | H90: 250.45 | I90: 260.85 | J90: 263.90 | K90: 266.05 | L90: 261.75 | M90: 256.55 | N90: 14431200 | O90: 0.60%
A91: 81 | B91: FMCG | C91: HINDUNILVR | D91: 1703.30 | E91: 1700.52 | F91: 1687.98 | G91: 1672.67 | H91: 1660.13 | I91: 1715.83 | J91: 1728.37 | K91: 1743.68 | L91: 1713.05 | M91: 1685.2 | N91: 11643600 | O91: -3.96%
A92: 82 | B92: Metals | C92: HINDZINC | D92: 284.35 | E92: 285.12 | F92: 282.53 | G92: 280.72 | H92: 278.13 | I92: 286.93 | J92: 289.52 | K92: 291.33 | L92: 287.7 | M92: 283.3 | N92: 3888000 | O92: -0.16%
A93: 83 | B93: Finance | C93: IBULHSGFIN | D93: 830.85 | E93: 837.62 | F93: 819.98 | G93: 809.12 | H93: 791.48 | I93: 848.48 | J93: 866.12 | K93: 876.98 | L93: 855.25 | M93: 826.75 | N93: 17372000 | O93: 4.52%
A94: 84 | B94: Banking | C94: ICICIBANK | D94: 395.00 | E94: 396.48 | F94: 392.17 | G94: 389.33 | H94: 385.02 | I94: 399.32 | J94: 403.63 | K94: 406.47 | L94: 400.8 | M94: 393.65 | N94: 90172500 | O94: 1.71%
A95: 85 | B95: Others | C95: ICICIPRULI | D95: 365.30 | E95: 365.02 | F95: 359.63 | G95: 353.97 | H95: 348.58 | I95: 370.68 | J95: 376.07 | K95: 381.73 | L95: 370.4 | M95: 359.35 | N95: 7389000 | O95: -3.90%
A96: 86 | B96: Banking | C96: IDBI | D96: 44.20 | E96: 43.87 | F96: 43.33 | G96: 42.47 | H96: 41.93 | I96: 44.73 | J96: 45.27 | K96: 46.13 | L96: 44.4 | M96: 43 | N96: 26620000 | O96: -3.02%
A97: 87 | B97: Telecom | C97: IDEA | D97: 16.00 | E97: 16.25 | F97: 15.60 | G97: 15.20 | H97: 14.55 | I97: 16.65 | J97: 17.30 | K97: 17.70 | L97: 16.9 | M97: 15.85 | N97: 453983800 | O97: 4.15%
A98: 88 | B98: Finance | C98: IDFC | D98: 46.90 | E98: 47.18 | F98: 46.42 | G98: 45.93 | H98: 45.17 | I98: 47.67 | J98: 48.43 | K98: 48.92 | L98: 47.95 | M98: 46.7 | N98: 89905200 | O98: 0.43%
A99: 89 | B99: Banking | C99: IDFCFIRSTB | D99: 54.65 | E99: 54.78 | F99: 54.22 | G99: 53.78 | H99: 53.22 | I99: 55.22 | J99: 55.78 | K99: 56.22 | L99: 55.35 | M99: 54.35 | N99: 121080000 | O99: -0.71%
A100: 90 | B100: Finance | C100: IFCI | D100: 12.90 | E100: 12.92 | F100: 12.73 | G100: 12.57 | H100: 12.38 | I100: 13.08 | J100: 13.27 | K100: 13.43 | L100: 13.1 | M100: 12.75 | N100: 60305000 | O100: 0.76%
A101: 91 | B101: Oil_Gas | C101: IGL | D101: 312.45 | E101: 312.03 | F101: 309.12 | G101: 305.78 | H101: 302.87 | I101: 315.37 | J101: 318.28 | K101: 321.62 | L101: 314.95 | M101: 308.7 | N101: 3613500 | O101: 1.94%
A102: 92 | B102: Cement | C102: INDIACEM | D102: 107.95 | E102: 108.73 | F102: 106.62 | G102: 105.28 | H102: 103.17 | I102: 110.07 | J102: 112.18 | K102: 113.52 | L102: 110.85 | M102: 107.4 | N102: 19201500 | O102: -0.97%
A103: 93 | B103: Banking | C103: INDIANB | D103: 272.80 | E103: 274.23 | F103: 269.67 | G103: 266.53 | H103: 261.97 | I103: 277.37 | J103: 281.93 | K103: 285.07 | L103: 278.8 | M103: 271.1 | N103: 3468000 | O103: -5.50%
A104: 94 | B104: Others | C104: INDIGO | D104: 1404.35 | E104: 1411.20 | F104: 1388.65 | G104: 1372.95 | H104: 1350.40 | I104: 1426.90 | J104: 1449.45 | K104: 1465.15 | L104: 1433.75 | M104: 1395.5 | N104: 2367600 | O104: 4.53%
A105: 95 | B105: Banking | C105: INDUSINDBK | D105: 1760.90 | E105: 1768.58 | F105: 1747.32 | G105: 1733.73 | H105: 1712.47 | I105: 1782.17 | J105: 1803.43 | K105: 1817.02 | L105: 1789.85 | M105: 1755 | N105: 6667500 | O105: -1.34%
A106: 96 | B106: Technology | C106: INFIBEAM | D106: 45.60 | E106: 44.47 | F106: 42.73 | G106: 39.87 | H106: 38.13 | I106: 47.33 | J106: 49.07 | K106: 51.93 | L106: 46.2 | M106: 41.6 | N106: 15716000 | O106: 18.67%
A107: 97 | B107: Telecom | C107: INFRATEL | D107: 317.00 | E107: 318.92 | F107: 313.33 | G107: 309.67 | H107: 304.08 | I107: 322.58 | J107: 328.17 | K107: 331.83 | L107: 324.5 | M107: 315.25 | N107: 6300000 | O107: 1.25%
A108: 98 | B108: Technology | C108: INFY | D108: 758.25 | E108: 761.65 | F108: 753.80 | G108: 749.35 | H108: 741.50 | I108: 766.10 | J108: 773.95 | K108: 778.40 | L108: 769.5 | M108: 757.2 | N108: 47284800 | O108: -0.57%
A109: 99 | B109: Oil_Gas | C109: IOC | D109: 157.50 | E109: 157.05 | F109: 154.70 | G109: 151.90 | H109: 149.55 | I109: 159.85 | J109: 162.20 | K109: 165.00 | L109: 159.4 | M109: 154.25 | N109: 56542500 | O109: -3.05%
A110: 100 | B110: Infrastructure | C110: IRB | D110: 138.90 | E110: 140.40 | F110: 136.80 | G110: 134.70 | H110: 131.10 | I110: 142.50 | J110: 146.10 | K110: 148.20 | L110: 144 | M110: 138.3 | N110: 9702400 | O110: 2.71%
A111: 101 | B111: FMCG | C111: ITC | D111: 296.15 | E111: 296.20 | F111: 294.75 | G111: 293.35 | H111: 291.90 | I111: 297.60 | J111: 299.05 | K111: 300.45 | L111: 297.65 | M111: 294.8 | N111: 60585600 | O111: 0.90%
A112: 102 | B112: Others | C112: JETAIRWAYS | D112: 243.40 | E112: 241.43 | F112: 235.67 | G112: 227.93 | H112: 222.17 | I112: 249.17 | J112: 254.93 | K112: 262.67 | L112: 247.2 | M112: 233.7 | N112: 6659400 | O112: -4.18%
A113: 103 | B113: Metals | C113: JINDALSTEL | D113: 183.85 | E113: 184.55 | F113: 181.15 | G113: 178.45 | H113: 175.05 | I113: 187.25 | J113: 190.65 | K113: 193.35 | L113: 187.95 | M113: 181.85 | N113: 22970250 | O113: -2.73%
A114: 104 | B114: Others | C114: JISLJALEQS | D114: 57.15 | E114: 57.43 | F114: 56.22 | G114: 55.28 | H114: 54.07 | I114: 58.37 | J114: 59.58 | K114: 60.52 | L114: 58.65 | M114: 56.5 | N114: 33615000 | O114: -1.84%
A115: 105 | B115: Metals | C115: JSWSTEEL | D115: 289.85 | E115: 291.43 | F115: 287.37 | G115: 284.88 | H115: 280.82 | I115: 293.92 | J115: 297.98 | K115: 300.47 | L115: 295.5 | M115: 288.95 | N115: 39541500 | O115: -0.09%
A116: 106 | B116: Others | C116: JUBLFOOD | D116: 1420.80 | E116: 1426.68 | F116: 1411.37 | G116: 1401.93 | H116: 1386.62 | I116: 1436.12 | J116: 1451.43 | K116: 1460.87 | L116: 1442 | M116: 1417.25 | N116: 3167000 | O116: 3.33%
A117: 107 | B117: Others | C117: JUSTDIAL | D117: 584.55 | E117: 587.28 | F117: 578.12 | G117: 571.68 | H117: 562.52 | I117: 593.72 | J117: 602.88 | K117: 609.32 | L117: 596.45 | M117: 580.85 | N117: 3455200 | O117: 3.18%
A118: 108 | B118: Others | C118: KAJARIACER | D118: 611.00 | E118: 611.95 | F118: 607.35 | G118: 603.70 | H118: 599.10 | I118: 615.60 | J118: 620.20 | K118: 623.85 | L118: 616.55 | M118: 608.3 | N118: 1834300 | O118: 0.79%
A119: 109 | B119: Banking | C119: KOTAKBANK | D119: 1356.00 | E119: 1360.90 | F119: 1344.55 | G119: 1333.10 | H119: 1316.75 | I119: 1372.35 | J119: 1388.70 | K119: 1400.15 | L119: 1377.25 | M119: 1349.45 | N119: 9484000 | O119: -6.64%
A120: 110 | B120: Technology | C120: BSOFT | D120: 99.70 | E120: 100.35 | F120: 98.50 | G120: 97.30 | H120: 95.45 | I120: 101.55 | J120: 103.40 | K120: 104.60 | L120: 102.2 | M120: 99.15 | N120: 3811500 | O120: 3.04%
A121: 111 | B121: Others | C121: KSCL | D121: 476.10 | E121: 474.35 | F121: 468.70 | G121: 461.30 | H121: 455.65 | I121: 481.75 | J121: 487.40 | K121: 494.80 | L121: 480 | M121: 466.95 | N121: 946500 | O121: -7.34%
A122: 112 | B122: Banking | C122: KTKBANK | D122: 132.85 | E122: 133.35 | F122: 130.20 | G122: 127.55 | H122: 124.40 | I122: 136.00 | J122: 139.15 | K122: 141.80 | L122: 136.5 | M122: 130.7 | N122: 15481800 | O122: 2.08%
A123: 113 | B123: Finance | C123: L&TFH | D123: 146.20 | E123: 147.55 | F123: 144.45 | G123: 142.70 | H123: 139.60 | I123: 149.30 | J123: 152.40 | K123: 154.15 | L123: 150.65 | M123: 145.8 | N123: 19728000 | O123: 7.56%
A124: 114 | B124: Finance | C124: LICHSGFIN | D124: 532.25 | E124: 538.72 | F124: 523.88 | G124: 515.52 | H124: 500.68 | I124: 547.08 | J124: 561.92 | K124: 570.28 | L124: 553.55 | M124: 530.35 | N124: 7735200 | O124: 5.02%
A125: 115 | B125: Capital_Goods | C125: LT | D125: 1380.85 | E125: 1381.90 | F125: 1371.80 | G125: 1362.75 | H125: 1352.65 | I125: 1390.95 | J125: 1401.05 | K125: 1410.10 | L125: 1392 | M125: 1372.85 | N125: 8124375 | O125: 0.25%
A126: 116 | B126: Pharma | C126: LUPIN | D126: 810.60 | E126: 812.87 | F126: 801.83 | G126: 793.07 | H126: 782.03 | I126: 821.63 | J126: 832.67 | K126: 841.43 | L126: 823.9 | M126: 804.1 | N126: 9344300 | O126: -0.53%
A127: 117 | B127: Automobile | C127: M&M | D127: 673.60 | E127: 673.83 | F127: 667.97 | G127: 662.33 | H127: 656.47 | I127: 679.47 | J127: 685.33 | K127: 690.97 | L127: 679.7 | M127: 668.2 | N127: 18896000 | O127: -0.84%
A128: 118 | B128: Finance | C128: M&MFIN | D128: 413.40 | E128: 415.00 | F128: 410.70 | G128: 408.00 | H128: 403.70 | I128: 417.70 | J128: 422.00 | K128: 424.70 | L128: 419.3 | M128: 412.3 | N128: 11752500 | O128: -0.69%
A129: 119 | B129: Others | C129: MANAPPURAM | D129: 120.60 | E129: 121.48 | F129: 119.07 | G129: 117.53 | H129: 115.12 | I129: 123.02 | J129: 125.43 | K129: 126.97 | L129: 123.9 | M129: 119.95 | N129: 9474000 | O129: -4.82%
A130: 120 | B130: FMCG | C130: MARICO | D130: 361.45 | E130: 361.35 | F130: 358.20 | G130: 354.95 | H130: 351.80 | I130: 364.60 | J130: 367.75 | K130: 371.00 | L130: 364.5 | M130: 358.1 | N130: 6752200 | O130: 4.17%
A131: 121 | B131: Automobile | C131: MARUTI | D131: 7216.85 | E131: 7219.40 | F131: 7174.80 | G131: 7132.75 | H131: 7088.15 | I131: 7261.45 | J131: 7306.05 | K131: 7348.10 | L131: 7264 | M131: 7177.35 | N131: 2807550 | O131: 0.39%
A132: 122 | B132: FMCG | C132: MCDOWELL-N | D132: 549.30 | E132: 550.60 | F132: 544.80 | G132: 540.30 | H132: 534.50 | I132: 555.10 | J132: 560.90 | K132: 565.40 | L132: 556.4 | M132: 546.1 | N132: 11700000 | O132: -3.95%
A133: 123 | B133: Others | C133: MCX | D133: 774.50 | E133: 777.25 | F133: 763.10 | G133: 751.70 | H133: 737.55 | I133: 788.65 | J133: 802.80 | K133: 814.20 | L133: 791.4 | M133: 765.85 | N133: 2228100 | O133: 5.82%
A134: 124 | B134: Finance | C134: MFSL | D134: 419.65 | E134: 422.37 | F134: 413.78 | G134: 407.92 | H134: 399.33 | I134: 428.23 | J134: 436.82 | K134: 442.68 | L134: 430.95 | M134: 416.5 | N134: 1887600 | O134: 7.23%
A135: 125 | B135: Others | C135: MGL | D135: 1005.35 | E135: 1009.33 | F135: 998.12 | G135: 990.88 | H135: 979.67 | I135: 1016.57 | J135: 1027.78 | K135: 1035.02 | L135: 1020.55 | M135: 1002.1 | N135: 550800 | O135: 0.44%
A136: 126 | B136: Technology | C136: MINDTREE | D136: 965.55 | E136: 965.65 | F136: 958.30 | G136: 951.05 | H136: 943.70 | I136: 972.90 | J136: 980.25 | K136: 987.50 | L136: 973 | M136: 958.4 | N136: 3952800 | O136: -1.02%
A137: 127 | B137: Automobile | C137: MOTHERSUMI | D137: 149.30 | E137: 149.78 | F137: 147.57 | G137: 145.83 | H137: 143.62 | I137: 151.52 | J137: 153.73 | K137: 155.47 | L137: 152 | M137: 148.05 | N137: 31062150 | O137: 1.47%
A138: 128 | B138: Automobile | C138: MRF | D138: 57944.70 | E138: 58148.98 | F138: 57497.97 | G138: 57051.23 | H138: 56400.22 | I138: 58595.72 | J138: 59246.73 | K138: 59693.47 | L138: 58800 | M138: 57702.25 | N138: 32660 | O138: 1.78%
A139: 129 | B139: Others | C139: MRPL | D139: 70.65 | E139: 70.63 | F139: 69.92 | G139: 69.18 | H139: 68.47 | I139: 71.37 | J139: 72.08 | K139: 72.82 | L139: 71.35 | M139: 69.9 | N139: 4669000 | O139: -0.15%
A140: 130 | B140: Finance | C140: MUTHOOTFIN | D140: 600.90 | E140: 602.73 | F140: 596.17 | G140: 591.43 | H140: 584.87 | I140: 607.47 | J140: 614.03 | K140: 618.77 | L140: 609.3 | M140: 598 | N140: 2470500 | O140: -6.69%
A141: 131 | B141: Others | C141: NATIONALUM | D141: 56.65 | E141: 56.98 | F141: 56.07 | G141: 55.48 | H141: 54.57 | I141: 57.57 | J141: 58.48 | K141: 59.07 | L141: 57.9 | M141: 56.4 | N141: 34904000 | O141: 1.00%
A142: 132 | B142: Others | C142: NBCC | D142: 61.15 | E142: 61.50 | F142: 60.65 | G142: 60.15 | H142: 59.30 | I142: 62.00 | J142: 62.85 | K142: 63.35 | L142: 62.35 | M142: 61 | N142: 39808000 | O142: 2.89%
A143: 133 | B143: Infrastructure | C143: NCC | D143: 103.30 | E143: 104.18 | F143: 101.82 | G143: 100.33 | H143: 97.97 | I143: 105.67 | J143: 108.03 | K143: 109.52 | L143: 106.55 | M143: 102.7 | N143: 36592000 | O143: 1.33%
A144: 134 | B144: Others | C144: NESTLEIND | D144: 10902.60 | E144: 10878.22 | F144: 10826.43 | G144: 10750.27 | H144: 10698.48 | I144: 10954.38 | J144: 11006.17 | K144: 11082.33 | L144: 10930 | M144: 10802.05 | N144: 329950 | O144: -0.20%
A145: 135 | B145: Power | C145: NHPC | D145: 24.25 | E145: 24.30 | F145: 24.15 | G145: 24.05 | H145: 23.90 | I145: 24.40 | J145: 24.55 | K145: 24.65 | L145: 24.45 | M145: 24.2 | N145: 25758000 | O145: -0.10%
A146: 136 | B146: Technology | C146: NIITTECH | D146: 1307.20 | E146: 1309.32 | F146: 1300.53 | G146: 1293.87 | H146: 1285.08 | I146: 1315.98 | J146: 1324.77 | K146: 1331.43 | L146: 1318.1 | M146: 1302.65 | N146: 1899750 | O146: 4.24%
A147: 137 | B147: Metals | C147: NMDC | D147: 105.00 | E147: 105.37 | F147: 104.33 | G147: 103.67 | H147: 102.63 | I147: 106.03 | J147: 107.07 | K147: 107.73 | L147: 106.4 | M147: 104.7 | N147: 18870000 | O147: -0.76%
A148: 138 | B148: Power | C148: NTPC | D148: 135.65 | E148: 136.35 | F148: 134.70 | G148: 133.75 | H148: 132.10 | I148: 137.30 | J148: 138.95 | K148: 139.90 | L148: 138 | M148: 135.4 | N148: 70944000 | O148: 1.15%
A149: 139 | B149: Technology | C149: OFSS | D149: 3581.80 | E149: 3602.32 | F149: 3554.63 | G149: 3527.47 | H149: 3479.78 | I149: 3629.48 | J149: 3677.17 | K149: 3704.33 | L149: 3650 | M149: 3575.15 | N149: 299550 | O149: -0.15%
A150: 140 | B150: Oil_Gas | C150: OIL | D150: 179.85 | E150: 180.20 | F150: 178.95 | G150: 178.05 | H150: 176.80 | I150: 181.10 | J150: 182.35 | K150: 183.25 | L150: 181.45 | M150: 179.3 | N150: 7654548 | O150: 1.03%
A151: 141 | B151: Oil_Gas | C151: ONGC | D151: 158.90 | E151: 159.07 | F151: 157.23 | G151: 155.57 | H151: 153.73 | I151: 160.73 | J151: 162.57 | K151: 164.23 | L151: 160.9 | M151: 157.4 | N151: 50411250 | O151: 0.01%
A152: 142 | B152: Banking | C152: ORIENTBANK | D152: 111.45 | E152: 111.38 | F152: 109.77 | G152: 108.08 | H152: 106.47 | I152: 113.07 | J152: 114.68 | K152: 116.37 | L152: 113 | M152: 109.7 | N152: 16317000 | O152: -2.59%
A153: 143 | B153: Textile | C153: PAGEIND | D153: 23960.85 | E153: 24176.48 | F153: 23617.57 | G153: 23274.28 | H153: 22715.37 | I153: 24519.77 | J153: 25078.68 | K153: 25421.97 | L153: 24735.4 | M153: 23833.2 | N153: 99350 | O153: 1.04%
A154: 144 | B154: Others | C154: PCJEWELLER | D154: 97.00 | E154: 95.77 | F154: 93.73 | G154: 90.47 | H154: 88.43 | I154: 99.03 | J154: 101.07 | K154: 104.33 | L154: 97.8 | M154: 92.5 | N154: 13942500 | O154: -9.26%
A155: 145 | B155: Pharma | C155: PEL | D155: 2681.35 | E155: 2669.98 | F155: 2640.97 | G155: 2600.58 | H155: 2571.57 | I155: 2710.37 | J155: 2739.38 | K155: 2779.77 | L155: 2699 | M155: 2629.6 | N155: 3337402 | O155: 1.22%
A156: 146 | B156: Oil_Gas | C156: PETRONET | D156: 237.85 | E156: 238.97 | F156: 236.18 | G156: 234.52 | H156: 231.73 | I156: 240.63 | J156: 243.42 | K156: 245.08 | L156: 241.75 | M156: 237.3 | N156: 9804000 | O156: 1.49%
A157: 147 | B157: Finance | C157: PFC | D157: 120.85 | E157: 120.65 | F157: 119.45 | G157: 118.05 | H157: 116.85 | I157: 122.05 | J157: 123.25 | K157: 124.65 | L157: 121.85 | M157: 119.25 | N157: 28898200 | O157: -3.50%
A158: 148 | B158: FMCG | C158: PIDILITIND | D158: 1287.50 | E158: 1285.13 | F158: 1278.42 | G158: 1269.33 | H158: 1262.62 | I158: 1294.22 | J158: 1300.93 | K158: 1310.02 | L158: 1291.85 | M158: 1276.05 | N158: 2276500 | O158: -0.13%
A159: 149 | B159: Banking | C159: PNB | D159: 93.85 | E159: 94.37 | F159: 93.03 | G159: 92.22 | H159: 90.88 | I159: 95.18 | J159: 96.52 | K159: 97.33 | L159: 95.7 | M159: 93.55 | N159: 100513000 | O159: 0.78%
A160: 150 | B160: Power | C160: POWERGRID | D160: 199.45 | E160: 199.62 | F160: 198.48 | G160: 197.52 | H160: 196.38 | I160: 200.58 | J160: 201.72 | K160: 202.68 | L160: 200.75 | M160: 198.65 | N160: 16512000 | O160: 0.05%
A161: 151 | B161: Others | C161: PVR | D161: 1703.10 | E161: 1703.02 | F161: 1680.03 | G161: 1656.97 | H161: 1633.98 | I161: 1726.08 | J161: 1749.07 | K161: 1772.13 | L161: 1726 | M161: 1679.95 | N161: 624800 | O161: 12.78%
A162: 152 | B162: Cement | C162: RAMCOCEM | D162: 761.95 | E162: 761.68 | F162: 755.37 | G162: 748.78 | H162: 742.47 | I162: 768.27 | J162: 774.58 | K162: 781.17 | L162: 768 | M162: 755.1 | N162: 1643200 | O162: -0.48%
A163: 153 | B163: Others | C163: RAYMOND | D163: 782.70 | E163: 786.35 | F163: 777.10 | G163: 771.50 | H163: 762.25 | I163: 791.95 | J163: 801.20 | K163: 806.80 | L163: 795.6 | M163: 780.75 | N163: 3220000 | O163: 1.28%
A164: 154 | B164: Banking | C164: RBLBANK | D164: 672.40 | E164: 672.78 | F164: 665.67 | G164: 658.93 | H164: 651.82 | I164: 679.52 | J164: 686.63 | K164: 693.37 | L164: 679.9 | M164: 666.05 | N164: 6547200 | O164: -1.55%
A165: 155 | B165: Power | C165: RECLTD | D165: 151.65 | E165: 152.33 | F165: 150.02 | G165: 148.38 | H165: 146.07 | I165: 153.97 | J165: 156.28 | K165: 157.92 | L165: 154.65 | M165: 150.7 | N165: 30174000 | O165: -1.76%
A166: 156 | B166: Finance | C166: RELCAPITAL | D166: 183.20 | E166: 184.17 | F166: 178.53 | G166: 173.87 | H166: 168.23 | I166: 188.83 | J166: 194.47 | K166: 199.13 | L166: 189.8 | M166: 179.5 | N166: 9390000 | O166: 3.90%
A167: 157 | B167: Oil_Gas | C167: RELIANCE | D167: 1339.45 | E167: 1343.35 | F167: 1330.75 | G167: 1322.05 | H167: 1309.45 | I167: 1352.05 | J167: 1364.65 | K167: 1373.35 | L167: 1355.95 | M167: 1334.65 | N167: 47917500 | O167: -0.60%
A168: 158 | B168: Power | C168: RELINFRA | D168: 131.90 | E168: 132.55 | F168: 129.90 | G168: 127.90 | H168: 125.25 | I168: 134.55 | J168: 137.20 | K168: 139.20 | L168: 135.2 | M168: 130.55 | N168: 11037000 | O168: 1.19%
A169: 159 | B169: Others | C169: REPCOHOME | D169: 448.95 | E169: 451.43 | F169: 443.62 | G169: 438.28 | H169: 430.47 | I169: 456.77 | J169: 464.58 | K169: 469.92 | L169: 459.25 | M169: 446.1 | N169: 1018600 | O169: 4.16%
A170: 160 | B170: Power | C170: RPOWER | D170: 9.95 | E170: 9.95 | F170: 9.85 | G170: 9.75 | H170: 9.65 | I170: 10.05 | J170: 10.15 | K170: 10.25 | L170: 10.05 | M170: 9.85 | N170: 100096000 | O170: -0.52%
A171: 161 | B171: Metals | C171: SAIL | D171: 58.30 | E171: 58.82 | F171: 57.58 | G171: 56.87 | H171: 55.63 | I171: 59.53 | J171: 60.77 | K171: 61.48 | L171: 60.05 | M171: 58.1 | N171: 84648000 | O171: -0.17%
A172: 162 | B172: Banking | C172: SBIN | D172: 313.25 | E172: 314.77 | F172: 310.73 | G172: 308.22 | H172: 304.18 | I172: 317.28 | J172: 321.32 | K172: 323.83 | L172: 318.8 | M172: 312.25 | N172: 73113000 | O172: -0.68%
A173: 163 | B173: Cement | C173: SHREECEM | D173: 19053.60 | E173: 18988.17 | F173: 18804.48 | G173: 18555.37 | H173: 18371.68 | I173: 19237.28 | J173: 19420.97 | K173: 19670.08 | L173: 19171.85 | M173: 18739.05 | N173: 89250 | O173: 0.00%
A174: 164 | B174: Capital_Goods | C174: SIEMENS | D174: 1172.70 | E174: 1167.10 | F174: 1155.60 | G174: 1138.50 | H174: 1127.00 | I174: 1184.20 | J174: 1195.70 | K174: 1212.80 | L174: 1178.6 | M174: 1150 | N174: 1592800 | O174: 2.80%
A175: 165 | B175: Banking | C175: SOUTHBANK | D175: 17.35 | E175: 17.42 | F175: 17.08 | G175: 16.82 | H175: 16.48 | I175: 17.68 | J175: 18.02 | K175: 18.28 | L175: 17.75 | M175: 17.15 | N175: 144229632 | O175: -1.47%
A176: 166 | B176: Textile | C176: SRF | D176: 2471.90 | E176: 2480.10 | F176: 2456.90 | G176: 2441.90 | H176: 2418.70 | I176: 2495.10 | J176: 2518.30 | K176: 2533.30 | L176: 2503.3 | M176: 2465.1 | N176: 874000 | O176: 1.04%
A177: 167 | B177: Finance | C177: SRTRANSFIN | D177: 1201.75 | E177: 1211.18 | F177: 1178.52 | G177: 1155.28 | H177: 1122.62 | I177: 1234.42 | J177: 1267.08 | K177: 1290.32 | L177: 1243.85 | M177: 1187.95 | N177: 3318000 | O177: 1.36%
A178: 168 | B178: Pharma | C178: STAR | D178: 497.50 | E178: 499.55 | F178: 488.60 | G178: 479.70 | H178: 468.75 | I178: 508.45 | J178: 519.40 | K178: 528.30 | L178: 510.5 | M178: 490.65 | N178: 2860000 | O178: -0.80%
A179: 169 | B179: Pharma | C179: SUNPHARMA | D179: 474.50 | E179: 475.82 | F179: 468.93 | G179: 463.37 | H179: 456.48 | I179: 481.38 | J179: 488.27 | K179: 493.83 | L179: 482.7 | M179: 470.25 | N179: 50260100 | O179: -0.03%
A180: 170 | B180: Media | C180: SUNTV | D180: 601.35 | E180: 607.42 | F180: 592.48 | G180: 583.62 | H180: 568.68 | I180: 616.28 | J180: 631.22 | K180: 640.08 | L180: 622.35 | M180: 598.55 | N180: 6075000 | O180: 4.13%
A181: 171 | B181: Power | C181: SUZLON | D181: 6.75 | E181: 6.80 | F181: 6.65 | G181: 6.55 | H181: 6.40 | I181: 6.90 | J181: 7.05 | K181: 7.15 | L181: 6.95 | M181: 6.7 | N181: 302784000 | O181: 0.10%
A182: 172 | B182: Banking | C182: SYNDIBANK | D182: 42.05 | E182: 42.40 | F182: 41.45 | G182: 40.85 | H182: 39.90 | I182: 43.00 | J182: 43.95 | K182: 44.55 | L182: 43.35 | M182: 41.8 | N182: 29595000 | O182: -0.05%
A183: 173 | B183: Fertilisers | C183: TATACHEM | D183: 614.00 | E183: 612.68 | F183: 608.62 | G183: 603.23 | H183: 599.17 | I183: 618.07 | J183: 622.13 | K183: 627.52 | L183: 616.75 | M183: 607.3 | N183: 3615750 | O183: -2.67%
A184: 174 | B184: Telecom | C184: TATACOMM | D184: 584.35 | E184: 585.32 | F184: 580.03 | G184: 575.72 | H184: 570.43 | I184: 589.63 | J184: 594.92 | K184: 599.23 | L184: 590.6 | M184: 581 | N184: 2504000 | O184: -2.91%
A185: 175 | B185: Technology | C185: TATAELXSI | D185: 972.50 | E185: 975.10 | F185: 965.40 | G185: 958.30 | H185: 948.60 | I185: 982.20 | J185: 991.90 | K185: 999.00 | L185: 984.8 | M185: 968 | N185: 1402000 | O185: -3.31%
A186: 176 | B186: FMCG | C186: TATAGLOBAL | D186: 210.20 | E186: 210.85 | F186: 208.60 | G186: 207.00 | H186: 204.75 | I186: 212.45 | J186: 214.70 | K186: 216.30 | L186: 213.1 | M186: 209.25 | N186: 12919500 | O186: 0.30%
A187: 177 | B187: Automobile | C187: TATAMOTORS | D187: 216.90 | E187: 214.05 | F187: 209.85 | G187: 202.80 | H187: 198.60 | I187: 221.10 | J187: 225.30 | K187: 232.35 | L187: 218.25 | M187: 207 | N187: 70092000 | O187: 2.00%
A188: 178 | B188: Automobile | C188: TATAMTRDVR | D188: 103.05 | E188: 102.45 | F188: 100.60 | G188: 98.15 | H188: 96.30 | I188: 104.90 | J188: 106.75 | K188: 109.20 | L188: 104.3 | M188: 100 | N188: 36339400 | O188: 2.78%
A189: 179 | B189: Power | C189: TATAPOWER | D189: 71.60 | E189: 72.22 | F189: 70.63 | G189: 69.67 | H189: 68.08 | I189: 73.18 | J189: 74.77 | K189: 75.73 | L189: 73.8 | M189: 71.25 | N189: 60174000 | O189: 4.05%
A190: 180 | B190: Metals | C190: TATASTEEL | D190: 545.65 | E190: 550.00 | F190: 539.00 | G190: 532.35 | H190: 521.35 | I190: 556.65 | J190: 567.65 | K190: 574.30 | L190: 561 | M190: 543.35 | N190: 27540377 | O190: -6.04%
A191: 181 | B191: Technology | C191: TCS | D191: 2055.80 | E191: 2069.15 | F191: 2038.35 | G191: 2020.90 | H191: 1990.10 | I191: 2086.60 | J191: 2117.40 | K191: 2134.85 | L191: 2099.95 | M191: 2051.7 | N191: 14799250 | O191: -0.24%
A192: 182 | B192: Technology | C192: TECHM | D192: 793.10 | E192: 793.95 | F192: 787.20 | G192: 781.30 | H192: 774.55 | I192: 799.85 | J192: 806.60 | K192: 812.50 | L192: 800.7 | M192: 788.05 | N192: 12153600 | O192: -2.12%
A193: 183 | B193: FMCG | C193: TITAN | D193: 1107.30 | E193: 1103.50 | F193: 1095.30 | G193: 1083.30 | H193: 1075.10 | I193: 1115.50 | J193: 1123.70 | K193: 1135.70 | L193: 1111.7 | M193: 1091.5 | N193: 9846000 | O193: -1.37%
A194: 184 | B194: Pharma | C194: TORNTPHARM | D194: 1870.10 | E194: 1867.08 | F194: 1853.17 | G194: 1836.23 | H194: 1822.32 | I194: 1884.02 | J194: 1897.93 | K194: 1914.87 | L194: 1881 | M194: 1850.15 | N194: 769000 | O194: -3.63%
A195: 185 | B195: Power | C195: TORNTPOWER | D195: 257.00 | E195: 257.75 | F195: 255.20 | G195: 253.40 | H195: 250.85 | I195: 259.55 | J195: 262.10 | K195: 263.90 | L195: 260.3 | M195: 255.95 | N195: 2727000 | O195: 10.85%
A196: 186 | B196: Media | C196: TV18BRDCST | D196: 35.40 | E196: 35.70 | F196: 34.85 | G196: 34.30 | H196: 33.45 | I196: 36.25 | J196: 37.10 | K196: 37.65 | L196: 36.55 | M196: 35.15 | N196: 69654000 | O196: 0.96%
A197: 187 | B197: Automobile | C197: TVSMOTOR | D197: 484.65 | E197: 485.95 | F197: 482.05 | G197: 479.45 | H197: 475.55 | I197: 488.55 | J197: 492.45 | K197: 495.05 | L197: 489.85 | M197: 483.35 | N197: 5426000 | O197: -3.69%
A198: 188 | B198: FMCG | C198: UBL | D198: 1413.25 | E198: 1417.88 | F198: 1403.77 | G198: 1394.28 | H198: 1380.17 | I198: 1427.37 | J198: 1441.48 | K198: 1450.97 | L198: 1432 | M198: 1408.4 | N198: 2327500 | O198: -0.81%
A199: 189 | B199: Finance | C199: UJJIVAN | D199: 338.45 | E199: 334.23 | F199: 328.52 | G199: 318.58 | H199: 312.87 | I199: 344.17 | J199: 349.88 | K199: 359.82 | L199: 339.95 | M199: 324.3 | N199: 3537600 | O199: 13.21%
A200: 190 | B200: Cement | C200: ULTRACEMCO | D200: 4154.25 | E200: 4164.03 | F200: 4128.07 | G200: 4101.88 | H200: 4065.92 | I200: 4190.22 | J200: 4226.18 | K200: 4252.37 | L200: 4200 | M200: 4137.85 | N200: 2031000 | O200: 2.38%
A201: 191 | B201: Banking | C201: UNIONBANK | D201: 94.05 | E201: 94.75 | F201: 92.90 | G201: 91.75 | H201: 89.90 | I201: 95.90 | J201: 97.75 | K201: 98.90 | L201: 96.6 | M201: 93.6 | N201: 32837000 | O201: -2.01%
A202: 192 | B202: Fertilisers | C202: UPL | D202: 932.90 | E202: 938.87 | F202: 925.43 | G202: 917.97 | H202: 904.53 | I202: 946.33 | J202: 959.77 | K202: 967.23 | L202: 952.3 | M202: 931.4 | N202: 13546800 | O202: 0.74%
A203: 193 | B203: Metals | C203: VEDL | D203: 189.45 | E203: 189.70 | F203: 186.50 | G203: 183.55 | H203: 180.35 | I203: 192.65 | J203: 195.85 | K203: 198.80 | L203: 192.9 | M203: 186.75 | N203: 29881600 | O203: -0.72%
A204: 194 | B204: Others | C204: VGUARD | D204: 219.75 | E204: 219.98 | F204: 218.47 | G204: 217.18 | H204: 215.67 | I204: 221.27 | J204: 222.78 | K204: 224.07 | L204: 221.5 | M204: 218.7 | N204: 3513000 | O204: -3.62%
A205: 195 | B205: Capital_Goods | C205: VOLTAS | D205: 613.15 | E205: 613.97 | F205: 609.43 | G205: 605.72 | H205: 601.18 | I205: 617.68 | J205: 622.22 | K205: 625.93 | L205: 618.5 | M205: 610.25 | N205: 4975000 | O205: -1.33%
A206: 196 | B206: Technology | C206: WIPRO | D206: 280.55 | E206: 278.88 | F206: 276.27 | G206: 271.98 | H206: 269.37 | I206: 283.17 | J206: 285.78 | K206: 290.07 | L206: 281.5 | M206: 274.6 | N206: 31552000 | O206: -2.75%
... 18 more rows

Sheet Cash Intra
M5: Back to Main Page
A6: FOR INTRA DAY TRADING | K6: =Main!B10 -> 2019-04-11
A8: Sr.no | B8: Scrip | C8: CLOSE RATE | D8: Pivot Point | E8: Supports | H8: Resistances
C9: Point | E9: S1 | F9: S2 | G9: S3 | H9: R1 | I9: R2 | J9: R3 | K9: HIGH | L9: LOW | M9: Total Trade Quanity in Lakhs
A10: 1 | B10: Nifty 50 | C10: 11584.3 | D10: 11612.03 | E10: 11544.02 | F10: 11503.73 | G10: 11435.72 | H10: 11652.32 | I10: 11720.33 | J10: 11760.62 | K10: 11680.05 | L10: 11571.75
A11: 2 | B11: Nifty Bank | C11: 29803.5 | D11: 29909.12 | E11: 29662.48 | F11: 29521.47 | G11: 29274.83 | H11: 30050.13 | I11: 30296.77 | J11: 30437.78 | K11: 30155.75 | L11: 29768.1
A12: 3 | B12: Nifty CPSE | C12: 2244.45 | D12: 2247.62 | E12: 2233.98 | F12: 2223.52 | G12: 2209.88 | H12: 2258.08 | I12: 2271.72 | J12: 2282.18 | K12: 2261.25 | L12: 2237.15
A13: 4 | B13: Nifty Infra | C13: 3182.95 | D13: 3194.10 | E13: 3166.80 | F13: 3150.65 | G13: 3123.35 | H13: 3210.25 | I13: 3237.55 | J13: 3253.70 | K13: 3221.4 | L13: 3177.95
A14: 5 | B14: Nifty IT | C14: 15999.15 | D14: 16050.05 | E14: 15927.30 | F14: 15855.45 | G14: 15732.70 | H14: 16121.90 | I14: 16244.65 | J14: 16316.50 | K14: 16172.8 | L14: 15978.2
A15: 6 | B15: Nifty PSE | C15: 3514.65 | D15: 3523.20 | E15: 3502.45 | F15: 3490.25 | G15: 3469.50 | H15: 3535.40 | I15: 3556.15 | J15: 3568.35 | K15: 3543.95 | L15: 3511
A16: 7 | B16: Nifty Midcap 50 | C16: 5039.35 | D16: 5049.85 | E16: 5021.05 | F16: 5002.75 | G16: 4973.95 | H16: 5068.15 | I16: 5096.95 | J16: 5115.25 | K16: 5078.65 | L16: 5031.55
A17: 8 | B17: ABB | C17: 1381.55 | D17: 1386.52 | E17: 1366.03 | F17: 1350.52 | G17: 1330.03 | H17: 1402.03 | I17: 1422.52 | J17: 1438.03 | K17: 1407 | L17: 1371 | M17: 0.68864
A18: 9 | B18: ACC | C18: 1636.65 | D18: 1640.85 | E18: 1625.80 | F18: 1614.95 | G18: 1599.90 | H18: 1651.70 | I18: 1666.75 | J18: 1677.60 | K18: 1655.9 | L18: 1630 | M18: 5.59285
A19: 10 | B19: AIAENG | C19: 1798.95 | D19: 1786.67 | E19: 1773.28 | F19: 1747.62 | G19: 1734.23 | H19: 1812.33 | I19: 1825.72 | J19: 1851.38 | K19: 1800.05 | L19: 1761 | M19: 0.72676
A20: 11 | B20: AUBANK | C20: 585.55 | D20: 587.65 | E20: 581.40 | F20: 577.25 | G20: 571.00 | H20: 591.80 | I20: 598.05 | J20: 602.20 | K20: 593.9 | L20: 583.5 | M20: 2.15777
A21: 12 | B21: ADANIENT | C21: 142.85 | D21: 144.10 | E21: 140.80 | F21: 138.75 | G21: 135.45 | H21: 146.15 | I21: 149.45 | J21: 151.50 | K21: 147.4 | L21: 142.05 | M21: 43.56153
A22: 13 | B22: ADANIPORTS | C22: 383.45 | D22: 381.35 | E22: 377.30 | F22: 371.15 | G22: 367.10 | H22: 387.50 | I22: 391.55 | J22: 397.70 | K22: 385.4 | L22: 375.2 | M22: 20.67637
A23: 14 | B23: ADANIPOWER | C23: 49.05 | D23: 49.42 | E23: 48.43 | F23: 47.82 | G23: 46.83 | H23: 50.03 | I23: 51.02 | J23: 51.63 | K23: 50.4 | L23: 48.8 | M23: 80.75543
A24: 15 | B24: ABFRL | C24: 222.7 | D24: 222.07 | E24: 220.13 | F24: 217.57 | G24: 215.63 | H24: 224.63 | I24: 226.57 | J24: 229.13 | K24: 224 | L24: 219.5 | M24: 7.28505
A25: 16 | B25: AJANTPHARM | C25: 1013.9 | D25: 1015.47 | E25: 1006.98 | F25: 1000.07 | G25: 991.58 | H25: 1022.38 | I25: 1030.87 | J25: 1037.78 | K25: 1023.95 | L25: 1008.55 | M25: 2.12712
A26: 17 | B26: ALKEM | C26: 1742.2 | D26: 1744.85 | E26: 1727.35 | F26: 1712.50 | G26: 1695.00 | H26: 1759.70 | I26: 1777.20 | J26: 1792.05 | K26: 1762.35 | L26: 1730 | M26: 0.47515
A27: 18 | B27: AMARAJABAT | C27: 684.55 | D27: 680.05 | E27: 670.60 | F27: 656.65 | G27: 647.20 | H27: 694.00 | I27: 703.45 | J27: 717.40 | K27: 689.5 | L27: 666.1 | M27: 8.66695
A28: 19 | B28: AMBUJACEM | C28: 223.9 | D28: 224.87 | E28: 222.08 | F28: 220.27 | G28: 217.48 | H28: 226.68 | I28: 229.47 | J28: 231.28 | K28: 227.65 | L28: 223.05 | M28: 14.89964
A29: 20 | B29: APOLLOHOSP | C29: 1246.25 | D29: 1252.10 | E29: 1234.45 | F29: 1222.65 | G29: 1205.00 | H29: 1263.90 | I29: 1281.55 | J29: 1293.35 | K29: 1269.75 | L29: 1240.3 | M29: 2.51194
A30: 21 | B30: APOLLOTYRE | C30: 216.1 | D30: 216.95 | E30: 214.65 | F30: 213.20 | G30: 210.90 | H30: 218.40 | I30: 220.70 | J30: 222.15 | K30: 219.25 | L30: 215.5 | M30: 15.8207
A31: 22 | B31: ARVIND | C31: 88.15 | D31: 88.85 | E31: 87.10 | F31: 86.05 | G31: 84.30 | H31: 89.90 | I31: 91.65 | J31: 92.70 | K31: 90.6 | L31: 87.8 | M31: 21.82593
A32: 23 | B32: ASHOKLEY | C32: 91.55 | D32: 91.42 | E32: 90.53 | F32: 89.52 | G32: 88.63 | H32: 92.43 | I32: 93.32 | J32: 94.33 | K32: 92.3 | L32: 90.4 | M32: 280.21324
A33: 24 | B33: ASIANPAINT | C33: 1409.85 | D33: 1422.07 | E33: 1393.13 | F33: 1376.42 | G33: 1347.48 | H33: 1438.78 | I33: 1467.72 | J33: 1484.43 | K33: 1451 | L33: 1405.35 | M33: 26.08319
A34: 25 | B34: AUROPHARMA | C34: 790.05 | D34: 790.58 | E34: 779.72 | F34: 769.38 | G34: 758.52 | H34: 800.92 | I34: 811.78 | J34: 822.12 | K34: 801.45 | L34: 780.25 | M34: 23.41755
A35: 26 | B35: DMART | C35: 1522.3 | D35: 1507.60 | E35: 1485.70 | F35: 1449.10 | G35: 1427.20 | H35: 1544.20 | I35: 1566.10 | J35: 1602.70 | K35: 1529.5 | L35: 1471 | M35: 9.83484
A36: 27 | B36: AXISBANK | C36: 760.85 | D36: 762.25 | E36: 756.60 | F36: 752.35 | G36: 746.70 | H36: 766.50 | I36: 772.15 | J36: 776.40 | K36: 767.9 | L36: 758 | M36: 59.3325
A37: 28 | B37: BAJAJ-AUTO | C37: 2942.9 | D37: 2935.08 | E37: 2918.17 | F37: 2893.43 | G37: 2876.52 | H37: 2959.82 | I37: 2976.73 | J37: 3001.47 | K37: 2952 | L37: 2910.35 | M37: 5.30788
A38: 29 | B38: BAJFINANCE | C38: 2998.35 | D38: 3007.12 | E38: 2977.23 | F38: 2956.12 | G38: 2926.23 | H38: 3028.23 | I38: 3058.12 | J38: 3079.23 | K38: 3037 | L38: 2986 | M38: 9.94899
A39: 30 | B39: BAJAJFINSV | C39: 7423.3 | D39: 7404.43 | E39: 7363.87 | F39: 7304.43 | G39: 7263.87 | H39: 7463.87 | I39: 7504.43 | J39: 7563.87 | K39: 7445 | L39: 7345 | M39: 1.65487
A40: 31 | B40: BALKRISIND | C40: 966 | D40: 970.75 | E40: 958.50 | F40: 951.00 | G40: 938.75 | H40: 978.25 | I40: 990.50 | J40: 998.00 | K40: 983 | L40: 963.25 | M40: 2.80925
A41: 32 | B41: BANKBARODA | C41: 129.7 | D41: 130.50 | E41: 128.30 | F41: 126.90 | G41: 124.70 | H41: 131.90 | I41: 134.10 | J41: 135.50 | K41: 132.7 | L41: 129.1 | M41: 157.17985
A42: 33 | B42: BANKINDIA | C42: 100.5 | D42: 101.40 | E42: 99.30 | F42: 98.10 | G42: 96.00 | H42: 102.60 | I42: 104.70 | J42: 105.90 | K42: 103.5 | L42: 100.2 | M42: 81.7634
A43: 34 | B43: BATAINDIA | C43: 1392.6 | D43: 1396.47 | E43: 1385.48 | F43: 1378.37 | G43: 1367.38 | H43: 1403.58 | I43: 1414.57 | J43: 1421.68 | K43: 1407.45 | L43: 1389.35 | M43: 3.81272
A44: 35 | B44: BERGEPAINT | C44: 321.3 | D44: 322.43 | E44: 317.87 | F44: 314.43 | G44: 309.87 | H44: 325.87 | I44: 330.43 | J44: 333.87 | K44: 327 | L44: 319 | M44: 8.29256
A45: 36 | B45: BEL | C45: 95.55 | D45: 95.75 | E45: 94.70 | F45: 93.85 | G45: 92.80 | H45: 96.60 | I45: 97.65 | J45: 98.50 | K45: 96.8 | L45: 94.9 | M45: 72.49763
A46: 37 | B46: BHARATFIN | C46: 1104.75 | D46: 1106.88 | E46: 1095.87 | F46: 1086.98 | G46: 1075.97 | H46: 1115.77 | I46: 1126.78 | J46: 1135.67 | K46: 1117.9 | L46: 1098 | M46: 2.92264
A47: 38 | B47: BHARATFORG | C47: 497.9 | D47: 500.80 | E47: 493.15 | F47: 488.40 | G47: 480.75 | H47: 505.55 | I47: 513.20 | J47: 517.95 | K47: 508.45 | L47: 496.05 | M47: 5.5407
A48: 39 | B48: BHEL | C48: 72.2 | D48: 72.40 | E48: 71.50 | F48: 70.80 | G48: 69.90 | H48: 73.10 | I48: 74.00 | J48: 74.70 | K48: 73.3 | L48: 71.7 | M48: 108.4268
A49: 40 | B49: BPCL | C49: 357.75 | D49: 356.95 | E49: 353.90 | F49: 350.05 | G49: 347.00 | H49: 360.80 | I49: 363.85 | J49: 367.70 | K49: 360 | L49: 353.1 | M49: 41.1688
A50: 41 | B50: BHARTIARTL | C50: 340 | D50: 344.13 | E50: 333.87 | F50: 327.73 | G50: 317.47 | H50: 350.27 | I50: 360.53 | J50: 366.67 | K50: 354.4 | L50: 338 | M50: 42.89454
A51: 42 | B51: INFRATEL | C51: 315.3 | D51: 315.72 | E51: 313.23 | F51: 311.17 | G51: 308.68 | H51: 317.78 | I51: 320.27 | J51: 322.33 | K51: 318.2 | L51: 313.65 | M51: 14.04102
A52: 43 | B52: BIOCON | C52: 627.8 | D52: 626.12 | E52: 615.48 | F52: 603.17 | G52: 592.53 | H52: 638.43 | I52: 649.07 | J52: 661.38 | K52: 636.75 | L52: 613.8 | M52: 24.19841
A53: 44 | B53: BOSCHLTD | C53: 17788.65 | D53: 17807.12 | E53: 17731.53 | F53: 17674.42 | G53: 17598.83 | H53: 17864.23 | I53: 17939.82 | J53: 17996.93 | K53: 17882.7 | L53: 17750 | M53: 0.08167
A54: 45 | B54: BRITANNIA | C54: 2958.8 | D54: 2968.37 | E54: 2941.73 | F54: 2924.67 | G54: 2898.03 | H54: 2985.43 | I54: 3012.07 | J54: 3029.13 | K54: 2995 | L54: 2951.3 | M54: 3.77556
A55: 46 | B55: CRISIL | C55: 1485.55 | D55: 1475.38 | E55: 1455.77 | F55: 1425.98 | G55: 1406.37 | H55: 1505.17 | I55: 1524.78 | J55: 1554.57 | K55: 1495 | L55: 1445.6 | M55: 0.07556
A56: 47 | B56: CADILAHC | C56: 343.4 | D56: 343.85 | E56: 338.80 | F56: 334.20 | G56: 329.15 | H56: 348.45 | I56: 353.50 | J56: 358.10 | K56: 348.9 | L56: 339.25 | M56: 9.98246
A57: 48 | B57: CANBK | C57: 281.55 | D57: 282.92 | E57: 278.98 | F57: 276.42 | G57: 272.48 | H57: 285.48 | I57: 289.42 | J57: 291.98 | K57: 286.85 | L57: 280.35 | M57: 56.24832
A58: 49 | B58: CASTROLIND | C58: 165.15 | D58: 165.80 | E58: 163.90 | F58: 162.65 | G58: 160.75 | H58: 167.05 | I58: 168.95 | J58: 170.20 | K58: 167.7 | L58: 164.55 | M58: 8.61566
A59: 50 | B59: CENTRALBK | C59: 34.45 | D59: 34.65 | E59: 34.20 | F59: 33.95 | G59: 33.50 | H59: 34.90 | I59: 35.35 | J59: 35.60 | K59: 35.1 | L59: 34.4 | M59: 3.97792
A60: 51 | B60: CENTURYTEX | C60: 899.1 | D60: 894.63 | E60: 884.77 | F60: 870.43 | G60: 860.57 | H60: 908.97 | I60: 918.83 | J60: 933.17 | K60: 904.5 | L60: 880.3 | M60: 4.11674
A61: 52 | B61: CHOLAFIN | C61: 1472.5 | D61: 1481.60 | E61: 1458.20 | F61: 1443.90 | G61: 1420.50 | H61: 1495.90 | I61: 1519.30 | J61: 1533.60 | K61: 1505 | L61: 1467.3 | M61: 2.51229
A62: 53 | B62: CIPLA | C62: 546.45 | D62: 543.00 | E62: 534.25 | F62: 522.05 | G62: 513.30 | H62: 555.20 | I62: 563.95 | J62: 576.15 | K62: 551.75 | L62: 530.8 | M62: 59.92326
A63: 54 | B63: COALINDIA | C63: 240.05 | D63: 240.45 | E63: 238.00 | F63: 235.95 | G63: 233.50 | H63: 242.50 | I63: 244.95 | J63: 247.00 | K63: 242.9 | L63: 238.4 | M63: 86.5756
A64: 55 | B64: COLPAL | C64: 1213.4 | D64: 1220.28 | E64: 1203.32 | F64: 1193.23 | G64: 1176.27 | H64: 1230.37 | I64: 1247.33 | J64: 1257.42 | K64: 1237.25 | L64: 1210.2 | M64: 4.69806
A65: 56 | B65: CONCOR | C65: 519.4 | D65: 520.12 | E65: 514.73 | F65: 510.07 | G65: 504.68 | H65: 524.78 | I65: 530.17 | J65: 534.83 | K65: 525.5 | L65: 515.45 | M65: 8.4071
A66: 57 | B66: COROMANDEL | C66: 427.7 | D66: 429.53 | E66: 415.82 | F66: 403.93 | G66: 390.22 | H66: 441.42 | I66: 455.13 | J66: 467.02 | K66: 443.25 | L66: 417.65 | M66: 9.88066
A67: 58 | B67: CROMPTON | C67: 227.65 | D67: 226.73 | E67: 223.92 | F67: 220.18 | G67: 217.37 | H67: 230.47 | I67: 233.28 | J67: 237.02 | K67: 229.55 | L67: 223 | M67: 5.62112
A68: 59 | B68: CUMMINSIND | C68: 747.65 | D68: 741.93 | E68: 732.97 | F68: 718.28 | G68: 709.32 | H68: 756.62 | I68: 765.58 | J68: 780.27 | K68: 750.9 | L68: 727.25 | M68: 4.02937
A69: 60 | B69: DLF | C69: 180.1 | D69: 183.45 | E69: 175.70 | F69: 171.30 | G69: 163.55 | H69: 187.85 | I69: 195.60 | J69: 200.00 | K69: 191.2 | L69: 179.05 | M69: 223.51331
A70: 61 | B70: DABUR | C70: 403.3 | D70: 404.43 | E70: 400.12 | F70: 396.93 | G70: 392.62 | H70: 407.62 | I70: 411.93 | J70: 415.12 | K70: 408.75 | L70: 401.25 | M70: 28.61296
A71: 62 | B71: DHFL | C71: 167.65 | D71: 168.42 | E71: 163.93 | F71: 160.22 | G71: 155.73 | H71: 172.13 | I71: 176.62 | J71: 180.33 | K71: 172.9 | L71: 164.7 | M71: 309.86439
A72: 63 | B72: DISHTV | C72: 37.45 | D72: 37.20 | E72: 36.60 | F72: 35.75 | G72: 35.15 | H72: 38.05 | I72: 38.65 | J72: 39.50 | K72: 37.8 | L72: 36.35 | M72: 154.80073
A73: 64 | B73: DIVISLAB | C73: 1722.55 | D73: 1720.35 | E73: 1708.20 | F73: 1693.85 | G73: 1681.70 | H73: 1734.70 | I73: 1746.85 | J73: 1761.20 | K73: 1732.5 | L73: 1706 | M73: 4.84391
A74: 65 | B74: LALPATHLAB | C74: 1020.15 | D74: 1026.20 | E74: 1007.95 | F74: 995.75 | G74: 977.50 | H74: 1038.40 | I74: 1056.65 | J74: 1068.85 | K74: 1044.45 | L74: 1014 | M74: 0.44368
A75: 66 | B75: DRREDDY | C75: 2765 | D75: 2782.33 | E75: 2728.77 | F75: 2692.53 | G75: 2638.97 | H75: 2818.57 | I75: 2872.13 | J75: 2908.37 | K75: 2835.9 | L75: 2746.1 | M75: 10.77211
A76: 67 | B76: EDELWEISS | C76: 187.95 | D76: 188.02 | E76: 185.48 | F76: 183.02 | G76: 180.48 | H76: 190.48 | I76: 193.02 | J76: 195.48 | K76: 190.55 | L76: 185.55 | M76: 10.3438
A77: 68 | B77: EICHERMOT | C77: 20973.75 | D77: 20901.25 | E77: 20722.50 | F77: 20471.25 | G77: 20292.50 | H77: 21152.50 | I77: 21331.25 | J77: 21582.50 | K77: 21080 | L77: 20650 | M77: 0.8355
A78: 69 | B78: EMAMILTD | C78: 406.25 | D78: 404.92 | E78: 401.93 | F78: 397.62 | G78: 394.63 | H78: 409.23 | I78: 412.22 | J78: 416.53 | K78: 407.9 | L78: 400.6 | M78: 1.19254
A79: 70 | B79: ENDURANCE | C79: 1167.05 | D79: 1168.97 | E79: 1163.18 | F79: 1159.32 | G79: 1153.53 | H79: 1172.83 | I79: 1178.62 | J79: 1182.48 | K79: 1174.75 | L79: 1165.1 | M79: 0.785
A80: 71 | B80: ENGINERSIN | C80: 116.15 | D80: 116.90 | E80: 114.90 | F80: 113.65 | G80: 111.65 | H80: 118.15 | I80: 120.15 | J80: 121.40 | K80: 118.9 | L80: 115.65 | M80: 23.59234
A81: 72 | B81: EXIDEIND | C81: 219.9 | D81: 219.47 | E81: 217.13 | F81: 214.37 | G81: 212.03 | H81: 222.23 | I81: 224.57 | J81: 227.33 | K81: 221.8 | L81: 216.7 | M81: 18.06792
A82: 73 | B82: FEDERALBNK | C82: 97.8 | D82: 98.08 | E82: 97.07 | F82: 96.33 | G82: 95.32 | H82: 98.82 | I82: 99.83 | J82: 100.57 | K82: 99.1 | L82: 97.35 | M82: 97.69893
A83: 74 | B83: GAIL | C83: 337.7 | D83: 339.70 | E83: 335.05 | F83: 332.40 | G83: 327.75 | H83: 342.35 | I83: 347.00 | J83: 349.65 | K83: 344.35 | L83: 337.05 | M83: 25.48368
A84: 75 | B84: GMRINFRA | C84: 18.45 | D84: 18.48 | E84: 18.07 | F84: 17.68 | G84: 17.27 | H84: 18.87 | I84: 19.28 | J84: 19.67 | K84: 18.9 | L84: 18.1 | M84: 155.61966
A85: 76 | B85: GSKCONS | C85: 7097.2 | D85: 7090.07 | E85: 7047.13 | F85: 6997.07 | G85: 6954.13 | H85: 7140.13 | I85: 7183.07 | J85: 7233.13 | K85: 7133 | L85: 7040 | M85: 0.09541
A86: 77 | B86: GLAXO | C86: 1298 | D86: 1297.07 | E86: 1293.93 | F86: 1289.87 | G86: 1286.73 | H86: 1301.13 | I86: 1304.27 | J86: 1308.33 | K86: 1300.2 | L86: 1293 | M86: 0.16688
A87: 78 | B87: GLENMARK | C87: 649.9 | D87: 647.58 | E87: 640.32 | F87: 630.73 | G87: 623.47 | H87: 657.17 | I87: 664.43 | J87: 674.02 | K87: 654.85 | L87: 638 | M87: 3.85828
A88: 79 | B88: GODREJCP | C88: 663.25 | D88: 664.18 | E88: 659.92 | F88: 656.58 | G88: 652.32 | H88: 667.52 | I88: 671.78 | J88: 675.12 | K88: 668.45 | L88: 660.85 | M88: 35.85333
A89: 80 | B89: GODREJIND | C89: 529.2 | D89: 530.73 | E89: 525.47 | F89: 521.73 | G89: 516.47 | H89: 534.47 | I89: 539.73 | J89: 543.47 | K89: 536 | L89: 527 | M89: 1.60216
A90: 81 | B90: GRUH | C90: 280 | D90: 281.82 | E90: 276.83 | F90: 273.67 | G90: 268.68 | H90: 284.98 | I90: 289.97 | J90: 293.13 | K90: 286.8 | L90: 278.65 | M90: 4.52594
A91: 82 | B91: GPPL | C91: 95.8 | D91: 96.50 | E91: 94.40 | F91: 93.00 | G91: 90.90 | H91: 97.90 | I91: 100.00 | J91: 101.40 | K91: 98.6 | L91: 95.1 | M91: 3.07331
A92: 83 | B92: GSPL | C92: 181.6 | D92: 180.70 | E92: 179.00 | F92: 176.40 | G92: 174.70 | H92: 183.30 | I92: 185.00 | J92: 187.60 | K92: 182.4 | L92: 178.1 | M92: 1.80518
A93: 84 | B93: HCLTECH | C93: 1098.7 | D93: 1106.73 | E93: 1088.17 | F93: 1077.63 | G93: 1059.07 | H93: 1117.27 | I93: 1135.83 | J93: 1146.37 | K93: 1125.3 | L93: 1096.2 | M93: 24.13433
A94: 85 | B94: HDFCBANK | C94: 2237.35 | D94: 2250.78 | E94: 2217.57 | F94: 2197.78 | G94: 2164.57 | H94: 2270.57 | I94: 2303.78 | J94: 2323.57 | K94: 2284 | L94: 2231 | M94: 270.32175
A95: 86 | B95: HAVELLS | C95: 757.5 | D95: 758.45 | E95: 751.95 | F95: 746.40 | G95: 739.90 | H95: 764.00 | I95: 770.50 | J95: 776.05 | K95: 764.95 | L95: 752.9 | M95: 8.98792
A96: 87 | B96: HEROMOTOCO | C96: 2594.4 | D96: 2600.07 | E96: 2581.13 | F96: 2567.87 | G96: 2548.93 | H96: 2613.33 | I96: 2632.27 | J96: 2645.53 | K96: 2619 | L96: 2586.8 | M96: 6.72025
A97: 88 | B97: HEXAWARE | C97: 347.35 | D97: 348.58 | E97: 344.67 | F97: 341.98 | G97: 338.07 | H97: 351.27 | I97: 355.18 | J97: 357.87 | K97: 352.5 | L97: 345.9 | M97: 11.56559
A98: 89 | B98: HINDALCO | C98: 211.7 | D98: 212.70 | E98: 208.65 | F98: 205.60 | G98: 201.55 | H98: 215.75 | I98: 219.80 | J98: 222.85 | K98: 216.75 | L98: 209.65 | M98: 133.23115
A99: 90 | B99: HINDPETRO | C99: 255.95 | D99: 256.85 | E99: 253.90 | F99: 251.85 | G99: 248.90 | H99: 258.90 | I99: 261.85 | J99: 263.90 | K99: 259.8 | L99: 254.8 | M99: 38.03939
A100: 91 | B100: HINDUNILVR | C100: 1694.15 | D100: 1691.27 | E100: 1677.88 | F100: 1661.62 | G100: 1648.23 | H100: 1707.53 | I100: 1720.92 | J100: 1737.18 | K100: 1704.65 | L100: 1675 | M100: 17.20236
A101: 92 | B101: HINDZINC | C101: 282.45 | D101: 283.43 | E101: 280.72 | F101: 278.98 | G101: 276.27 | H101: 285.17 | I101: 287.88 | J101: 289.62 | K101: 286.15 | L101: 281.7 | M101: 3.30577
A102: 93 | B102: HUDCO | C102: 44.75 | D102: 44.85 | E102: 44.50 | F102: 44.25 | G102: 43.90 | H102: 45.10 | I102: 45.45 | J102: 45.70 | K102: 45.2 | L102: 44.6 | M102: 5.36441
A103: 94 | B103: HDFC | C103: 2029.25 | D103: 2040.78 | E103: 2013.57 | F103: 1997.88 | G103: 1970.67 | H103: 2056.47 | I103: 2083.68 | J103: 2099.37 | K103: 2068 | L103: 2025.1 | M103: 30.36356
A104: 95 | B104: ITC | C104: 294.7 | D104: 294.92 | E104: 293.28 | F104: 291.87 | G104: 290.23 | H104: 296.33 | I104: 297.97 | J104: 299.38 | K104: 296.55 | L104: 293.5 | M104: 53.34642
A105: 96 | B105: ICICIBANK | C105: 394.2 | D105: 395.23 | E105: 391.67 | F105: 389.13 | G105: 385.57 | H105: 397.77 | I105: 401.33 | J105: 403.87 | K105: 398.8 | L105: 392.7 | M105: 140.00018
A106: 97 | B106: ICICIPRULI | C106: 363.85 | D106: 363.35 | E106: 357.95 | F106: 352.05 | G106: 346.65 | H106: 369.25 | I106: 374.65 | J106: 380.55 | K106: 368.75 | L106: 357.45 | M106: 16.92209
A107: 98 | B107: IDBI | C107: 43.95 | D107: 43.78 | E107: 43.32 | F107: 42.68 | G107: 42.22 | H107: 44.42 | I107: 44.88 | J107: 45.52 | K107: 44.25 | L107: 43.15 | M107: 84.87911
A108: 99 | B108: IDFCFIRSTB | C108: 54.55 | D108: 54.57 | E108: 54.08 | F108: 53.62 | G108: 53.13 | H108: 55.03 | I108: 55.52 | J108: 55.98 | K108: 55.05 | L108: 54.1 | M108: 109.29318
A109: 100 | B109: IDFC | C109: 46.7 | D109: 46.97 | E109: 46.23 | F109: 45.77 | G109: 45.03 | H109: 47.43 | I109: 48.17 | J109: 48.63 | K109: 47.7 | L109: 46.5 | M109: 34.00749
A110: 101 | B110: IRB | C110: 137.75 | D110: 139.47 | E110: 135.53 | F110: 133.32 | G110: 129.38 | H110: 141.68 | I110: 145.62 | J110: 147.83 | K110: 143.4 | L110: 137.25 | M110: 24.80799
A111: 102 | B111: IDEA | C111: 16.35 | D111: 16.60 | E111: 16.05 | F111: 15.75 | G111: 15.20 | H111: 16.90 | I111: 17.45 | J111: 17.75 | K111: 17.15 | L111: 16.3 | M111: 672.571
A112: 103 | B112: IBULHSGFIN | C112: 824.4 | D112: 831.27 | E112: 813.13 | F112: 801.87 | G112: 783.73 | H112: 842.53 | I112: 860.67 | J112: 871.93 | K112: 849.4 | L112: 820 | M112: 141.32218
A113: 104 | B113: INDIANB | C113: 271.55 | D113: 273.02 | E113: 268.53 | F113: 265.52 | G113: 261.03 | H113: 276.03 | I113: 280.52 | J113: 283.53 | K113: 277.5 | L113: 270 | M113: 24.06904
A114: 105 | B114: INDHOTEL | C114: 152.75 | D114: 153.67 | E114: 151.43 | F114: 150.12 | G114: 147.88 | H114: 154.98 | I114: 157.22 | J114: 158.53 | K114: 155.9 | L114: 152.35 | M114: 8.58943
A115: 106 | B115: IOC | C115: 156.6 | D115: 156.13 | E115: 153.92 | F115: 151.23 | G115: 149.02 | H115: 158.82 | I115: 161.03 | J115: 163.72 | K115: 158.35 | L115: 153.45 | M115: 88.83968
A116: 107 | B116: IGL | C116: 311.1 | D116: 310.73 | E116: 307.62 | F116: 304.13 | G116: 301.02 | H116: 314.22 | I116: 317.33 | J116: 320.82 | K116: 313.85 | L116: 307.25 | M116: 15.08875
A117: 108 | B117: INDUSINDBK | C117: 1747.45 | D117: 1756.20 | E117: 1733.45 | F117: 1719.45 | G117: 1696.70 | H117: 1770.20 | I117: 1792.95 | J117: 1806.95 | K117: 1778.95 | L117: 1742.2 | M117: 18.9151
A118: 109 | B118: NAUKRI | C118: 1914.55 | D118: 1906.02 | E118: 1874.38 | F118: 1834.22 | G118: 1802.58 | H118: 1946.18 | I118: 1977.82 | J118: 2017.98 | K118: 1937.65 | L118: 1865.85 | M118: 2.41905
A119: 110 | B119: INFY | C119: 752.7 | D119: 756.90 | E119: 747.10 | F119: 741.50 | G119: 731.70 | H119: 762.50 | I119: 772.30 | J119: 777.90 | K119: 766.7 | L119: 751.3 | M119: 70.31088
A120: 111 | B120: INDIGO | C120: 1394 | D120: 1401.13 | E120: 1377.02 | F120: 1360.03 | G120: 1335.92 | H120: 1418.12 | I120: 1442.23 | J120: 1459.22 | K120: 1425.25 | L120: 1384.15 | M120: 11.94384
A121: 112 | B121: IPCALAB | C121: 945.15 | D121: 945.38 | E121: 931.52 | F121: 917.88 | G121: 904.02 | H121: 959.02 | I121: 972.88 | J121: 986.52 | K121: 959.25 | L121: 931.75 | M121: 0.90431
A122: 113 | B122: JSWENERGY | C122: 72.65 | D122: 72.58 | E122: 71.62 | F122: 70.58 | G122: 69.62 | H122: 73.62 | I122: 74.58 | J122: 75.62 | K122: 73.55 | L122: 71.55 | M122: 8.62403
A123: 114 | B123: JSWSTEEL | C123: 288.55 | D123: 289.87 | E123: 285.98 | F123: 283.42 | G123: 279.53 | H123: 292.43 | I123: 296.32 | J123: 298.88 | K123: 293.75 | L123: 287.3 | M123: 53.1689
A124: 115 | B124: JINDALSTEL | C124: 182.95 | D124: 183.63 | E124: 180.37 | F124: 177.78 | G124: 174.52 | H124: 186.22 | I124: 189.48 | J124: 192.07 | K124: 186.9 | L124: 181.05 | M124: 86.10134
A125: 116 | B125: JUBLFOOD | C125: 1409.65 | D125: 1416.40 | E125: 1398.85 | F125: 1388.05 | G125: 1370.50 | H125: 1427.20 | I125: 1444.75 | J125: 1455.55 | K125: 1433.95 | L125: 1405.6 | M125: 6.75075
A126: 117 | B126: JUBILANT | C126: 686.85 | D126: 686.58 | E126: 680.27 | F126: 673.68 | G126: 667.37 | H126: 693.17 | I126: 699.48 | J126: 706.07 | K126: 692.9 | L126: 680 | M126: 2.10287
A127: 118 | B127: KARURVYSYA | C127: 80.15 | D127: 79.25 | E127: 78.00 | F127: 75.85 | G127: 74.60 | H127: 81.40 | I127: 82.65 | J127: 84.80 | K127: 80.5 | L127: 77.1 | M127: 36.04406
A128: 119 | B128: KOTAKBANK | C128: 1349.9 | D128: 1351.97 | E128: 1335.98 | F128: 1322.07 | G128: 1306.08 | H128: 1365.88 | I128: 1381.87 | J128: 1395.78 | K128: 1367.95 | L128: 1338.05 | M128: 30.31207
A129: 120 | B129: L&TFH | C129: 145.15 | D129: 146.20 | E129: 142.95 | F129: 140.75 | G129: 137.50 | H129: 148.40 | I129: 151.65 | J129: 153.85 | K129: 149.45 | L129: 144 | M129: 61.91118
A130: 121 | B130: LICHSGFIN | C130: 528.15 | D130: 534.78 | E130: 520.12 | F130: 512.08 | G130: 497.42 | H130: 542.82 | I130: 557.48 | J130: 565.52 | K130: 549.45 | L130: 526.75 | M130: 17.18379
A131: 122 | B131: LT | C131: 1371.55 | D131: 1372.85 | E131: 1363.70 | F131: 1355.85 | G131: 1346.70 | H131: 1380.70 | I131: 1389.85 | J131: 1397.70 | K131: 1382 | L131: 1365 | M131: 20.14958
A132: 123 | B132: LUPIN | C132: 804.75 | D132: 807.10 | E132: 796.70 | F132: 788.65 | G132: 778.25 | H132: 815.15 | I132: 825.55 | J132: 833.60 | K132: 817.5 | L132: 799.05 | M132: 19.51096
A133: 124 | B133: MRF | C133: 57491.75 | D133: 57747.25 | E133: 57044.50 | F133: 56597.25 | G133: 55894.50 | H133: 58194.50 | I133: 58897.25 | J133: 59344.50 | K133: 58450 | L133: 57300 | M133: 0.07299
A134: 125 | B134: MGL | C134: 997.4 | D134: 1002.87 | E134: 989.68 | F134: 981.97 | G134: 968.78 | H134: 1010.58 | I134: 1023.77 | J134: 1031.48 | K134: 1016.05 | L134: 995.15 | M134: 1.91181
A135: 126 | B135: M&MFIN | C135: 411.75 | D135: 413.25 | E135: 409.00 | F135: 406.25 | G135: 402.00 | H135: 416.00 | I135: 420.25 | J135: 423.00 | K135: 417.5 | L135: 410.5 | M135: 9.29571
A136: 127 | B136: M&M | C136: 670.25 | D136: 669.45 | E136: 663.90 | F136: 657.55 | G136: 652.00 | H136: 675.80 | I136: 681.35 | J136: 687.70 | K136: 675 | L136: 663.1 | M136: 24.9906
A137: 128 | B137: MANAPPURAM | C137: 120.1 | D137: 120.60 | E137: 118.00 | F137: 115.90 | G137: 113.30 | H137: 122.70 | I137: 125.30 | J137: 127.40 | K137: 123.2 | L137: 118.5 | M137: 23.37637
A138: 129 | B138: MRPL | C138: 70.55 | D138: 70.28 | E138: 69.67 | F138: 68.78 | G138: 68.17 | H138: 71.17 | I138: 71.78 | J138: 72.67 | K138: 70.9 | L138: 69.4 | M138: 7.30492
A139: 130 | B139: MARICO | C139: 359.4 | D139: 359.43 | E139: 356.37 | F139: 353.33 | G139: 350.27 | H139: 362.47 | I139: 365.53 | J139: 368.57 | K139: 362.5 | L139: 356.4 | M139: 16.02144
A140: 131 | B140: MARUTI | C140: 7186.35 | D140: 7183.30 | E140: 7147.65 | F140: 7108.95 | G140: 7073.30 | H140: 7222.00 | I140: 7257.65 | J140: 7296.35 | K140: 7218.95 | L140: 7144.6 | M140: 5.90107
A141: 132 | B141: MFSL | C141: 416 | D141: 418.32 | E141: 409.78 | F141: 403.57 | G141: 395.03 | H141: 424.53 | I141: 433.07 | J141: 439.28 | K141: 426.85 | L141: 412.1 | M141: 4.08469
A142: 133 | B142: MINDTREE | C142: 970.25 | D142: 967.08 | E142: 959.17 | F142: 948.08 | G142: 940.17 | H142: 978.17 | I142: 986.08 | J142: 997.17 | K142: 975 | L142: 956 | M142: 20.78842
A143: 134 | B143: MOTHERSUMI | C143: 148.15 | D143: 148.83 | E143: 146.47 | F143: 144.78 | G143: 142.42 | H143: 150.52 | I143: 152.88 | J143: 154.57 | K143: 151.2 | L143: 147.15 | M143: 44.75663
A144: 135 | B144: MPHASIS | C144: 995.7 | D144: 987.50 | E144: 976.20 | F144: 956.70 | G144: 945.40 | H144: 1007.00 | I144: 1018.30 | J144: 1037.80 | K144: 998.8 | L144: 968 | M144: 2.66092
A145: 136 | B145: MUTHOOTFIN | C145: 610.1 | D145: 611.68 | E145: 605.37 | F145: 600.63 | G145: 594.32 | H145: 616.42 | I145: 622.73 | J145: 627.47 | K145: 618 | L145: 606.95 | M145: 3.54806
A146: 137 | B146: NATCOPHARM | C146: 565.05 | D146: 564.15 | E146: 558.90 | F146: 552.75 | G146: 547.50 | H146: 570.30 | I146: 575.55 | J146: 581.70 | K146: 569.4 | L146: 558 | M146: 2.46932
A147: 138 | B147: NBCC | C147: 60.75 | D147: 61.10 | E147: 60.25 | F147: 59.75 | G147: 58.90 | H147: 61.60 | I147: 62.45 | J147: 62.95 | K147: 61.95 | L147: 60.6 | M147: 75.83468
A148: 139 | B148: NHPC | C148: 24.15 | D148: 24.17 | E148: 24.03 | F148: 23.92 | G148: 23.78 | H148: 24.28 | I148: 24.42 | J148: 24.53 | K148: 24.3 | L148: 24.05 | M148: 29.31145
A149: 140 | B149: NMDC | C149: 104.3 | D149: 104.70 | E149: 103.60 | F149: 102.90 | G149: 101.80 | H149: 105.40 | I149: 106.50 | J149: 107.20 | K149: 105.8 | L149: 104 | M149: 25.80045
A150: 141 | B150: NTPC | C150: 134.6 | D150: 135.30 | E150: 133.60 | F150: 132.60 | G150: 130.90 | H150: 136.30 | I150: 138.00 | J150: 139.00 | K150: 137 | L150: 134.3 | M150: 95.023
A151: 142 | B151: NATIONALUM | C151: 56.25 | D151: 56.62 | E151: 55.68 | F151: 55.12 | G151: 54.18 | H151: 57.18 | I151: 58.12 | J151: 58.68 | K151: 57.55 | L151: 56.05 | M151: 110.7796
A152: 143 | B152: OBEROIRLTY | C152: 564.85 | D152: 559.55 | E152: 546.30 | F152: 527.75 | G152: 514.50 | H152: 578.10 | I152: 591.35 | J152: 609.90 | K152: 572.8 | L152: 541 | M152: 8.42142
A153: 144 | B153: ONGC | C153: 158 | D153: 158.25 | E153: 156.55 | F153: 155.10 | G153: 153.40 | H153: 159.70 | I153: 161.40 | J153: 162.85 | K153: 159.95 | L153: 156.8 | M153: 93.63447
A154: 145 | B154: OIL | C154: 178.85 | D154: 178.87 | E154: 177.68 | F154: 176.52 | G154: 175.33 | H154: 180.03 | I154: 181.22 | J154: 182.38 | K154: 180.05 | L154: 177.7 | M154: 9.81058
A155: 146 | B155: OFSS | C155: 3558.2 | D155: 3575.07 | E155: 3534.13 | F155: 3510.07 | G155: 3469.13 | H155: 3599.13 | I155: 3640.07 | J155: 3664.13 | K155: 3616 | L155: 3551 | M155: 0.30593
A156: 147 | B156: PCJEWELLER | C156: 96.5 | D156: 95.15 | E156: 92.85 | F156: 89.20 | G156: 86.90 | H156: 98.80 | I156: 101.10 | J156: 104.75 | K156: 97.45 | L156: 91.5 | M156: 317.86634
A157: 148 | B157: PIIND | C157: 1015.65 | D157: 1015.63 | E157: 1000.97 | F157: 986.28 | G157: 971.62 | H157: 1030.32 | I157: 1044.98 | J157: 1059.67 | K157: 1030.3 | L157: 1000.95 | M157: 1.07761
A158: 149 | B158: PNBHOUSING | C158: 862.35 | D158: 870.78 | E158: 851.57 | F158: 840.78 | G158: 821.57 | H158: 881.57 | I158: 900.78 | J158: 911.57 | K158: 890 | L158: 860 | M158: 5.06261
A159: 150 | B159: PAGEIND | C159: 23818.7 | D159: 24022.90 | E159: 23495.80 | F159: 23172.90 | G159: 22645.80 | H159: 24345.80 | I159: 24872.90 | J159: 25195.80 | K159: 24550 | L159: 23700 | M159: 0.41116
A160: 151 | B160: PETRONET | C160: 235.95 | D160: 237.05 | E160: 234.15 | F160: 232.35 | G160: 229.45 | H160: 238.85 | I160: 241.75 | J160: 243.55 | K160: 239.95 | L160: 235.25 | M160: 18.81464
A161: 152 | B161: PIDILITIND | C161: 1282.15 | D161: 1279.45 | E161: 1272.70 | F161: 1263.25 | G161: 1256.50 | H161: 1288.90 | I161: 1295.65 | J161: 1305.10 | K161: 1286.2 | L161: 1270 | M161: 2.746
A162: 153 | B162: PEL | C162: 2683.9 | D162: 2667.93 | E162: 2640.97 | F162: 2598.03 | G162: 2571.07 | H162: 2710.87 | I162: 2737.83 | J162: 2780.77 | K162: 2694.9 | L162: 2625 | M162: 4.44043
A163: 154 | B163: PFC | C163: 120.2 | D163: 119.90 | E163: 118.80 | F163: 117.40 | G163: 116.30 | H163: 121.30 | I163: 122.40 | J163: 123.80 | K163: 121 | L163: 118.5 | M163: 61.93243
A164: 155 | B164: POWERGRID | C164: 198.65 | D164: 198.68 | E164: 197.72 | F164: 196.78 | G164: 195.82 | H164: 199.62 | I164: 200.58 | J164: 201.52 | K164: 199.65 | L164: 197.75 | M164: 48.58426
A165: 156 | B165: PRESTIGE | C165: 268.6 | D165: 267.87 | E165: 264.73 | F165: 260.87 | G165: 257.73 | H165: 271.73 | I165: 274.87 | J165: 278.73 | K165: 271 | L165: 264 | M165: 4.46488
A166: 157 | B166: PGHH | C166: 10757.75 | D166: 10762.62 | E166: 10700.23 | F166: 10642.72 | G166: 10580.33 | H166: 10820.13 | I166: 10882.52 | J166: 10940.03 | K166: 10825 | L166: 10705.1 | M166: 0.04213
A167: 158 | B167: PNB | C167: 93.35 | D167: 93.78 | E167: 92.62 | F167: 91.88 | G167: 90.72 | H167: 94.52 | I167: 95.68 | J167: 96.42 | K167: 94.95 | L167: 93.05 | M167: 247.72662
A168: 159 | B168: RBLBANK | C168: 674.05 | D168: 672.78 | E168: 666.37 | F168: 658.68 | G168: 652.27 | H168: 680.47 | I168: 686.88 | J168: 694.57 | K168: 679.2 | L168: 665.1 | M168: 9.17932
A169: 160 | B169: RAJESHEXPO | C169: 659.2 | D169: 661.90 | E169: 653.80 | F169: 648.40 | G169: 640.30 | H169: 667.30 | I169: 675.40 | J169: 680.80 | K169: 670 | L169: 656.5 | M169: 2.39094
A170: 161 | B170: RELCAPITAL | C170: 187.85 | D170: 188.10 | E170: 184.25 | F170: 180.65 | G170: 176.80 | H170: 191.70 | I170: 195.55 | J170: 199.15 | K170: 191.95 | L170: 184.5 | M170: 96.71826
A171: 162 | B171: RCOM | C171: 2.9 | D171: 2.90 | E171: 2.90 | F171: 2.90 | G171: 2.90 | H171: 2.90 | I171: 2.90 | J171: 2.90 | K171: 2.9 | L171: 2.9 | M171: 70.46997
A172: 163 | B172: RELIANCE | C172: 1331.4 | D172: 1335.30 | E172: 1322.60 | F172: 1313.80 | G172: 1301.10 | H172: 1344.10 | I172: 1356.80 | J172: 1365.60 | K172: 1348 | L172: 1326.5 | M172: 76.12711
A173: 164 | B173: RELINFRA | C173: 131.4 | D173: 131.93 | E173: 129.57 | F173: 127.73 | G173: 125.37 | H173: 133.77 | I173: 136.13 | J173: 137.97 | K173: 134.3 | L173: 130.1 | M173: 70.9462
A174: 165 | B174: RPOWER | C174: 9.9 | D174: 9.87 | E174: 9.73 | F174: 9.57 | G174: 9.43 | H174: 10.03 | I174: 10.17 | J174: 10.33 | K174: 10 | L174: 9.7 | M174: 200.62078
A175: 166 | B175: RECLTD | C175: 150.55 | D175: 151.25 | E175: 149.00 | F175: 147.45 | G175: 145.20 | H175: 152.80 | I175: 155.05 | J175: 156.60 | K175: 153.5 | L175: 149.7 | M175: 53.31995
A176: 167 | B176: SRF | C176: 2451.9 | D176: 2461.60 | E176: 2435.95 | F176: 2420.00 | G176: 2394.35 | H176: 2477.55 | I176: 2503.20 | J176: 2519.15 | K176: 2487.25 | L176: 2445.65 | M176: 1.50952
A177: 168 | B177: SHREECEM | C177: 18992 | D177: 18886.92 | E177: 18705.08 | F177: 18418.17 | G177: 18236.33 | H177: 19173.83 | I177: 19355.67 | J177: 19642.58 | K177: 19068.75 | L177: 18600 | M177: 0.3976
A178: 169 | B178: SRTRANSFIN | C178: 1196.9 | D178: 1206.18 | E178: 1174.97 | F178: 1153.03 | G178: 1121.82 | H178: 1228.12 | I178: 1259.33 | J178: 1281.27 | K178: 1237.4 | L178: 1184.25 | M178: 16.06319
A179: 170 | B179: SIEMENS | C179: 1165.65 | D179: 1159.52 | E179: 1150.13 | F179: 1134.62 | G179: 1125.23 | H179: 1175.03 | I179: 1184.42 | J179: 1199.93 | K179: 1168.9 | L179: 1144 | M179: 3.7941
A180: 171 | B180: SBIN | C180: 310.9 | D180: 312.65 | E180: 308.25 | F180: 305.60 | G180: 301.20 | H180: 315.30 | I180: 319.70 | J180: 322.35 | K180: 317.05 | L180: 310 | M180: 192.37974
A181: 172 | B181: SAIL | C181: 57.95 | D181: 58.43 | E181: 57.17 | F181: 56.38 | G181: 55.12 | H181: 59.22 | I181: 60.48 | J181: 61.27 | K181: 59.7 | L181: 57.65 | M181: 213.57805
A182: 173 | B182: SPARC | C182: 185.6 | D182: 185.88 | E182: 182.77 | F182: 179.93 | G182: 176.82 | H182: 188.72 | I182: 191.83 | J182: 194.67 | K182: 189 | L182: 183.05 | M182: 4.83951
A183: 174 | B183: SUNPHARMA | C183: 471.95 | D183: 473.07 | E183: 466.23 | F183: 460.52 | G183: 453.68 | H183: 478.78 | I183: 485.62 | J183: 491.33 | K183: 479.9 | L183: 467.35 | M183: 38.87388
A184: 175 | B184: SUNTV | C184: 596.4 | D184: 602.80 | E184: 587.60 | F184: 578.80 | G184: 563.60 | H184: 611.60 | I184: 626.80 | J184: 635.60 | K184: 618 | L184: 594 | M184: 24.12038
A185: 176 | B185: SUZLON | C185: 6.7 | D185: 6.75 | E185: 6.60 | F185: 6.50 | G185: 6.35 | H185: 6.85 | I185: 7.00 | J185: 7.10 | K185: 6.9 | L185: 6.65 | M185: 349.13965
A186: 177 | B186: SYNDIBANK | C186: 41.85 | D186: 42.18 | E186: 41.27 | F186: 40.68 | G186: 39.77 | H186: 42.77 | I186: 43.68 | J186: 44.27 | K186: 43.1 | L186: 41.6 | M186: 53.03751
A187: 178 | B187: SYNGENE | C187: 575.75 | D187: 575.32 | E187: 571.63 | F187: 567.52 | G187: 563.83 | H187: 579.43 | I187: 583.12 | J187: 587.23 | K187: 579 | L187: 571.2 | M187: 0.24963
A188: 179 | B188: TV18BRDCST | C188: 35.15 | D188: 35.47 | E188: 34.58 | F188: 34.02 | G188: 33.13 | H188: 36.03 | I188: 36.92 | J188: 37.48 | K188: 36.35 | L188: 34.9 | M188: 48.16713
A189: 180 | B189: TVSMOTOR | C189: 482.2 | D189: 483.88 | E189: 479.37 | F189: 476.53 | G189: 472.02 | H189: 486.72 | I189: 491.23 | J189: 494.07 | K189: 488.4 | L189: 481.05 | M189: 7.66345
A190: 181 | B190: TATACHEM | C190: 611.3 | D190: 608.87 | E190: 603.08 | F190: 594.87 | G190: 589.08 | H190: 617.08 | I190: 622.87 | J190: 631.08 | K190: 614.65 | L190: 600.65 | M190: 6.34722
A191: 182 | B191: TATACOMM | C191: 580.7 | D191: 582.50 | E191: 576.70 | F191: 572.70 | G191: 566.90 | H191: 586.50 | I191: 592.30 | J191: 596.30 | K191: 588.3 | L191: 578.5 | M191: 1.23137
A192: 183 | B192: TCS | C192: 2040.25 | D192: 2053.92 | E192: 2022.33 | F192: 2004.42 | G192: 1972.83 | H192: 2071.83 | I192: 2103.42 | J192: 2121.33 | K192: 2085.5 | L192: 2036 | M192: 33.13062
A193: 184 | B193: TATAGLOBAL | C193: 208.8 | D193: 209.48 | E193: 207.07 | F193: 205.33 | G193: 202.92 | H193: 211.22 | I193: 213.63 | J193: 215.37 | K193: 211.9 | L193: 207.75 | M193: 11.42036
A194: 185 | B194: TATAMTRDVR | C194: 102.25 | D194: 101.63 | E194: 99.77 | F194: 97.28 | G194: 95.42 | H194: 104.12 | I194: 105.98 | J194: 108.47 | K194: 103.5 | L194: 99.15 | M194: 116.28421
A195: 186 | B195: TATAMOTORS | C195: 216.05 | D195: 213.02 | E195: 208.63 | F195: 201.22 | G195: 196.83 | H195: 220.43 | I195: 224.82 | J195: 232.23 | K195: 217.4 | L195: 205.6 | M195: 693.49488
A196: 187 | B196: TATAPOWER | C196: 70.9 | D196: 71.57 | E196: 69.93 | F196: 68.97 | G196: 67.33 | H196: 72.53 | I196: 74.17 | J196: 75.13 | K196: 73.2 | L196: 70.6 | M196: 63.6033
A197: 188 | B197: TATASTEEL | C197: 544.4 | D197: 548.50 | E197: 537.60 | F197: 530.80 | G197: 519.90 | H197: 555.30 | I197: 566.20 | J197: 573.00 | K197: 559.4 | L197: 541.7 | M197: 78.89153
A198: 189 | B198: TECHM | C198: 790.25 | D198: 791.73 | E198: 784.52 | F198: 778.78 | G198: 771.57 | H198: 797.47 | I198: 804.68 | J198: 810.42 | K198: 798.95 | L198: 786 | M198: 24.97013
A199: 190 | B199: RAMCOCEM | C199: 756.7 | D199: 754.13 | E199: 746.57 | F199: 736.43 | G199: 728.87 | H199: 764.27 | I199: 771.83 | J199: 781.97 | K199: 761.7 | L199: 744 | M199: 1.47126
A200: 191 | B200: TITAN | C200: 1100.2 | D200: 1096.23 | E200: 1087.47 | F200: 1074.73 | G200: 1065.97 | H200: 1108.97 | I200: 1117.73 | J200: 1130.47 | K200: 1105 | L200: 1083.5 | M200: 16.12236
A201: 192 | B201: TORNTPHARM | C201: 1861.85 | D201: 1856.90 | E201: 1841.80 | F201: 1821.75 | G201: 1806.65 | H201: 1876.95 | I201: 1892.05 | J201: 1912.10 | K201: 1872 | L201: 1836.85 | M201: 3.17317
A202: 193 | B202: TORNTPOWER | C202: 254.8 | D202: 255.88 | E202: 253.07 | F202: 251.33 | G202: 248.52 | H202: 257.62 | I202: 260.43 | J202: 262.17 | K202: 258.7 | L202: 254.15 | M202: 8.96117
A203: 194 | B203: UPL | C203: 925.95 | D203: 931.62 | E203: 917.73 | F203: 909.52 | G203: 895.63 | H203: 939.83 | I203: 953.72 | J203: 961.93 | K203: 945.5 | L203: 923.4 | M203: 15.40216
A204: 195 | B204: ULTRACEMCO | C204: 4131.05 | D204: 4140.33 | E204: 4110.72 | F204: 4090.38 | G204: 4060.77 | H204: 4160.67 | I204: 4190.28 | J204: 4210.62 | K204: 4169.95 | L204: 4120 | M204: 2.31779
A205: 196 | B205: UNIONBANK | C205: 93.6 | D205: 94.23 | E205: 92.62 | F205: 91.63 | G205: 90.02 | H205: 95.22 | I205: 96.83 | J205: 97.82 | K205: 95.85 | L205: 93.25 | M205: 87.2101
... 29 more rows

Sheet MidCap Intra
L5: Back To Main Page
A6: FOR INTRA DAY TRADING | K6: =Main!B10 -> 2019-04-11
A9: Sr.no | B9: Scrip | C9: CLOSE RATE | D9: Pivot Point | E9: Supports | H9: Resistances
C10: Point | E10: S1 | F10: S2 | G10: S3 | H10: R1 | I10: R2 | J10: R3 | K10: HIGH | L10: LOW | M10: Total Trade Quanity in Lakhs
A11: 1 | B11: 3MINDIA | C11: 24294.3 | D11: 24096.23 | E11: 23592.47 | F11: 22890.63 | G11: 22386.87 | H11: 24798.07 | I11: 25301.83 | J11: 26003.67 | K11: 24600 | L11: 23394.4 | M11: 0.0421
A12: 2 | B12: 8KMILES | C12: 103.8 | D12: 103.48 | E12: 101.47 | F12: 99.13 | G12: 97.12 | H12: 105.82 | I12: 107.83 | J12: 110.17 | K12: 105.5 | L12: 101.15 | M12: 1.88739
A13: 3 | B13: AARTIIND | C13: 1640.2 | D13: 1646.85 | E13: 1619.00 | F13: 1597.80 | G13: 1569.95 | H13: 1668.05 | I13: 1695.90 | J13: 1717.10 | K13: 1674.7 | L13: 1625.65 | M13: 0.80498
A14: 4 | B14: ABAN | C14: 58.25 | D14: 58.53 | E14: 57.72 | F14: 57.18 | G14: 56.37 | H14: 59.07 | I14: 59.88 | J14: 60.42 | K14: 59.35 | L14: 58 | M14: 0.33968
A15: 5 | B15: ABB | C15: 1381.55 | D15: 1386.52 | E15: 1366.03 | F15: 1350.52 | G15: 1330.03 | H15: 1402.03 | I15: 1422.52 | J15: 1438.03 | K15: 1407 | L15: 1371 | M15: 0.68864
A16: 6 | B16: ABCAPITAL | C16: 96.65 | D16: 97.12 | E16: 95.93 | F16: 95.22 | G16: 94.03 | H16: 97.83 | I16: 99.02 | J16: 99.73 | K16: 98.3 | L16: 96.4 | M16: 14.07939
A17: 7 | B17: ABFRL | C17: 222.7 | D17: 222.07 | E17: 220.13 | F17: 217.57 | G17: 215.63 | H17: 224.63 | I17: 226.57 | J17: 229.13 | K17: 224 | L17: 219.5 | M17: 7.28505
A18: 8 | B18: ACC | C18: 1636.65 | D18: 1640.85 | E18: 1625.80 | F18: 1614.95 | G18: 1599.90 | H18: 1651.70 | I18: 1666.75 | J18: 1677.60 | K18: 1655.9 | L18: 1630 | M18: 5.59285
A19: 9 | B19: ADANIPORTS | C19: 383.45 | D19: 381.35 | E19: 377.30 | F19: 371.15 | G19: 367.10 | H19: 387.50 | I19: 391.55 | J19: 397.70 | K19: 385.4 | L19: 375.2 | M19: 20.67637
A20: 10 | B20: ADANIPOWER | C20: 49.05 | D20: 49.42 | E20: 48.43 | F20: 47.82 | G20: 46.83 | H20: 50.03 | I20: 51.02 | J20: 51.63 | K20: 50.4 | L20: 48.8 | M20: 80.75543
A21: 11 | B21: ADANITRANS | C21: 216.8 | D21: 218.72 | E21: 214.08 | F21: 211.37 | G21: 206.73 | H21: 221.43 | I21: 226.07 | J21: 228.78 | K21: 223.35 | L21: 216 | M21: 0.65891
A22: 12 | B22: ADVENZYMES | C22: 187.45 | D22: 189.70 | E22: 184.65 | F22: 181.85 | G22: 176.80 | H22: 192.50 | I22: 197.55 | J22: 200.35 | K22: 194.75 | L22: 186.9 | M22: 1.66718
A23: 13 | B23: AEGISCHEM | C23: 209.85 | D23: 209.72 | E23: 207.43 | F23: 205.02 | G23: 202.73 | H23: 212.13 | I23: 214.42 | J23: 216.83 | K23: 212 | L23: 207.3 | M23: 1.13808
A24: 14 | B24: AIAENG | C24: 1798.95 | D24: 1786.67 | E24: 1773.28 | F24: 1747.62 | G24: 1734.23 | H24: 1812.33 | I24: 1825.72 | J24: 1851.38 | K24: 1800.05 | L24: 1761 | M24: 0.72676
A25: 15 | B25: AJANTPHARM | C25: 1013.9 | D25: 1015.47 | E25: 1006.98 | F25: 1000.07 | G25: 991.58 | H25: 1022.38 | I25: 1030.87 | J25: 1037.78 | K25: 1023.95 | L25: 1008.55 | M25: 2.12712
A26: 16 | B26: AKZOINDIA | C26: 1780.6 | D26: 1788.27 | E26: 1762.83 | F26: 1745.07 | G26: 1719.63 | H26: 1806.03 | I26: 1831.47 | J26: 1849.23 | K26: 1813.7 | L26: 1770.5 | M26: 0.01134
A27: 17 | B27: ALBK | C27: 53.25 | D27: 53.37 | E27: 52.73 | F27: 52.22 | G27: 51.58 | H27: 53.88 | I27: 54.52 | J27: 55.03 | K27: 54 | L27: 52.85 | M27: 50.51753
A28: 18 | B28: ALKEM | C28: 1742.2 | D28: 1744.85 | E28: 1727.35 | F28: 1712.50 | G28: 1695.00 | H28: 1759.70 | I28: 1777.20 | J28: 1792.05 | K28: 1762.35 | L28: 1730 | M28: 0.47515
A29: 19 | B29: ALLCARGO | C29: 114.55 | D29: 113.92 | E29: 112.38 | F29: 110.22 | G29: 108.68 | H29: 116.08 | I29: 117.62 | J29: 119.78 | K29: 115.45 | L29: 111.75 | M29: 2.5713
A30: 20 | B30: AMARAJABAT | C30: 684.55 | D30: 680.05 | E30: 670.60 | F30: 656.65 | G30: 647.20 | H30: 694.00 | I30: 703.45 | J30: 717.40 | K30: 689.5 | L30: 666.1 | M30: 8.66695
A31: 21 | B31: AMBUJACEM | C31: 223.9 | D31: 224.87 | E31: 222.08 | F31: 220.27 | G31: 217.48 | H31: 226.68 | I31: 229.47 | J31: 231.28 | K31: 227.65 | L31: 223.05 | M31: 14.89964
A32: 22 | B32: ANDHRABANK | C32: 29.25 | D32: 29.37 | E32: 28.98 | F32: 28.72 | G32: 28.33 | H32: 29.63 | I32: 30.02 | J32: 30.28 | K32: 29.75 | L32: 29.1 | M32: 9.29497
A33: 23 | B33: APLAPOLLO | C33: 1483.9 | D33: 1487.97 | E33: 1465.93 | F33: 1447.97 | G33: 1425.93 | H33: 1505.93 | I33: 1527.97 | J33: 1545.93 | K33: 1510 | L33: 1470 | M33: 0.40842
A34: 24 | B34: APLLTD | C34: 537.6 | D34: 538.43 | E34: 534.37 | F34: 531.13 | G34: 527.07 | H34: 541.67 | I34: 545.73 | J34: 548.97 | K34: 542.5 | L34: 535.2 | M34: 0.05999
A35: 25 | B35: APOLLOHOSP | C35: 1246.25 | D35: 1252.10 | E35: 1234.45 | F35: 1222.65 | G35: 1205.00 | H35: 1263.90 | I35: 1281.55 | J35: 1293.35 | K35: 1269.75 | L35: 1240.3 | M35: 2.51194
A36: 26 | B36: APOLLOTYRE | C36: 216.1 | D36: 216.95 | E36: 214.65 | F36: 213.20 | G36: 210.90 | H36: 218.40 | I36: 220.70 | J36: 222.15 | K36: 219.25 | L36: 215.5 | M36: 15.8207
A37: 27 | B37: ARVIND | C37: 88.15 | D37: 88.85 | E37: 87.10 | F37: 86.05 | G37: 84.30 | H37: 89.90 | I37: 91.65 | J37: 92.70 | K37: 90.6 | L37: 87.8 | M37: 21.82593
A38: 28 | B38: ASAHIINDIA | C38: 250.15 | D38: 250.02 | E38: 247.13 | F38: 244.12 | G38: 241.23 | H38: 253.03 | I38: 255.92 | J38: 258.93 | K38: 252.9 | L38: 247 | M38: 0.16247
A39: 29 | B39: ASHOKA | C39: 129.35 | D39: 130.28 | E39: 128.07 | F39: 126.78 | G39: 124.57 | H39: 131.57 | I39: 133.78 | J39: 135.07 | K39: 132.5 | L39: 129 | M39: 0.9215
A40: 30 | B40: ASHOKLEY | C40: 91.55 | D40: 91.42 | E40: 90.53 | F40: 89.52 | G40: 88.63 | H40: 92.43 | I40: 93.32 | J40: 94.33 | K40: 92.3 | L40: 90.4 | M40: 280.21324
A41: 31 | B41: ASIANPAINT | C41: 1409.85 | D41: 1422.07 | E41: 1393.13 | F41: 1376.42 | G41: 1347.48 | H41: 1438.78 | I41: 1467.72 | J41: 1484.43 | K41: 1451 | L41: 1405.35 | M41: 26.08319
A42: 32 | B42: ASTRAL | C42: 1192.85 | D42: 1193.95 | E42: 1185.55 | F42: 1178.25 | G42: 1169.85 | H42: 1201.25 | I42: 1209.65 | J42: 1216.95 | K42: 1202.35 | L42: 1186.65 | M42: 0.11788
A43: 33 | B43: ATUL | C43: 3534.05 | D43: 3520.00 | E43: 3494.00 | F43: 3453.95 | G43: 3427.95 | H43: 3560.05 | I43: 3586.05 | J43: 3626.10 | K43: 3546 | L43: 3479.95 | M43: 0.07087
A44: 34 | B44: AUBANK | C44: 585.55 | D44: 587.65 | E44: 581.40 | F44: 577.25 | G44: 571.00 | H44: 591.80 | I44: 598.05 | J44: 602.20 | K44: 593.9 | L44: 583.5 | M44: 2.15777
A45: 35 | B45: AUROPHARMA | C45: 790.05 | D45: 790.58 | E45: 779.72 | F45: 769.38 | G45: 758.52 | H45: 800.92 | I45: 811.78 | J45: 822.12 | K45: 801.45 | L45: 780.25 | M45: 23.41755
A46: 36 | B46: AVANTIFEED | C46: 393.55 | D46: 394.18 | E46: 391.92 | F46: 390.28 | G46: 388.02 | H46: 395.82 | I46: 398.08 | J46: 399.72 | K46: 396.45 | L46: 392.55 | M46: 2.08008
A47: 37 | B47: AXISBANK | C47: 760.85 | D47: 762.25 | E47: 756.60 | F47: 752.35 | G47: 746.70 | H47: 766.50 | I47: 772.15 | J47: 776.40 | K47: 767.9 | L47: 758 | M47: 59.3325
A48: 38 | B48: BAJAJ-AUTO | C48: 2942.9 | D48: 2935.08 | E48: 2918.17 | F48: 2893.43 | G48: 2876.52 | H48: 2959.82 | I48: 2976.73 | J48: 3001.47 | K48: 2952 | L48: 2910.35 | M48: 5.30788
A49: 39 | B49: BAJAJCON | C49: 318.2 | D49: 318.90 | E49: 314.80 | F49: 311.40 | G49: 307.30 | H49: 322.30 | I49: 326.40 | J49: 329.80 | K49: 323 | L49: 315.5 | M49: 1.71775
A50: 40 | B50: BAJAJELEC | C50: 550.05 | D50: 548.33 | E50: 542.72 | F50: 535.38 | G50: 529.77 | H50: 555.67 | I50: 561.28 | J50: 568.62 | K50: 553.95 | L50: 541 | M50: 2.23876
A51: 41 | B51: BAJAJFINSV | C51: 7423.3 | D51: 7404.43 | E51: 7363.87 | F51: 7304.43 | G51: 7263.87 | H51: 7463.87 | I51: 7504.43 | J51: 7563.87 | K51: 7445 | L51: 7345 | M51: 1.65487
A52: 42 | B52: BAJAJHIND | C52: 9.15 | D52: 9.25 | E52: 8.95 | F52: 8.75 | G52: 8.45 | H52: 9.45 | I52: 9.75 | J52: 9.95 | K52: 9.55 | L52: 9.05 | M52: 18.45465
A53: 43 | B53: BAJAJHLDNG | C53: 3304.75 | D53: 3309.23 | E53: 3270.52 | F53: 3236.28 | G53: 3197.57 | H53: 3343.47 | I53: 3382.18 | J53: 3416.42 | K53: 3347.95 | L53: 3275 | M53: 0.14305
A54: 44 | B54: BAJFINANCE | C54: 2998.35 | D54: 3007.12 | E54: 2977.23 | F54: 2956.12 | G54: 2926.23 | H54: 3028.23 | I54: 3058.12 | J54: 3079.23 | K54: 3037 | L54: 2986 | M54: 9.94899
A55: 45 | B55: BALKRISIND | C55: 966 | D55: 970.75 | E55: 958.50 | F55: 951.00 | G55: 938.75 | H55: 978.25 | I55: 990.50 | J55: 998.00 | K55: 983 | L55: 963.25 | M55: 2.80925
A56: 46 | B56: BALLARPUR | C56: 3 | D56: 3.03 | E56: 2.87 | F56: 2.73 | G56: 2.57 | H56: 3.17 | I56: 3.33 | J56: 3.47 | K56: 3.2 | L56: 2.9 | M56: 30.30383
A57: 47 | B57: BALMLAWRIE | C57: 181.85 | D57: 182.67 | E57: 180.88 | F57: 179.92 | G57: 178.13 | H57: 183.63 | I57: 185.42 | J57: 186.38 | K57: 184.45 | L57: 181.7 | M57: 0.23878
A58: 48 | B58: BALRAMCHIN | C58: 136.1 | D58: 136.20 | E58: 134.70 | F58: 133.30 | G58: 131.80 | H58: 137.60 | I58: 139.10 | J58: 140.50 | K58: 137.7 | L58: 134.8 | M58: 21.21624
A59: 49 | B59: BANKBARODA | C59: 129.7 | D59: 130.50 | E59: 128.30 | F59: 126.90 | G59: 124.70 | H59: 131.90 | I59: 134.10 | J59: 135.50 | K59: 132.7 | L59: 129.1 | M59: 157.17985
A60: 50 | B60: BANKINDIA | C60: 100.5 | D60: 101.40 | E60: 99.30 | F60: 98.10 | G60: 96.00 | H60: 102.60 | I60: 104.70 | J60: 105.90 | K60: 103.5 | L60: 100.2 | M60: 81.7634
A61: 51 | B61: BASF | C61: 1398.9 | D61: 1401.83 | E61: 1388.07 | F61: 1377.23 | G61: 1363.47 | H61: 1412.67 | I61: 1426.43 | J61: 1437.27 | K61: 1415.6 | L61: 1391 | M61: 0.10114
A62: 52 | B62: BATAINDIA | C62: 1392.6 | D62: 1396.47 | E62: 1385.48 | F62: 1378.37 | G62: 1367.38 | H62: 1403.58 | I62: 1414.57 | J62: 1421.68 | K62: 1407.45 | L62: 1389.35 | M62: 3.81272
A63: 53 | B63: BBTC | C63: 1283.7 | D63: 1285.15 | E63: 1275.55 | F63: 1267.40 | G63: 1257.80 | H63: 1293.30 | I63: 1302.90 | J63: 1311.05 | K63: 1294.75 | L63: 1277 | M63: 0.26451
A64: 54 | B64: BEL | C64: 95.55 | D64: 95.75 | E64: 94.70 | F64: 93.85 | G64: 92.80 | H64: 96.60 | I64: 97.65 | J64: 98.50 | K64: 96.8 | L64: 94.9 | M64: 72.49763
A65: 55 | B65: BEML | C65: 972.7 | D65: 972.20 | E65: 962.70 | F65: 952.70 | G65: 943.20 | H65: 982.20 | I65: 991.70 | J65: 1001.70 | K65: 981.7 | L65: 962.2 | M65: 12.35557
A66: 56 | B66: BERGEPAINT | C66: 321.3 | D66: 322.43 | E66: 317.87 | F66: 314.43 | G66: 309.87 | H66: 325.87 | I66: 330.43 | J66: 333.87 | K66: 327 | L66: 319 | M66: 8.29256
A67: 57 | B67: BFUTILITIE | C67: 212.25 | D67: 213.92 | E67: 208.83 | F67: 205.42 | G67: 200.33 | H67: 217.33 | I67: 222.42 | J67: 225.83 | K67: 219 | L67: 210.5 | M67: 8.1108
A68: 58 | B68: BGRENERGY | C68: 60.75 | D68: 61.25 | E68: 60.10 | F68: 59.45 | G68: 58.30 | H68: 61.90 | I68: 63.05 | J68: 63.70 | K68: 62.4 | L68: 60.6 | M68: 0.71388
A69: 59 | B69: BHARATFIN | C69: 1104.75 | D69: 1106.88 | E69: 1095.87 | F69: 1086.98 | G69: 1075.97 | H69: 1115.77 | I69: 1126.78 | J69: 1135.67 | K69: 1117.9 | L69: 1098 | M69: 2.92264
A70: 60 | B70: BHARATFORG | C70: 497.9 | D70: 500.80 | E70: 493.15 | F70: 488.40 | G70: 480.75 | H70: 505.55 | I70: 513.20 | J70: 517.95 | K70: 508.45 | L70: 496.05 | M70: 5.5407
A71: 61 | B71: BHARTIARTL | C71: 340 | D71: 344.13 | E71: 333.87 | F71: 327.73 | G71: 317.47 | H71: 350.27 | I71: 360.53 | J71: 366.67 | K71: 354.4 | L71: 338 | M71: 42.89454
A72: 62 | B72: BHEL | C72: 72.2 | D72: 72.40 | E72: 71.50 | F72: 70.80 | G72: 69.90 | H72: 73.10 | I72: 74.00 | J72: 74.70 | K72: 73.3 | L72: 71.7 | M72: 108.4268
A73: 63 | B73: BIOCON | C73: 627.8 | D73: 626.12 | E73: 615.48 | F73: 603.17 | G73: 592.53 | H73: 638.43 | I73: 649.07 | J73: 661.38 | K73: 636.75 | L73: 613.8 | M73: 24.19841
A74: 64 | B74: BIRLACORPN | C74: 504.85 | D74: 505.15 | E74: 500.30 | F74: 495.75 | G74: 490.90 | H74: 509.70 | I74: 514.55 | J74: 519.10 | K74: 510 | L74: 500.6 | M74: 0.50178
A75: 65 | B75: BLISSGVS | C75: 176 | D75: 176.58 | E75: 174.32 | F75: 172.63 | G75: 170.37 | H75: 178.27 | I75: 180.53 | J75: 182.22 | K75: 178.85 | L75: 174.9 | M75: 8.74136
A76: 66 | B76: BLUEDART | C76: 3279.9 | D76: 3279.02 | E76: 3258.03 | F76: 3236.17 | G76: 3215.18 | H76: 3300.88 | I76: 3321.87 | J76: 3343.73 | K76: 3300 | L76: 3257.15 | M76: 0.00972
A77: 67 | B77: BLUESTARCO | C77: 686.45 | D77: 688.15 | E77: 681.30 | F77: 676.15 | G77: 669.30 | H77: 693.30 | I77: 700.15 | J77: 705.30 | K77: 695 | L77: 683 | M77: 0.84647
A78: 68 | B78: BOMDYEING | C78: 136.4 | D78: 137.10 | E78: 134.30 | F78: 132.20 | G78: 129.40 | H78: 139.20 | I78: 142.00 | J78: 144.10 | K78: 139.9 | L78: 135 | M78: 14.48738
A79: 69 | B79: BOSCHLTD | C79: 17788.65 | D79: 17807.12 | E79: 17731.53 | F79: 17674.42 | G79: 17598.83 | H79: 17864.23 | I79: 17939.82 | J79: 17996.93 | K79: 17882.7 | L79: 17750 | M79: 0.08167
A80: 70 | B80: BPCL | C80: 357.75 | D80: 356.95 | E80: 353.90 | F80: 350.05 | G80: 347.00 | H80: 360.80 | I80: 363.85 | J80: 367.70 | K80: 360 | L80: 353.1 | M80: 41.1688
A81: 71 | B81: BRFL | C81: 9.05 | D81: 9.07 | E81: 8.93 | F81: 8.82 | G81: 8.68 | H81: 9.18 | I81: 9.32 | J81: 9.43 | K81: 9.2 | L81: 8.95 | M81: 0.14964
A82: 72 | B82: BRIGADE | C82: 250.35 | D82: 249.95 | E82: 247.40 | F82: 244.45 | G82: 241.90 | H82: 252.90 | I82: 255.45 | J82: 258.40 | K82: 252.5 | L82: 247 | M82: 0.83482
A83: 73 | B83: BRITANNIA | C83: 2958.8 | D83: 2968.37 | E83: 2941.73 | F83: 2924.67 | G83: 2898.03 | H83: 2985.43 | I83: 3012.07 | J83: 3029.13 | K83: 2995 | L83: 2951.3 | M83: 3.77556
A84: 74 | B84: BSE | C84: 623.25 | D84: 624.10 | E84: 620.40 | F84: 617.55 | G84: 613.85 | H84: 626.95 | I84: 630.65 | J84: 633.50 | K84: 627.8 | L84: 621.25 | M84: 1.05287
A85: 75 | B85: BSOFT | C85: 99.15 | D85: 99.65 | E85: 97.80 | F85: 96.45 | G85: 94.60 | H85: 101.00 | I85: 102.85 | J85: 104.20 | K85: 101.5 | L85: 98.3 | M85: 6.46769
A86: 77 | B86: CADILAHC | C86: 343.4 | D86: 343.85 | E86: 338.80 | F86: 334.20 | G86: 329.15 | H86: 348.45 | I86: 353.50 | J86: 358.10 | K86: 348.9 | L86: 339.25 | M86: 9.98246
A87: 78 | B87: CANBK | C87: 281.55 | D87: 282.92 | E87: 278.98 | F87: 276.42 | G87: 272.48 | H87: 285.48 | I87: 289.42 | J87: 291.98 | K87: 286.85 | L87: 280.35 | M87: 56.24832
A88: 79 | B88: CANFINHOME | C88: 347.4 | D88: 350.98 | E88: 342.67 | F88: 337.93 | G88: 329.62 | H88: 355.72 | I88: 364.03 | J88: 368.77 | K88: 359.3 | L88: 346.25 | M88: 12.23167
A89: 80 | B89: CAPLIPOINT | C89: 379.7 | D89: 381.68 | E89: 374.67 | F89: 369.63 | G89: 362.62 | H89: 386.72 | I89: 393.73 | J89: 398.77 | K89: 388.7 | L89: 376.65 | M89: 0.29994
A90: 81 | B90: CARBORUNIV | C90: 380 | D90: 379.20 | E90: 376.05 | F90: 372.10 | G90: 368.95 | H90: 383.15 | I90: 386.30 | J90: 390.25 | K90: 382.35 | L90: 375.25 | M90: 1.60504
A91: 82 | B91: CARERATING | C91: 990 | D91: 992.05 | E91: 987.10 | F91: 984.20 | G91: 979.25 | H91: 994.95 | I91: 999.90 | J91: 1002.80 | K91: 997 | L91: 989.15 | M91: 0.08231
A92: 83 | B92: CASTROLIND | C92: 165.15 | D92: 165.80 | E92: 163.90 | F92: 162.65 | G92: 160.75 | H92: 167.05 | I92: 168.95 | J92: 170.20 | K92: 167.7 | L92: 164.55 | M92: 8.61566
A93: 84 | B93: CCL | C93: 276.65 | D93: 278.05 | E93: 274.10 | F93: 271.55 | G93: 267.60 | H93: 280.60 | I93: 284.55 | J93: 287.10 | K93: 282 | L93: 275.5 | M93: 0.21512
A94: 85 | B94: CDSL | C94: 234.85 | D94: 235.15 | E94: 233.30 | F94: 231.75 | G94: 229.90 | H94: 236.70 | I94: 238.55 | J94: 240.10 | K94: 237 | L94: 233.6 | M94: 0.76113
A95: 86 | B95: CEATLTD | C95: 1098.6 | D95: 1098.05 | E95: 1087.15 | F95: 1075.70 | G95: 1064.80 | H95: 1109.50 | I95: 1120.40 | J95: 1131.85 | K95: 1108.95 | L95: 1086.6 | M95: 3.54096
A96: 87 | B96: CENTRALBK | C96: 34.45 | D96: 34.65 | E96: 34.20 | F96: 33.95 | G96: 33.50 | H96: 34.90 | I96: 35.35 | J96: 35.60 | K96: 35.1 | L96: 34.4 | M96: 3.97792
A97: 88 | B97: CENTURYPLY | C97: 194.5 | D97: 195.63 | E97: 192.37 | F97: 190.23 | G97: 186.97 | H97: 197.77 | I97: 201.03 | J97: 203.17 | K97: 198.9 | L97: 193.5 | M97: 5.17037
A98: 89 | B98: CENTURYTEX | C98: 899.1 | D98: 894.63 | E98: 884.77 | F98: 870.43 | G98: 860.57 | H98: 908.97 | I98: 918.83 | J98: 933.17 | K98: 904.5 | L98: 880.3 | M98: 4.11674
A99: 90 | B99: CERA | C99: 2833.45 | D99: 2819.48 | E99: 2738.97 | F99: 2644.48 | G99: 2563.97 | H99: 2913.97 | I99: 2994.48 | J99: 3088.97 | K99: 2900 | L99: 2725 | M99: 0.09439
A100: 91 | B100: CGPOWER | C100: 38.5 | D100: 38.78 | E100: 38.12 | F100: 37.73 | G100: 37.07 | H100: 39.17 | I100: 39.83 | J100: 40.22 | K100: 39.45 | L100: 38.4 | M100: 43.33592
A101: 92 | B101: CHAMBLFERT | C101: 165.05 | D101: 164.50 | E101: 162.55 | F101: 160.05 | G101: 158.10 | H101: 167.00 | I101: 168.95 | J101: 171.45 | K101: 166.45 | L101: 162 | M101: 3.03823
A102: 93 | B102: CHENNPETRO | C102: 254.75 | D102: 254.92 | E102: 251.83 | F102: 248.92 | G102: 245.83 | H102: 257.83 | I102: 260.92 | J102: 263.83 | K102: 258 | L102: 252 | M102: 2.04109
A103: 94 | B103: CHOLAFIN | C103: 1472.5 | D103: 1481.60 | E103: 1458.20 | F103: 1443.90 | G103: 1420.50 | H103: 1495.90 | I103: 1519.30 | J103: 1533.60 | K103: 1505 | L103: 1467.3 | M103: 2.51229
A104: 95 | B104: CIPLA | C104: 546.45 | D104: 543.00 | E104: 534.25 | F104: 522.05 | G104: 513.30 | H104: 555.20 | I104: 563.95 | J104: 576.15 | K104: 551.75 | L104: 530.8 | M104: 59.92326
A105: 96 | B105: COALINDIA | C105: 240.05 | D105: 240.45 | E105: 238.00 | F105: 235.95 | G105: 233.50 | H105: 242.50 | I105: 244.95 | J105: 247.00 | K105: 242.9 | L105: 238.4 | M105: 86.5756
A106: 97 | B106: COCHINSHIP | C106: 399.7 | D106: 401.22 | E106: 396.98 | F106: 394.27 | G106: 390.03 | H106: 403.93 | I106: 408.17 | J106: 410.88 | K106: 405.45 | L106: 398.5 | M106: 1.18088
A107: 98 | B107: COFFEEDAY | C107: 273.8 | D107: 274.97 | E107: 271.98 | F107: 270.17 | G107: 267.18 | H107: 276.78 | I107: 279.77 | J107: 281.58 | K107: 277.95 | L107: 273.15 | M107: 0.73963
A108: 99 | B108: COLPAL | C108: 1213.4 | D108: 1220.28 | E108: 1203.32 | F108: 1193.23 | G108: 1176.27 | H108: 1230.37 | I108: 1247.33 | J108: 1257.42 | K108: 1237.25 | L108: 1210.2 | M108: 4.69806
A109: 100 | B109: CONCOR | C109: 519.4 | D109: 520.12 | E109: 514.73 | F109: 510.07 | G109: 504.68 | H109: 524.78 | I109: 530.17 | J109: 534.83 | K109: 525.5 | L109: 515.45 | M109: 8.4071
A110: 101 | B110: COROMANDEL | C110: 427.7 | D110: 429.53 | E110: 415.82 | F110: 403.93 | G110: 390.22 | H110: 441.42 | I110: 455.13 | J110: 467.02 | K110: 443.25 | L110: 417.65 | M110: 9.88066
A111: 102 | B111: COX&KINGS | C111: 134.85 | D111: 136.38 | E111: 132.87 | F111: 130.88 | G111: 127.37 | H111: 138.37 | I111: 141.88 | J111: 143.87 | K111: 139.9 | L111: 134.4 | M111: 5.61257
A112: 103 | B112: CRISIL | C112: 1485.55 | D112: 1475.38 | E112: 1455.77 | F112: 1425.98 | G112: 1406.37 | H112: 1505.17 | I112: 1524.78 | J112: 1554.57 | K112: 1495 | L112: 1445.6 | M112: 0.07556
A113: 104 | B113: CROMPTON | C113: 227.65 | D113: 226.73 | E113: 223.92 | F113: 220.18 | G113: 217.37 | H113: 230.47 | I113: 233.28 | J113: 237.02 | K113: 229.55 | L113: 223 | M113: 5.62112
A114: 105 | B114: CUB | C114: 200.05 | D114: 200.18 | E114: 198.42 | F114: 196.78 | G114: 195.02 | H114: 201.82 | I114: 203.58 | J114: 205.22 | K114: 201.95 | L114: 198.55 | M114: 3.38792
A115: 106 | B115: CUMMINSIND | C115: 747.65 | D115: 741.93 | E115: 732.97 | F115: 718.28 | G115: 709.32 | H115: 756.62 | I115: 765.58 | J115: 780.27 | K115: 750.9 | L115: 727.25 | M115: 4.02937
A116: 107 | B116: CYIENT | C116: 592.65 | D116: 595.57 | E116: 588.28 | F116: 583.92 | G116: 576.63 | H116: 599.93 | I116: 607.22 | J116: 611.58 | K116: 602.85 | L116: 591.2 | M116: 1.47018
A117: 108 | B117: DABUR | C117: 403.3 | D117: 404.43 | E117: 400.12 | F117: 396.93 | G117: 392.62 | H117: 407.62 | I117: 411.93 | J117: 415.12 | K117: 408.75 | L117: 401.25 | M117: 28.61296
A118: 109 | B118: DBCORP | C118: 196.1 | D118: 195.25 | E118: 193.15 | F118: 190.20 | G118: 188.10 | H118: 198.20 | I118: 200.30 | J118: 203.25 | K118: 197.35 | L118: 192.3 | M118: 0.35327
A119: 110 | B119: DBL | C119: 620.55 | D119: 622.85 | E119: 608.70 | F119: 596.85 | G119: 582.70 | H119: 634.70 | I119: 648.85 | J119: 660.70 | K119: 637 | L119: 611 | M119: 2.84378
A120: 111 | B120: DBREALTY | C120: 18.05 | D120: 18.17 | E120: 17.53 | F120: 17.02 | G120: 16.38 | H120: 18.68 | I120: 19.32 | J120: 19.83 | K120: 18.8 | L120: 17.65 | M120: 5.13988
A121: 112 | B121: DCAL | C121: 234.55 | D121: 234.23 | E121: 228.42 | F121: 222.28 | G121: 216.47 | H121: 240.37 | I121: 246.18 | J121: 252.32 | K121: 240.05 | L121: 228.1 | M121: 5.27373
A122: 113 | B122: DCBBANK | C122: 197.35 | D122: 197.82 | E122: 195.93 | F122: 194.52 | G122: 192.63 | H122: 199.23 | I122: 201.12 | J122: 202.53 | K122: 199.7 | L122: 196.4 | M122: 6.28675
A123: 114 | B123: DCMSHRIRAM | C123: 404.15 | D123: 405.32 | E123: 401.83 | F123: 399.52 | G123: 396.03 | H123: 407.63 | I123: 411.12 | J123: 413.43 | K123: 408.8 | L123: 403 | M123: 0.29431
A124: 115 | B124: DEEPAKFERT | C124: 134.7 | D124: 134.32 | E124: 132.68 | F124: 130.67 | G124: 129.03 | H124: 136.33 | I124: 137.97 | J124: 139.98 | K124: 135.95 | L124: 132.3 | M124: 2.35023
A125: 116 | B125: DELTACORP | C125: 257.25 | D125: 258.40 | E125: 254.85 | F125: 252.45 | G125: 248.90 | H125: 260.80 | I125: 264.35 | J125: 266.75 | K125: 261.95 | L125: 256 | M125: 11.54661
A126: 117 | B126: DEN | C126: 67.7 | D126: 68.18 | E126: 67.02 | F126: 66.33 | G126: 65.17 | H126: 68.87 | I126: 70.03 | J126: 70.72 | K126: 69.35 | L126: 67.5 | M126: 0.82554
A127: 118 | B127: DHFL | C127: 167.65 | D127: 168.42 | E127: 163.93 | F127: 160.22 | G127: 155.73 | H127: 172.13 | I127: 176.62 | J127: 180.33 | K127: 172.9 | L127: 164.7 | M127: 309.86439
A128: 119 | B128: DISHTV | C128: 37.45 | D128: 37.20 | E128: 36.60 | F128: 35.75 | G128: 35.15 | H128: 38.05 | I128: 38.65 | J128: 39.50 | K128: 37.8 | L128: 36.35 | M128: 154.80073
A129: 120 | B129: DIVISLAB | C129: 1722.55 | D129: 1720.35 | E129: 1708.20 | F129: 1693.85 | G129: 1681.70 | H129: 1734.70 | I129: 1746.85 | J129: 1761.20 | K129: 1732.5 | L129: 1706 | M129: 4.84391
A130: 121 | B130: DIXON | C130: 2404 | D130: 2419.67 | E130: 2354.33 | F130: 2304.67 | G130: 2239.33 | H130: 2469.33 | I130: 2534.67 | J130: 2584.33 | K130: 2485 | L130: 2370 | M130: 0.35023
A131: 122 | B131: DLF | C131: 180.1 | D131: 183.45 | E131: 175.70 | F131: 171.30 | G131: 163.55 | H131: 187.85 | I131: 195.60 | J131: 200.00 | K131: 191.2 | L131: 179.05 | M131: 223.51331
A132: 123 | B132: DMART | C132: 1522.3 | D132: 1507.60 | E132: 1485.70 | F132: 1449.10 | G132: 1427.20 | H132: 1544.20 | I132: 1566.10 | J132: 1602.70 | K132: 1529.5 | L132: 1471 | M132: 9.83484
A133: 124 | B133: DREDGECORP | C133: 415.2 | D133: 416.43 | E133: 410.47 | F133: 405.73 | G133: 399.77 | H133: 421.17 | I133: 427.13 | J133: 431.87 | K133: 422.4 | L133: 411.7 | M133: 1.50957
A134: 125 | B134: DRREDDY | C134: 2765 | D134: 2782.33 | E134: 2728.77 | F134: 2692.53 | G134: 2638.97 | H134: 2818.57 | I134: 2872.13 | J134: 2908.37 | K134: 2835.9 | L134: 2746.1 | M134: 10.77211
A135: 126 | B135: ECLERX | C135: 1126.35 | D135: 1127.23 | E135: 1124.22 | F135: 1122.08 | G135: 1119.07 | H135: 1129.37 | I135: 1132.38 | J135: 1134.52 | K135: 1130.25 | L135: 1125.1 | M135: 0.18275
A136: 127 | B136: EDELWEISS | C136: 187.95 | D136: 188.02 | E136: 185.48 | F136: 183.02 | G136: 180.48 | H136: 190.48 | I136: 193.02 | J136: 195.48 | K136: 190.55 | L136: 185.55 | M136: 10.3438
A137: 128 | B137: EICHERMOT | C137: 20973.75 | D137: 20901.25 | E137: 20722.50 | F137: 20471.25 | G137: 20292.50 | H137: 21152.50 | I137: 21331.25 | J137: 21582.50 | K137: 21080 | L137: 20650 | M137: 0.8355
A138: 129 | B138: EIDPARRY | C138: 204.75 | D138: 205.38 | E138: 203.42 | F138: 202.08 | G138: 200.12 | H138: 206.72 | I138: 208.68 | J138: 210.02 | K138: 207.35 | L138: 204.05 | M138: 0.4643
A139: 130 | B139: EIHOTEL | C139: 193.05 | D139: 194.02 | E139: 189.13 | F139: 185.22 | G139: 180.33 | H139: 197.93 | I139: 202.82 | J139: 206.73 | K139: 198.9 | L139: 190.1 | M139: 3.47984
A140: 131 | B140: EMAMILTD | C140: 406.25 | D140: 404.92 | E140: 401.93 | F140: 397.62 | G140: 394.63 | H140: 409.23 | I140: 412.22 | J140: 416.53 | K140: 407.9 | L140: 400.6 | M140: 1.19254
A141: 132 | B141: ENDURANCE | C141: 1167.05 | D141: 1168.97 | E141: 1163.18 | F141: 1159.32 | G141: 1153.53 | H141: 1172.83 | I141: 1178.62 | J141: 1182.48 | K141: 1174.75 | L141: 1165.1 | M141: 0.785
A142: 133 | B142: ENGINERSIN | C142: 116.15 | D142: 116.90 | E142: 114.90 | F142: 113.65 | G142: 111.65 | H142: 118.15 | I142: 120.15 | J142: 121.40 | K142: 118.9 | L142: 115.65 | M142: 23.59234
A143: 134 | B143: EQUITAS | C143: 134.15 | D143: 133.32 | E143: 131.33 | F143: 128.52 | G143: 126.53 | H143: 136.13 | I143: 138.12 | J143: 140.93 | K143: 135.3 | L143: 130.5 | M143: 13.718
A144: 135 | B144: ERIS | C144: 630.75 | D144: 631.67 | E144: 625.38 | F144: 620.02 | G144: 613.73 | H144: 637.03 | I144: 643.32 | J144: 648.68 | K144: 637.95 | L144: 626.3 | M144: 0.10442
A145: 136 | B145: EROSMEDIA | C145: 78 | D145: 78.35 | E145: 77.20 | F145: 76.40 | G145: 75.25 | H145: 79.15 | I145: 80.30 | J145: 81.10 | K145: 79.5 | L145: 77.55 | M145: 3.34467
A146: 137 | B146: ESCORTS | C146: 776.45 | D146: 776.88 | E146: 768.92 | F146: 761.38 | G146: 753.42 | H146: 784.42 | I146: 792.38 | J146: 799.92 | K146: 784.85 | L146: 769.35 | M146: 14.85707
A147: 138 | B147: EVEREADY | C147: 187.4 | D147: 187.43 | E147: 184.97 | F147: 182.53 | G147: 180.07 | H147: 189.87 | I147: 192.33 | J147: 194.77 | K147: 189.9 | L147: 185 | M147: 1.34013
A148: 139 | B148: EXIDEIND | C148: 219.9 | D148: 219.47 | E148: 217.13 | F148: 214.37 | G148: 212.03 | H148: 222.23 | I148: 224.57 | J148: 227.33 | K148: 221.8 | L148: 216.7 | M148: 18.06792
A149: 140 | B149: FCONSUMER | C149: 43.25 | D149: 43.72 | E149: 42.43 | F149: 41.62 | G149: 40.33 | H149: 44.53 | I149: 45.82 | J149: 46.63 | K149: 45 | L149: 42.9 | M149: 17.61041
A150: 141 | B150: FEDERALBNK | C150: 97.8 | D150: 98.08 | E150: 97.07 | F150: 96.33 | G150: 95.32 | H150: 98.82 | I150: 99.83 | J150: 100.57 | K150: 99.1 | L150: 97.35 | M150: 97.69893
A151: 142 | B151: FINCABLES | C151: 481.95 | D151: 484.62 | E151: 477.33 | F151: 472.72 | G151: 465.43 | H151: 489.23 | I151: 496.52 | J151: 501.13 | K151: 491.9 | L151: 480 | M151: 0.24817
A152: 143 | B152: FINPIPE | C152: 485.45 | D152: 487.32 | E152: 481.08 | F152: 476.72 | G152: 470.48 | H152: 491.68 | I152: 497.92 | J152: 502.28 | K152: 493.55 | L152: 482.95 | M152: 0.10325
A153: 144 | B153: FLFL | C153: 483.45 | D153: 476.50 | E153: 468.00 | F153: 452.55 | G153: 444.05 | H153: 491.95 | I153: 500.45 | J153: 515.90 | K153: 485 | L153: 461.05 | M153: 1.34058
A154: 145 | B154: FSL | C154: 52.3 | D154: 52.28 | E154: 51.62 | F154: 50.93 | G154: 50.27 | H154: 52.97 | I154: 53.63 | J154: 54.32 | K154: 52.95 | L154: 51.6 | M154: 48.49308
A155: 146 | B155: GAIL | C155: 337.7 | D155: 339.70 | E155: 335.05 | F155: 332.40 | G155: 327.75 | H155: 342.35 | I155: 347.00 | J155: 349.65 | K155: 344.35 | L155: 337.05 | M155: 25.48368
A156: 147 | B156: GATI | C156: 79.25 | D156: 79.70 | E156: 78.55 | F156: 77.85 | G156: 76.70 | H156: 80.40 | I156: 81.55 | J156: 82.25 | K156: 80.85 | L156: 79 | M156: 8.81128
A157: 148 | B157: GDL | C157: 135.45 | D157: 136.32 | E157: 134.03 | F157: 132.62 | G157: 130.33 | H157: 137.73 | I157: 140.02 | J157: 141.43 | K157: 138.6 | L157: 134.9 | M157: 0.33506
A158: 149 | B158: GEPIL | C158: 865.65 | D158: 865.22 | E158: 840.43 | F158: 815.22 | G158: 790.43 | H158: 890.43 | I158: 915.22 | J158: 940.43 | K158: 890 | L158: 840 | M158: 0.4625
A159: 150 | B159: GESHIP | C159: 302.8 | D159: 302.93 | E159: 299.07 | F159: 295.33 | G159: 291.47 | H159: 306.67 | I159: 310.53 | J159: 314.27 | K159: 306.8 | L159: 299.2 | M159: 1.09459
A160: 151 | B160: GET&D | C160: 276.75 | D160: 276.73 | E160: 273.02 | F160: 269.28 | G160: 265.57 | H160: 280.47 | I160: 284.18 | J160: 287.92 | K160: 280.45 | L160: 273 | M160: 0.74774
A161: 152 | B161: GHCL | C161: 238.75 | D161: 239.85 | E161: 236.90 | F161: 235.05 | G161: 232.10 | H161: 241.70 | I161: 244.65 | J161: 246.50 | K161: 242.8 | L161: 238 | M161: 0.79461
A162: 153 | B162: GICRE | C162: 248.9 | D162: 250.17 | E162: 246.73 | F162: 244.57 | G162: 241.13 | H162: 252.33 | I162: 255.77 | J162: 257.93 | K162: 253.6 | L162: 248 | M162: 0.46411
A163: 154 | B163: GILLETTE | C163: 6962.1 | D163: 6959.63 | E163: 6929.27 | F163: 6896.43 | G163: 6866.07 | H163: 6992.47 | I163: 7022.83 | J163: 7055.67 | K163: 6990 | L163: 6926.8 | M163: 0.04333
A164: 155 | B164: GLAXO | C164: 1298 | D164: 1297.07 | E164: 1293.93 | F164: 1289.87 | G164: 1286.73 | H164: 1301.13 | I164: 1304.27 | J164: 1308.33 | K164: 1300.2 | L164: 1293 | M164: 0.16688
A165: 156 | B165: GLENMARK | C165: 649.9 | D165: 647.58 | E165: 640.32 | F165: 630.73 | G165: 623.47 | H165: 657.17 | I165: 664.43 | J165: 674.02 | K165: 654.85 | L165: 638 | M165: 3.85828
A166: 157 | B166: GMDCLTD | C166: 78.8 | D166: 79.03 | E166: 78.37 | F166: 77.93 | G166: 77.27 | H166: 79.47 | I166: 80.13 | J166: 80.57 | K166: 79.7 | L166: 78.6 | M166: 1.4797
A167: 158 | B167: GMRINFRA | C167: 18.45 | D167: 18.48 | E167: 18.07 | F167: 17.68 | G167: 17.27 | H167: 18.87 | I167: 19.28 | J167: 19.67 | K167: 18.9 | L167: 18.1 | M167: 155.61966
A168: 159 | B168: GNFC | C168: 331 | D168: 329.33 | E168: 324.67 | F168: 318.33 | G168: 313.67 | H168: 335.67 | I168: 340.33 | J168: 346.67 | K168: 334 | L168: 323 | M168: 3.58252
A169: 160 | B169: GODFRYPHLP | C169: 1159.6 | D169: 1141.43 | E169: 1118.17 | F169: 1076.73 | G169: 1053.47 | H169: 1182.87 | I169: 1206.13 | J169: 1247.57 | K169: 1164.7 | L169: 1100 | M169: 6.38204
A170: 161 | B170: GODREJAGRO | C170: 507.2 | D170: 509.22 | E170: 503.48 | F170: 499.77 | G170: 494.03 | H170: 512.93 | I170: 518.67 | J170: 522.38 | K170: 514.95 | L170: 505.5 | M170: 1.20128
A171: 162 | B171: GODREJCP | C171: 663.25 | D171: 664.18 | E171: 659.92 | F171: 656.58 | G171: 652.32 | H171: 667.52 | I171: 671.78 | J171: 675.12 | K171: 668.45 | L171: 660.85 | M171: 35.85333
A172: 163 | B172: GODREJIND | C172: 529.2 | D172: 530.73 | E172: 525.47 | F172: 521.73 | G172: 516.47 | H172: 534.47 | I172: 539.73 | J172: 543.47 | K172: 536 | L172: 527 | M172: 1.60216
A173: 164 | B173: GODREJPROP | C173: 932.9 | D173: 924.07 | E173: 900.33 | F173: 867.77 | G173: 844.03 | H173: 956.63 | I173: 980.37 | J173: 1012.93 | K173: 947.8 | L173: 891.5 | M173: 11.83605
A174: 165 | B174: GPPL | C174: 95.8 | D174: 96.50 | E174: 94.40 | F174: 93.00 | G174: 90.90 | H174: 97.90 | I174: 100.00 | J174: 101.40 | K174: 98.6 | L174: 95.1 | M174: 3.07331
A175: 166 | B175: GRANULES | C175: 112.7 | D175: 112.47 | E175: 111.73 | F175: 110.77 | G175: 110.03 | H175: 113.43 | I175: 114.17 | J175: 115.13 | K175: 113.2 | L175: 111.5 | M175: 4.52826
A176: 167 | B176: GRAPHITE | C176: 462.05 | D176: 459.32 | E176: 444.23 | F176: 426.42 | G176: 411.33 | H176: 477.13 | I176: 492.22 | J176: 510.03 | K176: 474.4 | L176: 441.5 | M176: 32.06578
A177: 168 | B177: GRASIM | C177: 847.3 | D177: 846.43 | E177: 839.12 | F177: 830.93 | G177: 823.62 | H177: 854.62 | I177: 861.93 | J177: 870.12 | K177: 853.75 | L177: 838.25 | M177: 8.74178
A178: 169 | B178: GREAVESCOT | C178: 150.55 | D178: 150.72 | E178: 147.03 | F178: 143.52 | G178: 139.83 | H178: 154.23 | I178: 157.92 | J178: 161.43 | K178: 154.4 | L178: 147.2 | M178: 5.9389
A179: 170 | B179: GREENPLY | C179: 169.75 | D179: 169.87 | E179: 167.88 | F179: 166.02 | G179: 164.03 | H179: 171.73 | I179: 173.72 | J179: 175.58 | K179: 171.85 | L179: 168 | M179: 1.06131
A180: 171 | B180: GRUH | C180: 280 | D180: 281.82 | E180: 276.83 | F180: 273.67 | G180: 268.68 | H180: 284.98 | I180: 289.97 | J180: 293.13 | K180: 286.8 | L180: 278.65 | M180: 4.52594
A181: 172 | B181: GSFC | C181: 104.7 | D181: 104.78 | E181: 103.12 | F181: 101.53 | G181: 99.87 | H181: 106.37 | I181: 108.03 | J181: 109.62 | K181: 106.45 | L181: 103.2 | M181: 16.96035
A182: 173 | B182: GSKCONS | C182: 7097.2 | D182: 7090.07 | E182: 7047.13 | F182: 6997.07 | G182: 6954.13 | H182: 7140.13 | I182: 7183.07 | J182: 7233.13 | K182: 7133 | L182: 7040 | M182: 0.09541
A183: 174 | B183: GSPL | C183: 181.6 | D183: 180.70 | E183: 179.00 | F183: 176.40 | G183: 174.70 | H183: 183.30 | I183: 185.00 | J183: 187.60 | K183: 182.4 | L183: 178.1 | M183: 1.80518
A184: 175 | B184: GUJALKALI | C184: 482.4 | D184: 483.00 | E184: 479.45 | F184: 476.50 | G184: 472.95 | H184: 485.95 | I184: 489.50 | J184: 492.45 | K184: 486.55 | L184: 480.05 | M184: 0.34005
A185: 176 | B185: GUJFLUORO | C185: 1070.75 | D185: 1072.13 | E185: 1064.27 | F185: 1057.78 | G185: 1049.92 | H185: 1078.62 | I185: 1086.48 | J185: 1092.97 | K185: 1080 | L185: 1065.65 | M185: 0.10209
A186: 177 | B186: GUJGASLTD | C186: 152.4 | D186: 153.93 | E186: 150.07 | F186: 147.73 | G186: 143.87 | H186: 156.27 | I186: 160.13 | J186: 162.47 | K186: 157.8 | L186: 151.6 | M186: 3.08847
A187: 178 | B187: GULFOILLUB | C187: 875.6 | D187: 876.38 | E187: 873.37 | F187: 871.13 | G187: 868.12 | H187: 878.62 | I187: 881.63 | J187: 883.87 | K187: 879.4 | L187: 874.15 | M187: 0.03286
A188: 179 | B188: GVKPIL | C188: 7.4 | D188: 7.38 | E188: 7.32 | F188: 7.23 | G188: 7.17 | H188: 7.47 | I188: 7.53 | J188: 7.62 | K188: 7.45 | L188: 7.3 | M188: 12.83565
A189: 180 | B189: HATHWAY | C189: 28.6 | D189: 28.62 | E189: 28.23 | F189: 27.87 | G189: 27.48 | H189: 28.98 | I189: 29.37 | J189: 29.73 | K189: 29 | L189: 28.25 | M189: 0.85209
A190: 181 | B190: HATSUN | C190: 759.85 | D190: 767.07 | E190: 749.13 | F190: 738.42 | G190: 720.48 | H190: 777.78 | I190: 795.72 | J190: 806.43 | K190: 785 | L190: 756.35 | M190: 0.25481
A191: 182 | B191: HAVELLS | C191: 757.5 | D191: 758.45 | E191: 751.95 | F191: 746.40 | G191: 739.90 | H191: 764.00 | I191: 770.50 | J191: 776.05 | K191: 764.95 | L191: 752.9 | M191: 8.98792
A192: 183 | B192: HCC | C192: 14.3 | D192: 14.37 | E192: 14.08 | F192: 13.87 | G192: 13.58 | H192: 14.58 | I192: 14.87 | J192: 15.08 | K192: 14.65 | L192: 14.15 | M192: 23.53726
A193: 184 | B193: HCL-INSYS | C193: 17.55 | D193: 17.65 | E193: 17.40 | F193: 17.25 | G193: 17.00 | H193: 17.80 | I193: 18.05 | J193: 18.20 | K193: 17.9 | L193: 17.5 | M193: 4.72625
A194: 185 | B194: HCLTECH | C194: 1098.7 | D194: 1106.73 | E194: 1088.17 | F194: 1077.63 | G194: 1059.07 | H194: 1117.27 | I194: 1135.83 | J194: 1146.37 | K194: 1125.3 | L194: 1096.2 | M194: 24.13433
A195: 186 | B195: HDFC | C195: 2029.25 | D195: 2040.78 | E195: 2013.57 | F195: 1997.88 | G195: 1970.67 | H195: 2056.47 | I195: 2083.68 | J195: 2099.37 | K195: 2068 | L195: 2025.1 | M195: 30.36356
A196: 187 | B196: HDFCBANK | C196: 2237.35 | D196: 2250.78 | E196: 2217.57 | F196: 2197.78 | G196: 2164.57 | H196: 2270.57 | I196: 2303.78 | J196: 2323.57 | K196: 2284 | L196: 2231 | M196: 270.32175
A197: 188 | B197: HDIL | C197: 27.15 | D197: 27.28 | E197: 26.67 | F197: 26.18 | G197: 25.57 | H197: 27.77 | I197: 28.38 | J197: 28.87 | K197: 27.9 | L197: 26.8 | M197: 39.74389
A198: 189 | B198: HEG | C198: 2068.85 | D198: 2074.65 | E198: 2009.30 | F198: 1949.75 | G198: 1884.40 | H198: 2134.20 | I198: 2199.55 | J198: 2259.10 | K198: 2140 | L198: 2015.1 | M198: 6.4814
A199: 190 | B199: HEIDELBERG | C199: 177.75 | D199: 177.70 | E199: 175.50 | F199: 173.25 | G199: 171.05 | H199: 179.95 | I199: 182.15 | J199: 184.40 | K199: 179.9 | L199: 175.45 | M199: 1.25385
A200: 191 | B200: HERITGFOOD | C200: 507.9 | D200: 513.12 | E200: 496.18 | F200: 484.47 | G200: 467.53 | H200: 524.83 | I200: 541.77 | J200: 553.48 | K200: 530.05 | L200: 501.4 | M200: 0.80835
A201: 192 | B201: HEROMOTOCO | C201: 2594.4 | D201: 2600.07 | E201: 2581.13 | F201: 2567.87 | G201: 2548.93 | H201: 2613.33 | I201: 2632.27 | J201: 2645.53 | K201: 2619 | L201: 2586.8 | M201: 6.72025
A202: 193 | B202: HEXAWARE | C202: 347.35 | D202: 348.58 | E202: 344.67 | F202: 341.98 | G202: 338.07 | H202: 351.27 | I202: 355.18 | J202: 357.87 | K202: 352.5 | L202: 345.9 | M202: 11.56559
A203: 194 | B203: HFCL | C203: 22.75 | D203: 22.55 | E203: 22.10 | F203: 21.45 | G203: 21.00 | H203: 23.20 | I203: 23.65 | J203: 24.30 | K203: 23 | L203: 21.9 | M203: 46.28816
A204: 195 | B204: HIMATSEIDE | C204: 214.3 | D204: 215.47 | E204: 211.93 | F204: 209.57 | G204: 206.03 | H204: 217.83 | I204: 221.37 | J204: 223.73 | K204: 219 | L204: 213.1 | M204: 0.46542
A205: 196 | B205: HINDALCO | C205: 211.7 | D205: 212.70 | E205: 208.65 | F205: 205.60 | G205: 201.55 | H205: 215.75 | I205: 219.80 | J205: 222.85 | K205: 216.75 | L205: 209.65 | M205: 133.23115
A206: 197 | B206: HINDCOPPER | C206: 49.6 | D206: 49.88 | E206: 49.02 | F206: 48.43 | G206: 47.57 | H206: 50.47 | I206: 51.33 | J206: 51.92 | K206: 50.75 | L206: 49.3 | M206: 8.0653
... 304 more rows

Sheet Bulk Deals
E6: Back To Main Page
A7: Subject : | B7: BULK DEAL | D7: =Main!B10 -> 2019-04-11
A9: Date | B9: Scrip code | C9: Scrip Name | D9: Client Name | E9: Buy / Sell | F9: Quantity Traded | G9: Trade Price / Wt.Avg.trade price | H9: Exchange
A10: 2019-04-10 | B10: 542580 | C10: AARTECH | D10: MAHENDRAKUMAR HARJIVANDAS KHANDHAR | E10: SELL | F10: 48,000 | G10: 34.8 | H10: BSE
A11: 2019-04-10 | B11: 542580 | C11: AARTECH | D11: AKHILESH SHUKLA | E11: BUY | F11: 144,000 | G11: 35.33 | H11: BSE
A12: 2019-04-10 | B12: 542580 | C12: AARTECH | D12: MAHESH TOLANI | E12: SELL | F12: 140000 | G12: 35.34 | H12: BSE
A13: 2019-04-10 | B13: 540024 | C13: ASHARI | D13: PRADIP KUMAR | E13: SELL | F13: 118650 | G13: 9.32 | H13: BSE
A14: 2019-04-10 | B14: 540024 | C14: ASHARI | D14: SANJIV SURENDERSINGH VARMA | E14: BUY | F14: 53650 | G14: 9.32 | H14: BSE
A15: 2019-04-10 | B15: 537766 | C15: BCP | D15: ACHINTYA SECURITIES PVT. LTD. | E15: BUY | F15: 399644 | G15: 38.64 | H15: BSE
A16: 2019-04-10 | B16: 537766 | C16: BCP | D16: ACHINTYA SECURITIES PVT. LTD. | E16: SELL | F16: 399644 | G16: 38.21 | H16: BSE
A17: 2019-04-10 | B17: 540956 | C17: BHATIA | D17: NEWEDGE VINIMAY PRIVATE LIMITED | E17: SELL | F17: 68000 | G17: 81.86 | H17: BSE
A18: 2019-04-10 | B18: 540903 | C18: CRPRISK | D18: KUSUM JAGANNATH PARCHURE | E18: BUY | F18: 100000 | G18: 38 | H18: BSE
A19: 2019-04-10 | B19: 540903 | C19: CRPRISK | D19: BIJAL HIMANSHU GANDHI | E19: BUY | F19: 16000 | G19: 36 | H19: BSE
A20: 2019-04-10 | B20: 540903 | C20: CRPRISK | D20: BIJAL HIMANSHU GANDHI | E20: SELL | F20: 98000 | G20: 38.01 | H20: BSE
A21: 2019-04-10 | B21: 540945 | C21: FSSPL | D21: DIPAK GANPATBHAI SAKARIYA | E21: SELL | F21: 76000 | G21: 4.35 | H21: BSE
A22: 2019-04-10 | B22: 540134 | C22: IISL | D22: SONAM PANKAJKUMAR SHAH | E22: SELL | F22: 70000 | G22: 19.25 | H22: BSE
A23: 2019-04-10 | B23: 540134 | C23: IISL | D23: SHRI SANJAY J SHAH HUF | E23: BUY | F23: 70,000 | G23: 19.25 | H23: BSE
A24: 2019-04-10 | B24: 502901 | C24: JAMSHRI | D24: SUNDAE CAPITAL ADVISORS PRIVATE LIMITED | E24: SELL | F24: 750 | G24: 2213.2 | H24: BSE
A25: 2019-04-10 | B25: 531206 | C25: KWALITYCL | D25: RUCHIKA GOYAL | E25: BUY | F25: 25,018 | G25: 12.65 | H25: BSE
A26: 2019-04-10 | B26: 540401 | C26: MAXIMUS | D26: MUKESH BABULAL SHAH | E26: SELL | F26: 138,000 | G26: 32.6 | H26: BSE
A27: 2019-04-10 | B27: 540401 | C27: MAXIMUS | D27: ARYAMAN BROKING LIMITED | E27: BUY | F27: 174,000 | G27: 32.68 | H27: BSE
A28: 2019-04-10 | B28: 540401 | C28: MAXIMUS | D28: SHAH MUKESHKUMAR BABULAL | E28: SELL | F28: 66,000 | G28: 32.97 | H28: BSE
A29: 2019-04-10 | B29: 540243 | C29: NEWLIGHT | D29: MANISH NITIN THAKUR | E29: BUY | F29: 27,054 | G29: 46.13 | H29: BSE
A30: 2019-04-10 | B30: 540243 | C30: NEWLIGHT | D30: BHAVESH HASHMUKHLAL SHAH . | E30: BUY | F30: 670 | G30: 45.68 | H30: BSE
A31: 2019-04-10 | B31: 540243 | C31: NEWLIGHT | D31: BHAVESH HASHMUKHLAL SHAH . | E31: SELL | F31: 18,369 | G31: 46.44 | H31: BSE
A32: 2019-04-10 | B32: 540416 | C32: OCTAWARE | D32: S K GROWTH FUND PVT LTD | E32: BUY | F32: 22,400 | G32: 99 | H32: BSE
A33: 2019-04-10 | B33: 540416 | C33: OCTAWARE | D33: ARYAMAN BROKING LIMITED | E33: SELL | F33: 54,400 | G33: 97.05 | H33: BSE
A34: 2019-04-10 | B34: 540416 | C34: OCTAWARE | D34: HIRAL AMARKUMAR SHAH | E34: BUY | F34: 35,200 | G34: 95.71 | H34: BSE
A35: 2019-04-10 | B35: 540198 | C35: OSIAJEE | D35: DULCET ADVISORY PRIVATE LIMITED . | E35: SELL | F35: 30,000 | G35: 13.4 | H35: BSE
A36: 2019-04-10 | B36: 539814 | C36: RADHEY | D36: BHUMIKA APURVA SHAH | E36: BUY | F36: 35,000 | G36: 15.13 | H36: BSE
A37: 2019-04-10 | B37: 539814 | C37: RADHEY | D37: DKC TRADING PRIVATE LIMITED | E37: SELL | F37: 20000 | G37: 15.12 | H37: BSE
A38: 2019-04-10 | B38: 539814 | C38: RADHEY | D38: GAGANBASE VINCOM PRIVATE LIMITED | E38: SELL | F38: 30000 | G38: 15.13 | H38: BSE
A39: 2019-04-10 | B39: 541634 | C39: RAWEDGE | D39: ANAND KUMAR NATHMAL GADODIA | E39: BUY | F39: 46400 | G39: 69.86 | H39: BSE
A40: 2019-04-10 | B40: 541634 | C40: RAWEDGE | D40: NNM SECURITIES PVT LTD | E40: BUY | F40: 56000 | G40: 69.77 | H40: BSE
A41: 2019-04-10 | B41: 541634 | C41: RAWEDGE | D41: NEWEDGE VINIMAY PRIVATE LIMITED | E41: SELL | F41: 126400 | G41: 69.82 | H41: BSE
A42: 2019-04-10 | B42: 534734 | C42: RMCHEM | D42: ASHARI AGENCIES LIMITED | E42: BUY | F42: 1250000 | G42: 1.61 | H42: BSE
A43: 2019-04-10 | B43: 539520 | C43: SHAILJA | D43: HIMANSHU SHAH | E43: BUY | F43: 30000 | G43: 20.75 | H43: BSE
A44: 2019-04-10 | B44: 539520 | C44: SHAILJA | D44: SAMIR PRAKASH MEHTA | E44: BUY | F44: 14778 | G44: 20.78 | H44: BSE
A45: 2019-04-10 | B45: 539520 | C45: SHAILJA | D45: SAMIR PRAKASH MEHTA | E45: SELL | F45: 34388 | G45: 20.81 | H45: BSE
A46: 2019-04-10 | B46: 539520 | C46: SHAILJA | D46: YASH MANISH MEHTA | E46: BUY | F46: 54255 | G46: 20.84 | H46: BSE
A47: 2019-04-10 | B47: 539520 | C47: SHAILJA | D47: MUNISH SAGGAR & SON (HUF) | E47: BUY | F47: 48000 | G47: 20.75 | H47: BSE
A48: 2019-04-10 | B48: 539520 | C48: SHAILJA | D48: MUNISH SAGGAR & SON (HUF) | E48: SELL | F48: 32000 | G48: 20.88 | H48: BSE
A49: 2019-04-10 | B49: 540736 | C49: SIDDH | D49: MINAKSHI SINGH | E49: BUY | F49: 140000 | G49: 37.77 | H49: BSE
A50: 2019-04-10 | B50: 540736 | C50: SIDDH | D50: MINAKSHI SINGH | E50: SELL | F50: 100000 | G50: 38.12 | H50: BSE
A51: 2019-04-10 | B51: 540736 | C51: SIDDH | D51: SUNIL KRISHNAKUMAR AGARWAL | E51: SELL | F51: 104000 | G51: 35.47 | H51: BSE
A52: 2019-04-10 | B52: 540736 | C52: SIDDH | D52: VINAY SHANTARAM BHAGWAT | E52: SELL | F52: 112000 | G52: 33.89 | H52: BSE
A53: 2019-04-10 | B53: 540084 | C53: SPICY | D53: PUSHKAR VINAYAK DATE | E53: SELL | F53: 90000 | G53: 8.59 | H53: BSE
A54: 2019-04-10 | B54: 540084 | C54: SPICY | D54: PUSHKAR VINAYAK DATE | E54: SELL | F54: 90000 | G54: 9.5 | H54: BSE
A55: 2019-04-10 | B55: 540084 | C55: SPICY | D55: BRAJA GOPAL PAL | E55: SELL | F55: 190000 | G55: 9.72 | H55: BSE
A56: 2019-04-10 | B56: 540084 | C56: SPICY | D56: BRAJA GOPAL PAL | E56: SELL | F56: 90000 | G56: 8.59 | H56: BSE
A57: 2019-04-10 | B57: 532090 | C57: VANDANA | D57: KAILASH INANI | E57: SELL | F57: 1538466 | G57: 0.21 | H57: BSE
A58: 2019-04-10 | B58: 532090 | C58: VANDANA | D58: GAYATRI DEVI BIYANI | E58: SELL | F58: 1539800 | G58: 0.21 | H58: BSE
A59: 2019-04-10 | B59: 532090 | C59: VANDANA | D59: TRUSHA PRANAY MEHTA | E59: SELL | F59: 1900000 | G59: 0.21 | H59: BSE
A60: 2019-04-10 | B60: 532090 | C60: VANDANA | D60: MAHENDRAKUMAR GIRIDHARLAL JAIN | E60: SELL | F60: 584000 | G60: 0.21 | H60: BSE
A61: 2019-04-10 | B61: 539222 | C61: VMV | D61: DINGLE VINCOM PRIVATE LIMITED | E61: SELL | F61: 60000 | G61: 13.93 | H61: BSE
A62: 2019-04-10 | B62: 531211 | C62: WELLNESS | D62: GOVINDARAJU RAMALINGAM NAGHESEN | E62: SELL | F62: 16700 | G62: 13.49 | H62: BSE
A63: 2019-04-10 | B63: 531211 | C63: WELLNESS | D63: SEERANGAN KUMAR | E63: SELL | F63: 22500 | G63: 13.53 | H63: BSE
A64: 2019-04-10 | B64: 538128 | C64: WOMENSNEXT | D64: UPSURGE INVESTMENT AND FINANCE LTD | E64: SELL | F64: 76000 | G64: 6.05 | H64: BSE
A65: 2019-04-10 | B65: DHFL | C65: Dewan Housing Fin Corp | D65: TOWER RESEARCH CAPITAL MARKETS INDIA PRIVATE LIMITED | E65: BUY | F65: 2128346 | G65: 169.24 | H65: NSE
A66: 2019-04-10 | B66: HITECH | C66: Hi-Tech Pipes Limited | D66: BLUELOTUS CAPITAL ADVISORS LLP | E66: BUY | F66: 55000 | G66: 266.18 | H66: NSE
A67: 2019-04-10 | B67: JETAIRWAYS | C67: Jet Airways (India) Ltd. | D67: TOWER RESEARCH CAPITAL MARKETS INDIA PRIVATE LIMITED | E67: BUY | F67: 1053410 | G67: 267.2 | H67: NSE
A68: 2019-04-10 | B68: PCJEWELLER | C68: PC Jeweller Ltd | D68: CARLINA LTD | E68: BUY | F68: 3700000 | G68: 94.68 | H68: NSE
A69: 2019-04-10 | B69: RMDRIP | C69: R M Drip & Sprink Sys Ltd | D69: BRAJA GOPAL PAL | E69: BUY | F69: 30000 | G69: 48.89 | H69: NSE
A70: 2019-04-10 | B70: RMDRIP | C70: R M Drip & Sprink Sys Ltd | D70: YASH MANISH MEHTA | E70: BUY | F70: 44000 | G70: 46.5 | H70: NSE
A71: 2019-04-10 | B71: SHIRPUR-G | C71: Agee Gold Refiners Ltd. | D71: SHAH VARSHA PRAKASHCHANDRA | E71: BUY | F71: 154000 | G71: 27.82 | H71: NSE
A72: 2019-04-10 | B72: SILGO | C72: Silgo Retail Limited | D72: VANITA CHORDIA | E72: BUY | F72: 27000 | G72: 36.5 | H72: NSE
A73: 2019-04-10 | B73: URAVI | C73: Uravi T And Wedg Lamp Ltd | D73: WHITE DIAMAND MEDIA AND ADVERTISMENT PRIVATE LIMITED | E73: BUY | F73: 63600 | G73: 108 | H73: NSE
A74: 2019-04-10 | B74: VIKASECO | C74: Vikas EcoTech Limited | D74: VOLGA INTERNATIONAL LIMITED | E74: BUY | F74: 2092433 | G74: 12.29 | H74: NSE
A75: 2019-04-10 | B75: DHFL | C75: Dewan Housing Fin Corp | D75: TOWER RESEARCH CAPITAL MARKETS INDIA PRIVATE LIMITED | E75: SELL | F75: 2128346 | G75: 169.23 | H75: NSE
A76: 2019-04-10 | B76: JETAIRWAYS | C76: Jet Airways (India) Ltd. | D76: TOWER RESEARCH CAPITAL MARKETS INDIA PRIVATE LIMITED | E76: SELL | F76: 1053410 | G76: 267.27 | H76: NSE
A77: 2019-04-10 | B77: RMDRIP | C77: R M Drip & Sprink Sys Ltd | D77: BRAJA GOPAL PAL | E77: SELL | F77: 58000 | G77: 47 | H77: NSE
A78: 2019-04-10 | B78: SILGO | C78: Silgo Retail Limited | D78: OVERSKUD MULTI ASSET MANAGEMENT PRIVATE LIMITED | E78: SELL | F78: 27000 | G78: 36.5 | H78: NSE
A79: 2019-04-10 | B79: SUULD | C79: Suumaya Lifestyle Limited | D79: ANAND KUMAR NATHMAL GADODIA | E79: SELL | F79: 288000 | G79: 28.66 | H79: NSE
A80: 2019-04-10 | B80: SUULD | C80: Suumaya Lifestyle Limited | D80: SANJEEV HARBANSLAL BHATIA | E80: SELL | F80: 152000 | G80: 28.75 | H80: NSE
A81: 2019-04-10 | B81: URAVI | C81: Uravi T And Wedg Lamp Ltd | D81: JIGNESH AMRITLAL PATEL | E81: SELL | F81: 33600 | G81: 108 | H81: NSE
A82: 2019-04-10 | B82: VIKASECO | C82: Vikas EcoTech Limited | D82: VOLGA INTERNATIONAL LIMITED | E82: SELL | F82: 2092433 | G82: 12.38 | H82: NSE

Sheet Call Tracker (Equity & F&O)
M5: Back To Main Page
A6: Retail Research Technical Calls & Fundamental Performance Report for the month of April -2019
M7: =Main!B10 -> 2019-04-11
B8: Positional Call
A9: Sr.no | B9: Date | D9: Company | E9: Rec | F9: Rec Price | G9: Stop Loss*** | H9: Call Closed At | I9: Target | J9: Remark | K9: Profit / Loss per Share | L9: Gain / Loss % | M9: Status | N9: Closed Date | O9: NSE Closed Price
A10: 1 | B10: 2019-03-07 | D10: RAYMOND | E10: Sell | F10: 825-830 | G10: 888.8 | I10: 720-730 | J10: Open | O10: =VLOOKUP(D10,Sheet2!A16:M1811,6,0) -> 777.85 | R10: R
A11: 2 | B11: 2019-03-13 | D11: DLF | E11: Sell | F11: 193 | G11: 206.6 | H11: 206.6 | I11: 164-168 | J11: Loss of Rs.13.6/- | K11: =F11-H11 -> -13.6 | L11: =K11/F11 -> -7.05% | M11: Unsuccessful | N11: 2019-04-03 | R11: R
A12: 3 | B12: 2019-03-15 | D12: OFSS | E12: Buy | F12: 3395 | G12: 3250 | H12: 3497 | I12: 3650-3700 | J12: Profit of Rs.102/- | K12: =H12-F12 -> 102 | L12: =K12/F12 -> 3.00% | M12: Successful | N12: 2019-04-03 | R12: H
A13: 4 | B13: 2019-03-20 | D13: HEROMOTOCO | E13: Buy | F13: 2610-2630 | G13: 2490 | I13: 2850-2900 | J13: Open | O13: =VLOOKUP(D13,Sheet2!A19:M1814,6,0) -> 2594.4 | R13: H
A14: 5 | B14: 2019-03-25 | D14: MARUTI | E14: Buy | F14: 6600 | G14: 6290 | H14: 6940 | I14: 7000-7100 | J14: Profit of Rs.340/- | K14: =H14-F14 -> 340 | L14: =K14/F14 -> 5.15% | M14: Successful | N14: 2019-04-03 | R14: R
A15: 6 | B15: 2019-04-01 | D15: WIPRO | E15: Buy | F15: 258 | G15: 248 | H15: 268.5 | I15: 280 | J15: Profit of Rs.10.5/- | K15: 10.5 | L15: 4.07% | M15: Successful | N15: 2019-04-09 | R15: H
A16: 7 | B16: 2019-04-03 | D16: BOSCHLTD | E16: Buy | F16: 17950-18000 | G16: 16850 | I16: 19500-20000 | J16: Open | O16: =VLOOKUP(D16,Sheet2!A22:M1817,6,0) -> 17788.65 | R16: R
A17: 8 | B17: 2019-04-05 | D17: YESBANK | E17: Sell | F17: 274 | G17: 292 | H17: 259.5 | I17: 245-240 | J17: Profit of Rs.14.5/- | K17: =F17-H17 -> 14.5 | L17: =K17/F17 -> 5.29% | M17: Successful | N17: 2019-04-08 | R17: H
A18: 9 | B18: 2019-04-08 | D18: BERGEPAINT | E18: Sell | F18: 331 | G18: 343 | H18: 321 | I18: 310-300 | J18: Profit of Rs.10/- | K18: =F18-H18 -> 10 | L18: 3.02% | M18: Successful | N18: 2019-04-10 | R18: H
A19: 10 | B19: 2019-04-08 | D19: BAJFINANCE | E19: Sell | F19: 3000-3010 | G19: 3166.6 | I19: 2750-2700 | J19: Open | R19: R
A20: 11 | B20: 2019-04-10 | D20: JUBLFOOD | E20: Buy | F20: 1410-1420 | G20: 1348.8 | I20: 1550-1570 | J20: Open | R20: R
A21: 12 | B21: 2019-04-10 | D21: ASIANPAINT | E21: Buy | F21: 1410-1420 | G21: 1345 | I21: 1540-1560 | J21: Open | R21: H
A25: CLBS = Closing Basis *** | F25: Reinitiated $
A26: Dividend adjusted <> | F26: Revised stoploss #
A27: Part book {}
A28: Master Trade High Risk
A29: Sr.no | B29: Date | D29: Company | E29: Rec | F29: Rec Price | G29: Stop Loss | H29: Call Closed At | I29: Target | J29: Remark | K29: Profit / Loss per share | L29: Gain / Loss per Lot | M29: Lot | N29: Status | O29: Closed Date
A30: 1 | B30: 2019-04-04 | D30: MARUTI APR | E30: Sell | F30: 7155-7165 | G30: 7310 | I30: 6900-6800 | J30: Open | R30: R
A31: 2 | B31: 2019-04-04 | D31: UNIONBANK APR FUT | E31: Sell | F31: 95.5 | G31: 101 | H31: 95 | I31: 88 -87 | J31: Profit of Rs. 0.5 /- | K31: =F31-H31 -> 0.5 | L31: =M31*K31 -> 3500 | M31: 7000 | N31: Neutral | O31: 2019-04-04 | R31: H
A44: Master Trade Medium Risk
A45: Sr.no | B45: Date | D45: Company | E45: Rec | F45: Rec Price | G45: Stop Loss | H45: Call Closed At | I45: Target | J45: Remark | K45: Profit/ Loss per lot | L45: Gain / Loss per Lot | M45: Lot | N45: Status | O45: Closed Date
A46: 1 | B46: 2019-04-02 | D46: NIFTY 04-APR 11650 PE | E46: Buy | F46: 44.5 | G46: 18 | H46: 18 | I46: 120 | J46: Loss of Rs.26.5/- | K46: =H46-F46 -> -26.5 | L46: =M46*K46 -> -1987.5 | M46: 75 | N46: Unsuccessful | O46: 2019-04-03 | R46: H
A47: 2 | B47: 2019-04-04 | D47: NIFTY 11650 PE 11-APR | E47: Buy | F47: 76 | H47: 102.5 | J47: Profit of Rs.19/- | K47: =H47-F47 -> 26.5 | L47: =M47*19 -> 1425 | M47: 75 | N47: Successful | O47: 2019-04-04 | R47: H
D48: NIFTY 11500 PE 11-APR | E48: Sell | F48: 31.5 | H48: 39 | K48: =F48-H48 -> -7.5 | R48: H
A49: 3 | B49: 2019-04-04 | D49: TCS 2100 CE APR | E49: Buy | F49: 49.5 | G49: 37 | H49: 37 | I49: 70-75 | J49: Loss of Rs.12.5/- | K49: =H49-F49 -> -12.5 | L49: =M49*K49 -> -3125 | M49: 250 | N49: Unsuccessful | O49: 2019-04-04 | R49: H
A50: 4 | B50: 2019-04-04 | D50: NIFTY 4-APR 11650 PE | E50: Buy | F50: 11.5 | H50: 25 | I50: 40 | J50: Profit of Rs.13.5/- | K50: =H50-F50 -> 13.5 | L50: =K50*M50 -> 1012.5 | M50: 75 | N50: Successful | O50: 2019-04-04 | R50: N
A51: 5 | B51: 2019-04-05 | D51: Nifty 11650 PE 11-APR | E51: Buy | F51: 60 | H51: 88 | J51: Profit of Rs.23/- | K51: =H51-F51 -> 28 | L51: =M51*23 -> 1725 | M51: 75 | N51: Successful | O51: 2019-04-08 | R51: H
D52: Nifty 11500 PE 11-APR | E52: Sell | F52: 19 | H52: 24 | K52: =F52-H52 -> -5
A53: 6 | B53: 2019-04-08 | D53: BANKBARODA APR 120 PE | E53: Buy | F53: 1 | H53: 1.3 | I53: 4 | J53: Profit of Rs.0.3/- | K53: =H53-F53 -> 0.3 | L53: =K53*M53 -> 1200 | M53: 4000 | N53: Successful | O53: 2019-04-08 | R53: R
A54: 7 | B54: 2019-04-08 | D54: CIPLA 540 CE APR | E54: Buy | F54: 8 | G54: 4 | H54: 9.75 | I54: 15 | J54: Profit of Rs.1.75/- | K54: =H54-F54 -> 1.75 | L54: =K54*M54 -> 1750 | M54: 1000 | N54: Successful | O54: 2019-04-09 | R54: H
A55: 8 | B55: 2019-04-10 | D55: Nifty 11700 PE 18-APR | E55: Buy | F55: 83.5 | H55: 116 | J55: Profit of Rs.17.5/- | K55: =H55-F55 -> 32.5 | L55: =M55*17.5 -> 1312.5 | M55: 75 | N55: Successful | O55: 2019-04-10 | R55: H
D56: NIFTY 11550 PE 18-APR | E56: Sell | F56: 35 | H56: 50 | K56: =F56-H56 -> -15 | R56: H
A57: 9 | B57: 2019-04-10 | D57: HDFCBANK 2260 CE APR | E57: Buy | F57: 37-39 | J57: Open | R57: H
D58: HDFCBANK 2300 CE APR | E58: Sell | F58: 23-25 | R58: H
B62: Smart Delivery Trade
A63: Sr.no | B63: Date | D63: Company | E63: Rec | F63: Rec Price | G63: Stop Loss*** | H63: Call Closed At | I63: Target | J63: Remark | K63: Profit / Loss per Share | L63: Gain / Loss % | M63: Status | N63: Closed Date | O63: NSE Closed Price
A64: 1 | B64: 2019-03-08 | D64: NIITTECH | E64: Sell | F64: 1320 | G64: 1361.6 | H64: 1318 | I64: 1250-1240 | J64: Profit of Rs.2/- | K64: =F64-H64 -> 2 | L64: =K64/F64 -> 0.15% | M64: Neutral | N64: 2019-04-08 | R64: R
A65: 2 | B65: 2019-03-22 | D65: TATAGLOBAL | E65: Buy | F65: 200 | G65: 193.7 | H65: 206.75 | I65: 210-214 | J65: Profit of Rs.6.75/- | K65: =H65-F65 -> 6.75 | L65: =K65/F65 -> 3.38% | M65: Successful | N65: 2019-04-01 | R65: R
A66: 3 | B66: 2019-04-01 | D66: HINDUNILVR | E66: Buy | F66: 1695-1700 | G66: 1645 | I66: 1780-1800 | J66: Open | O66: =VLOOKUP(D66,Sheet2!A86:M1581,6,0) -> 1694.15 | R66: H
A67: 4 | B67: 2019-04-02 | D67: DABUR | E67: Buy | F67: 399-401 | G67: 387.7 | I67: 418-422 | J67: Open | O67: =VLOOKUP(D67,Sheet2!A87:M1582,6,0) -> 403.3 | R67: R
A68: 5 | B68: 2019-04-03 | D68: HDFC | E68: Buy | F68: 2010 | G68: 1945 | H68: 2056.5 | I68: 2100 | J68: Profit of Rs.46.5/- | K68: =H68-F68 -> 46.5 | L68: =K68/F68 -> 2.31% | M68: Successful | N68: 2019-04-05 | R68: H
A69: 6 | B69: 2019-04-03 | D69: ICICIBANK | E69: Sell | F69: 400 | G69: 412 | H69: 392.5 | I69: 380-375 | J69: Profit of Rs.7.5/- | K69: =F69-H69 -> 7.5 | L69: =K69/F69 -> 1.88% | M69: Successful | N69: 2019-04-03 | R69: H
A70: 7 | B70: 2019-04-03 | D70: ESCORTS | E70: Sell | F70: 772.5 | G70: 795 | H70: 753.5 | I70: 735-725 | J70: Profit of Rs.19/- | K70: =F70-H70 -> 19 | L70: =K70/F70 -> 2.46% | M70: Successful | N70: 2019-04-08 | R70: R
A71: 8 | B71: 2019-04-04 | D71: ENGINERSIN | E71: Sell | F71: 117-118 | G71: 122 | I71: 112-110 | J71: Open | O71: =VLOOKUP(D71,Sheet2!A91:M1586,6,0) -> 116.15 | R71: H
A72: 9 | B72: 2019-04-04 | D72: MUTHOOTFIN | E72: Sell | F72: 616.8 | G72: 635.6 | H72: 604 | I72: 585-575 | J72: Profit of Rs.12.8/- | K72: =F72-H72 -> 12.8 | L72: =K72/F72 -> 2.08% | M72: Successful | N72: 2019-04-04 | R72: R
A73: 10 | B73: 2019-04-04 | D73: BANKINDIA | E73: Sell | F73: 103.25 | G73: 107.5 | H73: 101 | I73: 95-93 | J73: Profit of Rs.2.25/- | K73: =F73-H73 -> 2.25 | L73: =K73/F73 -> 2.18% | M73: Successful | N73: 2019-04-04 | R73: H
A74: 11 | B74: 2019-04-09 | D74: BRITANNIA | E74: Buy | F74: 2940-2960 | G74: 2870 | I74: 3100 | J74: Open | O74: =VLOOKUP(D74,Sheet2!A94:M1589,6,0) -> 2958.8 | R74: H
A75: 12 | B75: 2019-04-10 | D75: BPCL | E75: Buy | F75: 356-359 | G75: 346 | I75: 378-382 | J75: Open | O75: =VLOOKUP(D75,Sheet2!A95:M1590,6,0) -> 357.75 | R75: R
A76: 13 | B76: 2019-04-10 | D76: RBLBANK | E76: Sell | F76: 675-677 | G76: 692 | I76: 650-645 | J76: Open | O76: =VLOOKUP(D76,Sheet2!A96:M1591,6,0) -> 674.05 | R76: H
A77: 14 | B77: 10 Apil | D77: TITAN | E77: Buy | F77: 1083-1087 | G77: 1048.6 | I77: 1155-1165 | J77: Open | O77: =VLOOKUP(D77,Sheet2!A97:M1592,6,0) -> 1100.2 | R77: R
A78: 15 | B78: 10 Apil | D78: ICICIBANK | E78: Sell | F78: 398-400 | G78: 412 | I78: 380-375 | J78: Open | O78: =VLOOKUP(D78,Sheet2!A98:M1593,6,0) -> 394.2 | R78: H
A79: 16 | B79: 10 Apil | D79: TECHM | E79: Buy | F79: 792-797 | G79: 766.6 | I79: 840-850 | J79: Open | O79: =VLOOKUP(D79,Sheet2!A99:M1594,6,0) -> 790.25 | R79: R
A82: CLBS = Closing Basis *** | F82: Reinitiated $
A83: Dividend adjusted <> | F83: Revised stoploss #
B86: Momentum Call
A87: Sr.no | B87: Date | D87: Company | E87: Rec | F87: Rec Price | G87: Stop Loss | H87: Call Closed At | I87: Target | J87: Remark | K87: Profit / Loss per Share/Lot | L87: Gain / Loss % | M87: Gain / Loss per Lot | N87: Lot | O87: Status
A88: 1 | B88: 2019-03-28 | D88: AMARAJABAT APR FUT | E88: Buy | F88: 726 | G88: 709 | H88: 737 | I88: 750 | J88: Profit of Rs.11/- | K88: =H88-F88 -> 11 | M88: =N88*K88 -> 7700 | N88: 700 | O88: Successful | P88: Closed Date | R88: N
A89: 2 | B89: 2019-04-01 | D89: GRASIM APR FUT | E89: Buy | F89: 870 | G89: 854 | H89: 854 | I89: 895 | J89: Loss of Rs.16/- | K89: =H89-F89 -> -16 | M89: -12000 | N89: 750 | O89: UnSuccessful | P89: 2019-04-01 | R89: N
A90: 3 | B90: 2019-04-01 | D90: TATAELXSI APR FUT | E90: Buy | F90: 973 | G90: 943 | H90: 990 | I90: 1010 | J90: Profit of Rs.17/- | K90: =H90-F90 -> 17 | M90: =N90*K90 -> 6800 | N90: 400 | O90: Successful | P90: 2019-04-02 | R90: N
A91: 4 | B91: 2019-04-01 | D91: MCDOWELL-N APR FUT | E91: Sell | F91: 554.5 | G91: 565 | H91: 551 | I91: 538 | J91: Profit of Rs.3.5/- | K91: =F91-H91 -> 3.5 | M91: =N91*K91 -> 4375 | N91: 1250 | O91: Successful | P91: 2019-04-02 | R91: N
A92: 5 | B92: 2019-04-02 | D92: HINDALCO APR FUT | E92: Sell | F92: 218.5 | G92: 221.6 | H92: 216 | I92: 212 | J92: Profit of Rs.2.5/- | K92: =F92-H92 -> 2.5 | M92: =N92*K92 -> 8750 | N92: 3500 | O92: Successful | P92: 2019-04-02 | R92: N
A93: 6 | B93: 2019-04-02 | D93: BHARTIARTL APR FUT | E93: Sell | F93: 361 | G93: 367.7 | H93: 356.5 | I93: 346-344 | J93: Profit of Rs.4.5/- | K93: =F93-H93 -> 4.5 | M93: =N93*K93 -> 7650 | N93: 1700 | O93: Successful | P93: 2019-04-02 | R93: R
A94: 7 | B94: 2019-04-02 | D94: TECHM APR FUT | E94: Buy | F94: 789.5 | G94: 779.5 | H94: 779.5 | I94: 805 | J94: Loss of Rs.10/- | K94: =H94-F94 -> -10 | M94: -12000 | N94: 1200 | O94: UnSuccessful | P94: 2019-04-02 | R94: N
A95: 8 | B95: 2019-04-03 | D95: BHARTIARTL APR FUT | E95: Sell | F95: 363 | G95: 369.7 | H95: 357.5 | I95: 346-344 | J95: Profit of Rs.5.5/- | K95: =F95-H95 -> 5.5 | M95: =N95*K95 -> 9350 | N95: 1700 | O95: Successful | P95: 2019-04-04 | R95: R
A96: 9 | B96: 2019-04-03 | D96: HINDALCO APR FUT | E96: Sell | F96: 219.5 | G96: 222.6 | H96: 216.75 | I96: 213 | J96: Profit of Rs.2.75/- | K96: =F96-H96 -> 2.75 | M96: 9625 | N96: 3500 | O96: Successful | P96: 2019-04-03 | R96: R
A97: 10 | B97: 2019-04-03 | D97: TVSMOTOR APR FUT | E97: Sell | F97: 489 | G97: 501 | H97: 481.5 | I97: 470 | J97: Profit of Rs.7.5/- | K97: =F97-H97 -> 7.5 | M97: =N97*K97 -> 7500 | N97: 1000 | O97: Successful | P97: 2019-04-03 | R97: N
A98: 11 | B98: 2019-04-04 | D98: BHARTIARTL APR FUT | E98: Sell | F98: 360.5 | G98: 367.7 | H98: 355.5 | I98: 346-344 | J98: Profit of Rs.5/- | K98: =F98-H98 -> 5 | M98: =N98*K98 -> 8500 | N98: 1700 | O98: Successful | P98: 2019-04-03 | R98: R
A99: 12 | B99: 2019-04-04 | D99: SBIN | E99: Sell | F99: 323 | G99: 332 | H99: 318.75 | I99: 305 | J99: Profit of Rs.4.25/- | K99: =F99-H99 -> 4.25 | L99: =(F99-H99)/F99 -> 1.32% | O99: Successful | P99: 2019-04-04 | R99: H
A100: 13 | B100: 2019-04-04 | D100: UBL APR FUT | E100: Buy | F100: 1416 | G100: 1399 | H100: 1436.5 | I100: 1445 | J100: Profit of Rs.20.5/- | K100: =H100-F100 -> 20.5 | M100: 14350 | N100: 700 | O100: Successful | P100: 2019-04-04 | R100: N
A101: 14 | B101: 2019-04-05 | D101: MGL APR FUT | E101: Buy | F101: 997.5 | G101: 977.5 | H101: 1011.5 | I101: 1040 | J101: Profit of Rs.14/- | K101: =H101-F101 -> 14 | M101: =N101*K101 -> 8400 | N101: 600 | O101: Successful | P101: 2019-04-04 | R101: N
A102: 15 | B102: 2019-04-05 | D102: GODREJIND APR FUT | E102: Sell | F102: 544 | G102: 552 | H102: 536.5 | I102: 530 | J102: Profit of Rs.7.5/- | K102: =F102-H102 -> 7.5 | M102: 11250 | N102: 1500 | O102: Successful | P102: 2019-04-05 | R102: R
A103: 16 | B103: 2019-04-05 | D103: BHARTIARTL APR FUT | E103: Sell | F103: 361 | G103: 367.7 | H103: 356.25 | I103: 346 - 344 | J103: Profit of Rs.4.75/- | K103: =F103-H103 -> 4.75 | M103: 8075 | N103: 1700 | O103: Successful | P103: 2019-04-05 | R103: R
A104: 17 | B104: 2019-04-05 | D104: TATASTEEL APR FUT | E104: Sell | F104: 541.5 | G104: 553.3 | H104: 553.3 | I104: 520 | J104: Loss of Rs.11.8/- | K104: =F104-G104 -> -11.8 | M104: -12519.8 | N104: 1061 | O104: UnSuccessful | R104: R
A105: 18 | B105: 2019-04-08 | D105: TATAELXSI APR FUT | E105: Buy | F105: 970-974 | G105: 940 | I105: 1020 | J105: Open | P105: 2019-04-05 | R105: N
A106: 19 | B106: 2019-04-08 | D106: COLPAL APR FUT | E106: Buy | F106: 1239 | G106: 1222 | H106: 1224 | I106: 1270 | J106: Loss of Rs.15/- | K106: =H106-F106 -> -15 | M106: -10500 | N106: 700 | O106: UnSuccessful | R106: N
A107: 20 | B107: 2019-04-08 | D107: MFSL APR FUT | E107: Sell | F107: 430 | G107: 441 | H107: 424.5 | I107: 410 | J107: Profit of Rs.5.5/- | K107: =F107-H107 -> 5.5 | M107: =N107*K107 -> 6600 | N107: 1200 | O107: Successful | R107: H
A108: 21 | B108: 2019-04-09 | D108: EXIDEIND APR FUT | E108: Buy | F108: 216 | G108: 210 | H108: 219.5 | I108: 227 | J108: Profit of Rs.3.5/- | K108: =H108-F108 -> 3.5 | M108: 7000 | N108: 2000 | O108: Successful | R108: N
A109: 22 | B109: 2019-04-09 | D109: PEL APR FUT | E109: Buy | F109: 2647.5 | G109: 2605 | H109: 2680 | I109: 2730-2750 | J109: Profit of Rs.32.5/- | K109: =H109-F109 -> 32.5 | M109: 9815 | N109: 302 | O109: Successful | R109: R
A110: 23 | B110: 2019-04-09 | D110: TATASTEEL APR FUT | E110: Buy | F110: 550.5 | G110: 538.5 | H110: 557.5 | I110: 570 | J110: Profit of Rs.7/- | K110: =H110-F110 -> 7 | M110: 7427 | N110: 1061 | O110: Successful | R110: H
A111: 24 | B111: 2019-04-09 | D111: NIFTY APR FUT | E111: Sell | F111: 11735 | G111: 11786 | H111: 11682.5 | I111: 11630 | J111: Profit of Rs.52.5/- | K111: =F111-H111 -> 52.5 | M111: =N111*K111 -> 3937.5 | N111: 75 | O111: Successful | R111: R
A112: 25 | B112: 10 Apil | D112: AMBUJACEM APR FUT | E112: Buy | F112: 226.50-227.50 | G112: 222 | I112: 237 | J112: Open | R112: N
A113: 26 | B113: 2019-04-10 | D113: CARBORUNIV | E113: Buy | F113: 376-379 | G113: 368 | I113: 400 | J113: Open | R113: H
A114: 27 | B114: 2019-04-10 | D114: UBL APR FUT | E114: Buy | F114: 1413-1415 | G114: 1397 | I114: 1440 | J114: Open | R114: N
A119: CLBS = Closing Basis ***
A120: Dividend adjusted <> | F120: Reinitiated $
F121: Revised stoploss #
B122: Quick Pick Intraday
A123: Sr.no | B123: Date | D123: Company | E123: Rec | F123: Rec Price | G123: Stop Loss*** | H123: Call Closed At | I123: Target | J123: Remark | K123: Profit / Loss per Share | L123: Status | M123: Closed Date
A137: Techno -Funda (positional)
A138: Sr.no | B138: Date | D138: Company | E138: Rec | F138: Rec Price | G138: Stop Loss*** | H138: Call Closed At | I138: Target | J138: Remark | K138: Profit / Loss per Share | L138: Gain / Loss % | M138: Status | N138: Closed Date | O138: NSE Closed Price
A139: 1 | B139: 2019-04-04 | D139: FINPIPE | E139: Buy | F139: 473-476 | G139: 435 | I139: 560 | J139: Open | O139: =VLOOKUP(D139,Sheet2!A142:M1637,6,0) -> 485.45 | R139: H
A143: CLBS = Closing Basis *** | F143: Reinitiated $
A144: Dividend adjusted <> | F144: Revised stoploss #
B149: Investment Idea
A150: Sr.no | B150: Date | D150: Company | E150: Rec | F150: Rec Price | G150: Point of Review | H150: Close Rate | I150: Target | J150: Remark | K150: Profit / Loss per Share | L150: Gain / Loss % | M150: Status | N150: Closed Date
A151: 1 | B151: 2013-11-01 | D151: L&T Finance Holding | E151: Accu | F151: 82.00 | G151: - | H151: 100 | I151: 100.00 | J151: Target Achieved | K151: =H151-F151 -> 18.00 | L151: =K151/F151 -> 21.95% | M151: Successful | N151: 2016-10-14
A152: 2 | B152: 2014-06-04 | D152: Finolex Inds | E152: Buy | F152: 257.00 | G152: - | H152: 300 | I152: 300.00 | J152: Target Achieved | K152: =H152-F152 -> 43.00 | L152: 16.73% | M152: Successful | N152: 2014-07-02
A153: =1+A152 -> 3 | B153: 2014-07-08 | D153: JK Cement | E153: Buy | F153: 393.00 | G153: - | H153: 468 | I153: 468.00 | J153: Target Achieved | K153: =H153-F153 -> 75.00 | L153: 19.08% | M153: Successful | N153: 2014-08-12
A154: 4 | B154: 2014-08-06 | D154: Finolex Cables | E154: Buy | F154: 205.00 | G154: - | H154: 275 | I154: 250.00 | J154: Target Achieved | K154: 70.00 | L154: 34.15% | M154: Successful | N154: 2014-11-19
A155: 5 | B155: 2014-09-04 | D155: Exide Inds | E155: Buy | F155: 162.00 | G155: - | H155: 190 | I155: 190.00 | J155: Target Achieved | K155: 28.00 | L155: 17.28% | M155: Successful | N155: 2015-01-02
A156: 6 | B156: 2014-09-04 | D156: Deepak Nitrite | E156: Buy | F156: 75.00 | G156: - | H156: 91.5 | I156: 95-100 | J156: Profit of Rs.16.50/- | K156: 16.50 | L156: 22.00% | M156: Successful | N156: 2014-11-11
A157: 7 | B157: 2014-10-01 | D157: Mercks | E157: Buy | F157: 850.00 | G157: - | H157: 982.5 | I157: 1050.00 | J157: Profit of Rs.132.50/- | K157: 132.50 | L157: 15.59% | M157: Successful | N157: 2015-02-04
A158: 8 | B158: 2014-10-01 | D158: Grindwell Norton | E158: Buy | F158: 475.00 | G158: - | H158: 515 | I158: 600.00 | J158: Profit of Rs.40/- | K158: 40.00 | L158: 8.42% | M158: Successful | N158: 2014-10-27
A159: 9 | B159: 2014-10-01 | D159: Snowman Logistics | E159: Buy | F159: 86.00 | G159: - | H159: 99 | I159: 140.00 | J159: Profit of Rs.13.00/- | K159: 13.00 | L159: 15.12% | M159: Successful | N159: 2014-10-27
A160: 10 | B160: 2014-10-14 | D160: Birla Corp | E160: Buy | F160: 496.60 | G160: - | H160: 621 | I160: 580.00 | J160: Target Achieved | K160: 124.40 | L160: 25.05% | M160: Successful | N160: 2016-08-23
A161: 11 | B161: 2014-10-14 | D161: Ultratech Cem | E161: Buy | F161: 2481.90 | G161: - | H161: 2840 | I161: 2870.00 | J161: Profit of Rs.358.10/- | K161: 358.10 | L161: 14.43% | M161: Successful | N161: 2015-01-13
A162: =1+A159 -> 10 | B162: 2014-10-16 | D162: Sintex Inds | E162: Buy | F162: 84.50 | G162: - | H162: 93 | I162: 110.00 | J162: Profit of Rs.8.50/- | K162: 8.50 | L162: 10.06% | M162: Successful | N162: 2014-10-27
A163: =1+A162 -> 11 | B163: 2014-10-16 | D163: HSIL | E163: Buy | F163: 401.00 | G163: - | H163: 428 | I163: 450.00 | J163: Profit of Rs.27.00/- | K163: 27.00 | L163: 6.73% | M163: Successful | N163: 2015-01-16
A164: 12 | B164: 2014-10-16 | D164: Eveready Inds | E164: Buy | F164: 101.00 | G164: - | H164: 112 | I164: 120.00 | J164: Profit of Rs.11.00/- | K164: 11.00 | L164: 10.89% | M164: Successful | N164: 2014-10-27
A165: 13 | B165: 2014-11-11 | D165: Pennar Inds | E165: Buy | F165: 59.00 | G165: - | H165: 76 | I165: 76.00 | J165: Target Achieved | K165: 17.00 | L165: 28.81% | M165: Successful | N165: 2017-10-24
A166: 14 | B166: 2014-11-11 | D166: Snowman Logistics | E166: Buy | F166: 99.00 | G166: - | H166: 120 | I166: 120.00 | J166: Profit of Rs.21/- | K166: 21.00 | L166: 21.21% | M166: Successful | N166: 2014-11-17
A167: 15 | B167: 2014-11-13 | D167: Dharamsi Morarji Chem | E167: Buy | F167: 22.00 | G167: - | H167: 33.55 | I167: 32.00 | J167: Profit of Rs 11.55/- | K167: 11.55 | L167: 52.50% | M167: Successful | N167: 2015-07-03
A168: 16 | B168: 2014-12-03 | D168: Tatachem | E168: Buy | F168: 440.00 | G168: - | H168: 520 | I168: 520.00 | J168: Profit of Rs 80.00/- | K168: 80.00 | L168: 18.18% | M168: Successful | N168: 2015-07-23
A169: 17 | B169: 2014-12-03 | D169: Advanta | E169: Buy | F169: 360.00 | G169: - | H169: 427 | I169: 425.00 | J169: Profit of Rs.67.00/- | K169: 67.00 | L169: 18.61% | M169: Successful | N169: 2015-02-23
A170: 18 | B170: 2015-01-08 | D170: GDL | E170: Buy | F170: 360.00 | G170: - | H170: 455 | I170: 420.00 | J170: Profit of Rs.95.00/- | K170: 95.00 | L170: 26.39% | M170: Successful | N170: 2015-01-20
A171: 19 | B171: 2015-01-08 | D171: NRB Bearing | E171: Buy | F171: 130.00 | H171: 175.5 | I171: 165.00 | J171: Profit of Rs 45.50/- | K171: 45.50 | L171: 35.00% | M171: Successful | N171: 2017-12-19
A172: 20 | B172: 2015-02-05 | D172: GSFC | E172: Accu | F172: 98.00 | H172: 120 | I172: 120.00 | J172: Target Achieved | K172: 22.00 | L172: 22.45% | M172: Successful | N172: 2017-01-18
A173: 21 | B173: 2015-02-05 | D173: Sundrmfast | E173: Accu | F173: 196.00 | H173: 262 | I173: 255.00 | J173: Target Achieved | K173: 66.00 | L173: 33.67% | M173: Successful | N173: 2016-08-17
A174: 22 | B174: 2015-03-04 | D174: GPPL | E174: Accu | F174: 235 | H174: 77.00 | I174: 280-285 | J174: Loss of Rs.158/- | K174: =H174-F174 -> -158.00 | L174: -67.23% | M174: Unsuccessful | N174: 2019-02-26
A175: 23 | B175: 2015-03-04 | D175: ORIENTCEM | E175: Accu | F175: 185.00 | H175: 224 | I175: 220-225 | J175: Target Achieved | K175: 39.00 | L175: =K175/F175 -> 21.08% | M175: Successful | N175: 2016-10-04
A176: 24 | B176: 2015-03-27 | D176: PFS | E176: Accu | F176: 49-50 | I176: 67.00 | J176: Open
A177: 25 | B177: 2015-03-30 | D177: Walchandnagar Ind Ltd | E177: Accu | F177: 183.50 | H177: 219 | I177: 218.00 | J177: Profit of Rs.35.50/- | K177: 35.50 | L177: =K177/F177 -> 19.35% | M177: Successful | N177: 2015-04-09
A178: 26 | B178: 2015-04-20 | D178: Kalpataru Power Transmission Ltd | E178: Accu | F178: =(227+237)/2 -> 232.00 | H178: 298 | I178: 298.00 | J178: Target Achieved | K178: 66.00 | L178: 28.45% | M178: Successful | N178: 2017-03-29
A179: 27 | B179: 2015-05-04 | D179: Mastek Ltd | E179: Buy | F179: 385.00 | H179: =212.5+331 -> 543.5 | I179: 510.00 | J179: Profit of Rs 158.50/- | K179: 158.50 | L179: 41.17% | M179: Successful | N179: 2015-08-19
A180: 28 | B180: 2015-05-04 | D180: Suprajit Eng | E180: Buy | F180: 115.50 | H180: 146 | I180: 142.00 | J180: Profit of Rs 30.50/- | K180: 30.50 | L180: 26.41% | M180: Successful | N180: 2015-07-17
A181: 29 | B181: 2015-05-27 | D181: TCI | E181: Buy | F181: 237.50 | H181: 279.5 | I181: 278.00 | J181: Target Achieved | K181: 42.00 | L181: 17.68% | M181: Successful | N181: 2015-08-06
A182: 30 | B182: 2015-06-19 | D182: HSIL | E182: Accu | F182: 340.00 | H182: 448 | I182: 448.00 | J182: Target Achieved | K182: 108.00 | L182: 31.76% | M182: Successful | N182: 2017-10-10
A183: 31 | B183: 2015-07-06 | D183: Capital First | E183: Accu | F183: 390.00 | H183: 460 | I183: 460.00 | J183: Target Achieved | K183: 70.00 | L183: 17.95% | M183: Successful | N183: 2016-04-18
A184: 32 | B184: 2015-07-10 | D184: Dolphin OffShore | E184: Accu | F184: 122.5 | H184: 61.00 | I184: 172.00 | J184: Loss of Rs.61.50/- | K184: -61.50 | L184: -50.20% | M184: Unsuccessful | N184: 2018-08-21
A185: 33 | B185: 2015-08-03 | D185: Allcargo logistics | E185: Accu | F185: 297.50 | H185: 350 | I185: 360.00 | J185: Profit of Rs 52.50/- | K185: 52.50 | L185: =K185/F185 -> 17.65% | M185: Successful | N185: 2015-08-16
A186: 34 | B186: 2015-08-03 | D186: Camline Fine | E186: Accu | F186: 115.50 | H186: 149 | I186: 140.00 | J186: Profit of Rs 33.50/- | K186: 33.50 | L186: 29.00% | M186: Successful | N186: 2017-01-05
A187: 35 | B187: 2015-09-04 | D187: TCI | E187: Accu | F187: 226.00 | H187: 292 | I187: 292.00 | J187: Target Achieved | K187: 66.00 | L187: 29.20% | M187: Successful | N187: 2015-10-09
A188: 36 | B188: 2015-09-07 | D188: Kalpataru Power Transmission Ltd | E188: Accu | F188: 232.50 | H188: 312.5 | I188: 310.00 | J188: Target Achieved | K188: 80.00 | L188: 34.41% | M188: Successful | N188: 2017-03-29
A189: 37 | B189: 2015-09-21 | D189: LLOYD ELECTRIC & ENG LTD | E189: Accu | F189: 196.50 | H189: 238 | I189: 238.00 | J189: Target Achieved | K189: 41.50 | L189: 21.12% | M189: Successful | N189: 2015-10-14
A190: 38 | B190: 2015-09-24 | D190: L&T Finance Holding | E190: Accu | F190: 65.00 | H190: 82 | I190: 82.00 | J190: Target Achieved | K190: 17.00 | L190: 26.15% | M190: Successful | N190: 2016-07-27
A191: 39 | B191: 2015-10-14 | D191: KEC International ltd | E191: Accu | F191: 144.00 | H191: 182.5 | I191: 181.00 | J191: Target Achieved | K191: 38.50 | L191: 26.74% | M191: Successful | N191: 2017-03-23
A192: 40 | B192: 2015-10-14 | D192: Gruh Finance | E192: Accu | F192: 264.00 | H192: 311 | I192: 311.00 | J192: Target Achieved | K192: 47.00 | L192: 17.80% | M192: Successful | N192: 2016-08-22
A193: 41 | B193: 2015-11-10 | D193: Pidilitind | E193: Buy | F193: 549.50 | H193: 630 | I193: 630.00 | J193: Target Achieved | K193: 80.50 | L193: 14.65% | M193: Successful | N193: 2016-02-19
A194: 42 | B194: 2015-12-04 | D194: Zensar Technology | E194: Accu | F194: 1027.50 | H194: 1315 | I194: 1250.00 | J194: Target Achieved | K194: =H194-F194 -> 287.50 | L194: 27.98% | M194: Successful | N194: 2018-05-24
A195: 43 | B195: 2015-12-29 | D195: Vinati Organics Ltd | E195: Accu | F195: 465.00 | H195: 540 | I195: 540.00 | J195: Target Achieved | K195: 75.00 | L195: =K195/F195 -> 16.13% | M195: Successful | N195: 2016-06-09
A196: 44 | B196: 2016-01-11 | D196: GSFC | E196: Buy | F196: 81.00 | H196: 110 | I196: 110.00 | J196: Target Achieved | K196: 29.00 | L196: 35.80% | M196: Successful | N196: 2017-01-10
A197: 45 | B197: 2016-01-13 | D197: SSWL | E197: Buy | F197: 417.50 | H197: 547 | I197: 535.00 | J197: Target Achieved | K197: 129.50 | L197: 31.02% | M197: Successful | N197: 2016-07-27
A198: 46 | B198: 2016-02-08 | D198: Persistent System Ltd | E198: Accu | F198: 650.00 | H198: 800 | I198: 800.00 | J198: Target Achieved | K198: 150.00 | L198: 23.08% | M198: Successful | N198: 2018-02-23
A199: 47 | B199: 2016-03-04 | D199: UPL | E199: Accu | F199: 437.50 | H199: 504.5 | I199: 522.00 | J199: Profit of Rs.67/- | K199: 67.00 | L199: 15.31% | M199: Successful | N199: 2016-04-20
A200: 48 | B200: 2016-03-09 | D200: Ashoka Buildcon Ltd | E200: Accu | F200: 189.50 | H200: 218 | I200: 218.00 | J200: Target Achieved | K200: 28.50 | L200: 15.04% | M200: Successful | N200: 2017-10-26
A201: 49 | B201: 2016-04-11 | D201: PTC INDIA FIN SERV LTD | E201: Accu | F201: 36-37 | I201: 60.00 | J201: Open
A202: 50 | B202: 2016-04-12 | D202: CAMLINFINE $ | E202: Accu | F202: 93.00 | H202: 149 | I202: 140.00 | J202: Profit of Rs 56/- | K202: 56.00 | L202: =K202/F202 -> 60.22% | M202: Successful | N202: 2017-01-05
A203: 51 | B203: 2016-04-12 | D203: Greaves Cotton Ltd. | E203: Accu | F203: 130.00 | H203: 150 | I203: 150-155 | J203: Target Achieved | K203: 20.00 | L203: 15.38% | M203: Successful | N203: 2016-07-13
A204: 52 | B204: 2016-04-13 | D204: DHFL | E204: Accu | F204: 196.00 | H204: 299 | I204: 299.00 | J204: Target Achieved | K204: 103.00 | L204: 52.55% | M204: Successful | N204: 2016-09-07
A205: 53 | B205: 2016-04-13 | D205: Magma | E205: Accu | F205: 88.00 | H205: 103 | I205: 103.00 | J205: Target Achieved | K205: 15.00 | L205: 17.05% | M205: Successful | N205: 2016-06-09
A206: 54 | B206: 2016-05-02 | D206: KEC International ltd $ | E206: Accu | F206: 127.50 | H206: 148 | I206: 148-150 | J206: Target Achieved | K206: 20.50 | L206: 16.08% | M206: Successful | N206: 2016-07-13
A207: 55 | B207: 2016-05-03 | D207: Mindtree | E207: Accu | F207: 675.00 | H207: 815 | I207: 790-800 | J207: Target Achieved | K207: 140.00 | L207: 20.74% | M207: Successful | N207: 2018-02-23
A208: 56 | B208: 2016-06-01 | D208: Atulauto | E208: Accu | F208: 495-505 | I208: 565-570 | J208: Open
A209: 57 | B209: 2016-06-06 | D209: TRITURBINE | E209: Accu | F209: 110.00 | H209: 126.5 | I209: 125.00 | J209: Profit of Rs.16.50/- | K209: 16.50 | L209: =K209/F209 -> 15.00% | M209: Successful | N209: 2016-07-01
A210: 58 | B210: 2016-06-17 | D210: Pennar Industries Ltd | E210: Accu | F210: 44.00 | H210: 69.5 | I210: 69.50 | J210: Profit of Rs.25.50/- | K210: 25.50 | L210: =K210/F210 -> 57.95% | M210: Successful | N210: 2017-08-30
A211: 59 | B211: 2016-06-28 | D211: EVEREADY INDS. IND. LTD. | E211: Accu | F211: 262.50 | H211: 340 | I211: 333.00 | J211: Profit of Rs.77.50/- | K211: 77.50 | L211: =K211/F211 -> 29.52% | M211: Successful | N211: 2017-10-09
A212: 60 | B212: 2016-06-28 | D212: FIEM INDUSTRIES LIMITED | E212: Accu | F212: 840.00 | H212: 1230 | I212: 1230.00 | J212: Target Achieved | K212: 390.00 | L212: =K212/F212 -> 46.43% | M212: Successful | N212: 2016-10-06
A213: 61 | B213: 2016-07-05 | D213: Bajaj Corp Ltd | E213: Accu | F213: 395 | H213: 468.50 | I213: 510.00 | J213: Part profit of Rs.73.50/- | K213: 73.50 | L213: =K213/F213 -> 19% | M213: Successful | N213: 2017-08-30
A214: 62 | B214: 2016-08-02 | D214: GPPL $ | E214: Buy | F214: 169.5 | H214: 77.00 | I214: 198-200 | J214: Loss of Rs.92.5/- | K214: -92.50 | L214: =K214/F214 -> -54.57% | M214: Unsuccessful | N214: 2019-02-26
A215: 63 | B215: 2016-08-04 | D215: WONDERLA HOLIDAYS LTD | E215: Accu | F215: 395-405 | I215: 475.00 | J215: Open
A216: 64 | B216: 2016-08-11 | D216: CAMLINFINE | E216: Accu | F216: 86.50 | H216: 130 | I216: 130.00 | J216: Profit of Rs.43.50/- | K216: =H216-F216 -> 43.50 | L216: =K216/F216 -> 50.29% | M216: Successful | N216: 2017-12-22
A217: 65 | B217: 2016-08-18 | D217: GRANULES | E217: Accu | F217: 133.5 | H217: 126.50 | I217: 178.00 | J217: Exit | K217: -7.00 | L217: -5.24% | M217: Unsuccessful | N217: 2016-09-02
A218: 66 | B218: 2016-08-31 | D218: VA TECH WABAG | E218: Accu | F218: 560.00 | H218: 725 | I218: 725.00 | J218: Target Achieved | K218: 165.00 | L218: 29.46% | M218: Successful | N218: 2016-03-27
A219: 67 | B219: 2016-09-01 | D219: SKIPPER LIMITED | E219: Accu | F219: 160.50 | H219: 210 | I219: 210.00 | J219: Target Achieved | K219: 49.50 | L219: 30.84% | M219: Successful | N219: 2017-05-16
A220: 68 | B220: 2016-10-03 | D220: IFB Industries | E220: Accu | F220: 430.00 | H220: 596 | I220: 575.00 | J220: Profit of Rs.166/- | K220: 166.00 | L220: 38.60% | M220: Successful | N220: 2017-02-03
A221: 69 | B221: 2016-10-14 | D221: ASIANTILES | E221: Accu | F221: 280.00 | H221: 345 | I221: 345.00 | J221: Target Achieved | K221: 65.00 | L221: 23.21% | M221: Successful | N221: 2017-03-20
A222: 70 | B222: 2016-10-14 | D222: DEEPIND | E222: Accu | F222: 245.00 | H222: 325.5 | I222: 330.00 | J222: Profit of Rs.80.5/- | K222: 80.50 | L222: 32.86% | M222: Successful | N222: 2017-02-03
A223: 71 | B223: 2016-10-17 | D223: DCBBANK | E223: Accu | F223: 125.00 | H223: 160 | I223: 160.00 | J223: Target Achieved | K223: 35.00 | L223: 28.00% | M223: Successful | N223: 2017-03-09
A224: 72 | B224: 2016-10-17 | D224: ORIENTREF | E224: Accu | F224: 114.00 | H224: 145 | I224: 145.00 | J224: Target Achieved | K224: 31.00 | L224: =K224/F224 -> 27.19% | M224: Successful | N224: 2017-05-04
A225: 73 | B225: 2016-10-17 | D225: GANECOS | E225: Accu | F225: 212.00 | H225: 280 | I225: 276.00 | J225: Profit of Rs.68/- | K225: 68.00 | L225: =K225/F225 -> 32.08% | M225: Successful | N225: 2017-05-03
A226: 74 | B226: 2016-11-04 | D226: NBCC | E226: Accu | F226: 155.00 | H226: 210 | I226: 210.00 | J226: Profit of Rs.55/- | K226: 55.00 | L226: =K226/F226 -> 35.48% | M226: Successful | N226: 2017-07-28
A227: 75 | B227: 2016-12-06 | D227: PRECAM | E227: Accu | F227: 150.5 | H227: 72.50 | I227: 174.00 | J227: Loss of Rs.78/- | K227: -78.00 | L227: =K227/F227 -> -51.83% | M227: Unsuccessful | N227: 2018-08-21
A228: 76 | B228: 2016-12-08 | D228: INFRATEL | E228: Accu | F228: 380.00 | H228: 478 | I228: 468.00 | J228: Target Achieved | K228: 98.00 | L228: =K228/F228 -> 25.79% | M228: Successful | N228: 2017-10-17
A229: 77 | B229: 2016-12-30 | D229: GODREJPROP | E229: Accu | F229: 305.00 | H229: 375 | I229: 375.00 | J229: Target Achieved | K229: 70.00 | L229: 22.95% | M229: Successful | N229: 2017-02-02
A230: 78 | B230: 2017-01-04 | D230: DEEPAKNTR | E230: Accu | F230: 99.50 | H230: 158 | I230: 158.00 | J230: Target Achieved | K230: 58.50 | L230: 58.79% | M230: Successful | N230: 2017-06-12
A231: 79 | B231: 2017-02-20 | D231: SUBROS | E231: Accu | F231: 202.50 | H231: 234 | I231: 234.00 | J231: Target Achieved | K231: 31.50 | L231: 15.56% | M231: Successful | N231: 2017-04-11
A232: 80 | B232: 2017-02-20 | D232: RECLTD | E232: Accu | F232: 140.50 | H232: 220 | I232: 220.00 | J232: Target Achieved | K232: 79.50 | L232: 56.58% | M232: Successful | N232: 2017-05-09
A233: 81 | B233: 2017-03-24 | D233: VRLLOG | E233: Accu | F233: 300.50 | H233: 417.5 | I233: 420.00 | J233: Profit of Rs.117/- | K233: 117.00 | L233: 38.94% | M233: Successful | N233: 2017-12-01
A234: 82 | B234: 2017-03-24 | D234: FIEMIND | E234: Accu | F234: 850.00 | H234: 1042.5 | I234: 1023.00 | J234: Profit of Rs 192.50/- | K234: 192.50 | L234: 22.65% | M234: Successful | N234: 2017-04-05
A235: 83 | B235: 2017-04-05 | D235: RATNAMANI | E235: Accu | F235: 785.00 | H235: 930 | I235: 920.00 | J235: Profit of Rs.145/- | K235: 145.00 | L235: 18.47% | M235: Successful | N235: 2017-08-29
A236: 84 | B236: 2017-04-06 | D236: ZEEMEDIA | E236: Accu | F236: 40 | H236: 13.10 | I236: 60.00 | J236: Loss of Rs.26.9/- | K236: =H236-F236 -> -26.90 | L236: -67.25% | M236: Unsuccessful | N236: 2018-02-07
A237: 85 | B237: 2017-04-12 | D237: DABUR | E237: Accu | F237: 289.50 | H237: 354 | I237: 360.00 | J237: Profit of Rs.64.5/- | K237: 64.50 | L237: =K237/F237 -> 22.28% | M237: Successful | N237: 2017-11-01
A238: 86 | B238: 2017-04-20 | D238: KPRMILL | E238: Accu | F238: 700.00 | H238: 840 | I238: 840.00 | J238: Profit of Rs.140/- | K238: 140.00 | L238: =K238/F238 -> 20.00% | M238: Successful | N238: 2017-06-07
A239: 87 | B239: 2017-05-22 | D239: GREAVESCOT | E239: Accu | F239: 153-158 | I239: 190.00 | J239: Open
A240: 88 | B240: 2017-06-01 | D240: ESSELPACK | E240: Accu | F240: 130 | H240: 155.50 | I240: 170.00 | J240: Part profit of Rs.51/- | K240: =H240-F240 -> 25.50 | L240: =K240/F240 -> 20% | M240: Successful | N240: 2017-11-17
A241: 89 | B241: 2017-06-15 | D241: KEI | E241: Accu | F241: 214.50 | H241: 262 | I241: 262.00 | J241: Profit of Rs.47.5/- | K241: =H241-F241 -> 47.50 | L241: 22.14% | M241: Successful | N241: 2017-08-30
A242: 90 | B242: 2017-07-17 | D242: MAYURUNIQ | E242: Accu | F242: 370.00 | H242: 447.5 | I242: 450.00 | J242: Target Achieved | K242: 77.50 | L242: 20.95% | M242: Successful | N242: 2017-10-27
A243: 91 | B243: 2017-07-27 | D243: RAMCOCEM | E243: Accu | F243: 657.50 | H243: 825 | I243: 820.00 | J243: Target Achieved | K243: 167.50 | L243: 25.48% | M243: Successful | N243: 2017-12-21
A244: 92 | B244: 2017-08-17 | D244: FINPIPE | E244: Accu | F244: 605.00 | H244: 750 | I244: 750.00 | J244: Profit of Rs.145/- | K244: 145.00 | L244: 23.97% | M244: Successful | N244: 2017-10-19
A245: 93 | B245: 2017-09-01 | D245: SHK | E245: Accu | F245: 255 | H245: 307.50 | I245: 320.00 | J245: Part profit of Rs.52.5/- | K245: 52.50 | L245: 21% | M245: Successful | N245: 2017-12-29
A246: 94 | B246: 2017-09-19 | D246: SKIPPER | E246: Accu | F246: 215.00 | H246: 258 | I246: 258.00 | J246: Target Achieved | K246: 43.00 | L246: 20.00% | M246: Successful | N246: 2017-11-01
A247: 95 | B247: 2017-09-20 | D247: CAMLINFINE | E247: Accu | F247: 75.00 | H247: 90 | I247: 90.00 | J247: Profit of Rs.15.00/- | K247: 15.00 | L247: 20.00% | M247: Successful | N247: 2017-10-11
A248: 96 | B248: 2017-10-03 | D248: GNA | E248: Accu | F248: 315.00 | H248: 392 | I248: 384.00 | J248: Profit of Rs.77/- | K248: 77.00 | L248: 24.44% | M248: Successful | N248: 2017-10-09
A249: 97 | B249: 2017-10-05 | D249: NOCIL | E249: Accu | F249: 145.00 | H249: 179 | I249: 180.00 | J249: Profit of Rs.34/- | K249: 34.00 | L249: 23.45% | M249: Successful | N249: 2017-10-17
A250: 98 | B250: 2017-10-06 | D250: CENTURYPLY | E250: Accu | F250: 256.00 | H250: 323 | I250: 320.00 | J250: Target Achieved | K250: 67.00 | L250: 26.17% | M250: Successful | N250: 2017-11-28
... 51 more rows

Sheet Sheet2 (hidden)
A1: SYMBOL | B1: SERIES | C1: OPEN | D1: HIGH | E1: LOW | F1: CLOSE | G1: LAST | H1: PREVCLOSE | I1: TOTTRDQTY | J1: TOTTRDVAL | K1: TIMESTAMP | L1: TOTALTRADES | M1: ISIN | N1: ISIN
A2: 20MICRONS | B2: EQ | C2: 38.7 | D2: 39 | E2: 37.7 | F2: 38 | G2: 37.7 | H2: 38.45 | I2: 22136 | J2: 852890.65 | K2: 2019-04-10 | L2: 281 | M2: INE144J01027
A3: 21STCENMGM | B3: EQ | C3: 22.3 | D3: 22.3 | E3: 22.3 | F3: 22.3 | G3: 22.3 | H3: 21.9 | I3: 1678 | J3: 37419.4 | K3: 2019-04-10 | L3: 18 | M3: INE253B01015
A4: 3IINFOTECH | B4: EQ | C4: 3.8 | D4: 3.85 | E4: 3.75 | F4: 3.75 | G4: 3.75 | H4: 3.8 | I4: 1057581 | J4: 4027448.2 | K4: 2019-04-10 | L4: 370 | M4: INE748C01020
A5: 3MINDIA | B5: EQ | C5: 23394.4 | D5: 24600 | E5: 23394.4 | F5: 24294.3 | G5: 24393 | H5: 23359.1 | I5: 4210 | J5: 102054241 | K5: 2019-04-10 | L5: 1389 | M5: INE470A01017
A6: 3PLAND | B6: EQ | C6: 10.95 | D6: 10.95 | E6: 10.5 | F6: 10.7 | G6: 10.7 | H6: 10.75 | I6: 665 | J6: 7235.75 | K6: 2019-04-10 | L6: 7 | M6: INE105C01023
A7: 5PAISA | B7: EQ | C7: 236.15 | D7: 244.9 | E7: 233.1 | F7: 235.95 | G7: 234.05 | H7: 238.15 | I7: 13310 | J7: 3173010.05 | K7: 2019-04-10 | L7: 480 | M7: INE618L01018
A8: 63MOONS | B8: EQ | C8: 81.15 | D8: 81.15 | E8: 79.15 | F8: 79.55 | G8: 79.55 | H8: 81.2 | I8: 103280 | J8: 8272129.8 | K8: 2019-04-10 | L8: 2371 | M8: INE111B01023
A9: 8KMILES | B9: EQ | C9: 102.65 | D9: 105.5 | E9: 101.15 | F9: 103.8 | G9: 103.6 | H9: 101.65 | I9: 188739 | J9: 19542730.35 | K9: 2019-04-10 | L9: 2552 | M9: INE650K01021
A10: A2ZINFRA | B10: EQ | C10: 19 | D10: 19.25 | E10: 18.2 | F10: 18.55 | G10: 18.5 | H10: 19 | I10: 128949 | J10: 2421686.3 | K10: 2019-04-10 | L10: 568 | M10: INE619I01012
A11: AARTIDRUGS | B11: EQ | C11: 632.9 | D11: 639.9 | E11: 630 | F11: 634.95 | G11: 632.4 | H11: 634.6 | I11: 6449 | J11: 4090860.45 | K11: 2019-04-10 | L11: 530 | M11: INE767A01016
A12: AARTIIND | B12: EQ | C12: 1635.1 | D12: 1674.7 | E12: 1625.65 | F12: 1640.2 | G12: 1637.85 | H12: 1637.05 | I12: 80498 | J12: 133450921.3 | K12: 2019-04-10 | L12: 6345 | M12: INE769A01020
A13: AARVEEDEN | B13: EQ | C13: 23.05 | D13: 23.9 | E13: 23 | F13: 23.55 | G13: 23.5 | H13: 23.3 | I13: 11653 | J13: 272027.6 | K13: 2019-04-10 | L13: 67 | M13: INE273D01019
A14: AAVAS | B14: EQ | C14: 1144.55 | D14: 1173 | E14: 1135 | F14: 1168.6 | G14: 1164.9 | H14: 1136.3 | I14: 9497 | J14: 11000625.85 | K14: 2019-04-10 | L14: 1211 | M14: INE216P01012
A15: ABAN | B15: BE | C15: 58 | D15: 59.35 | E15: 58 | F15: 58.25 | G15: 58.7 | H15: 58.75 | I15: 33968 | J15: 1988826.05 | K15: 2019-04-10 | L15: 532 | M15: INE421A01028
A16: ABB | B16: EQ | C16: 1405 | D16: 1407 | E16: 1371 | F16: 1381.55 | G16: 1374.7 | H16: 1408.35 | I16: 68864 | J16: 96145548.35 | K16: 2019-04-10 | L16: 6000 | M16: INE117A01022
A17: ABBOTINDIA | B17: EQ | C17: 7375 | D17: 7375 | E17: 7309.95 | F17: 7338.25 | G17: 7369 | H17: 7332.3 | I17: 959 | J17: 7041793.4 | K17: 2019-04-10 | L17: 284 | M17: INE358A01014
A18: ABCAPITAL | B18: EQ | C18: 97.3 | D18: 98.3 | E18: 96.4 | F18: 96.65 | G18: 96.6 | H18: 97 | I18: 1407939 | J18: 137056296.6 | K18: 2019-04-10 | L18: 9154 | M18: INE674K01013
A19: ABFRL | B19: EQ | C19: 221.65 | D19: 224 | E19: 219.5 | F19: 222.7 | G19: 222.5 | H19: 218.15 | I19: 728505 | J19: 161745769.1 | K19: 2019-04-10 | L19: 14333 | M19: INE647O01011
A20: ACC | B20: EQ | C20: 1652.6 | D20: 1655.9 | E20: 1630 | F20: 1636.65 | G20: 1640 | H20: 1654.3 | I20: 559285 | J20: 918016102.6 | K20: 2019-04-10 | L20: 17238 | M20: INE012A01025
A21: ACCELYA | B21: EQ | C21: 935 | D21: 938 | E21: 930.05 | F21: 933.45 | G21: 937.4 | H21: 938.45 | I21: 1721 | J21: 1606490.6 | K21: 2019-04-10 | L21: 267 | M21: INE793A01012
A22: ACE | B22: EQ | C22: 107.45 | D22: 108.75 | E22: 104.5 | F22: 105.05 | G22: 104.9 | H22: 108 | I22: 238946 | J22: 25475849.5 | K22: 2019-04-10 | L22: 7509 | M22: INE731H01025
A23: ADANIENT | B23: EQ | C23: 145.75 | D23: 147.4 | E23: 142.05 | F23: 142.85 | G23: 142.45 | H23: 146 | I23: 4356153 | J23: 627382040.2 | K23: 2019-04-10 | L23: 29551 | M23: INE423A01024
A24: ADANIGAS | B24: EQ | C24: 131.2 | D24: 133.45 | E24: 129.25 | F24: 129.8 | G24: 129.25 | H24: 131.3 | I24: 338994 | J24: 44349611.45 | K24: 2019-04-10 | L24: 3147 | M24: INE399L01023
A25: ADANIGREEN | B25: EQ | C25: 36.9 | D25: 38.1 | E25: 36.35 | F25: 36.95 | G25: 37.05 | H25: 37 | I25: 446323 | J25: 16726767.25 | K25: 2019-04-10 | L25: 1734 | M25: INE364U01010
A26: ADANIPORTS | B26: EQ | C26: 378.4 | D26: 385.4 | E26: 375.2 | F26: 383.45 | G26: 385 | H26: 380.7 | I26: 2067637 | J26: 789868196.4 | K26: 2019-04-10 | L26: 26010 | M26: INE742F01042
A27: ADANIPOWER | B27: EQ | C27: 49.85 | D27: 50.4 | E27: 48.8 | F27: 49.05 | G27: 48.85 | H27: 50.15 | I27: 8075543 | J27: 401465304.6 | K27: 2019-04-10 | L27: 12607 | M27: INE814H01011
A28: ADANITRANS | B28: EQ | C28: 222.9 | D28: 223.35 | E28: 216 | F28: 216.8 | G28: 217 | H28: 222.85 | I28: 65891 | J28: 14460881.2 | K28: 2019-04-10 | L28: 1679 | M28: INE931S01010
A29: ADFFOODS | B29: EQ | C29: 242.65 | D29: 245.1 | E29: 242.5 | F29: 243.15 | G29: 243 | H29: 244.5 | I29: 28955 | J29: 7046823.55 | K29: 2019-04-10 | L29: 444 | M29: INE982B01019
A30: ADHUNIK | B30: BE | C30: 3 | D30: 3 | E30: 3 | F30: 3 | G30: 3 | H30: 3.15 | I30: 39350 | J30: 118050 | K30: 2019-04-10 | L30: 33 | M30: INE400H01019
A31: ADHUNIKIND | B31: EQ | C31: 57.2 | D31: 58 | E31: 56.4 | F31: 57.5 | G31: 57.7 | H31: 56.8 | I31: 9189 | J31: 526136.4 | K31: 2019-04-10 | L31: 89 | M31: INE452L01012
A32: ADLABS | B32: EQ | C32: 9.5 | D32: 9.5 | E32: 8.9 | F32: 8.95 | G32: 9 | H32: 9.3 | I32: 437122 | J32: 3975658.8 | K32: 2019-04-10 | L32: 849 | M32: INE172N01012
A33: ADORWELD | B33: EQ | C33: 340 | D33: 351.9 | E33: 338.95 | F33: 341.2 | G33: 341.45 | H33: 341.6 | I33: 9143 | J33: 3151271.1 | K33: 2019-04-10 | L33: 576 | M33: INE045A01017
A34: ADROITINFO | B34: BE | C34: 16.7 | D34: 17.5 | E34: 16.65 | F34: 17.5 | G34: 17.5 | H34: 17.5 | I34: 701 | J34: 12101.65 | K34: 2019-04-10 | L34: 7 | M34: INE737B01033
A35: ADSL | B35: EQ | C35: 13.35 | D35: 13.55 | E35: 13.05 | F35: 13.15 | G35: 13.2 | H35: 13.5 | I35: 18121 | J35: 239220.35 | K35: 2019-04-10 | L35: 70 | M35: INE102I01027
A36: ADVANIHOTR | B36: EQ | C36: 69 | D36: 71 | E36: 66.9 | F36: 67.1 | G36: 67.45 | H36: 68.25 | I36: 12006 | J36: 822693.35 | K36: 2019-04-10 | L36: 119 | M36: INE199C01026
A37: ADVENZYMES | B37: EQ | C37: 191.5 | D37: 194.75 | E37: 186.9 | F37: 187.45 | G37: 188 | H37: 193 | I37: 166718 | J37: 31847881.95 | K37: 2019-04-10 | L37: 2303 | M37: INE837H01020
A38: AEGISCHEM | B38: EQ | C38: 211 | D38: 212 | E38: 207.3 | F38: 209.85 | G38: 209.45 | H38: 211.75 | I38: 113808 | J38: 23866219.45 | K38: 2019-04-10 | L38: 4688 | M38: INE208C01025
A39: AGARIND | B39: EQ | C39: 155.95 | D39: 158.1 | E39: 154.05 | F39: 156.9 | G39: 156.95 | H39: 155.95 | I39: 1193 | J39: 186155.05 | K39: 2019-04-10 | L39: 22 | M39: INE204E01012
A40: AGCNET | B40: EQ | C40: 117.6 | D40: 119.75 | E40: 117.5 | F40: 117.75 | G40: 117.5 | H40: 117 | I40: 2256 | J40: 267289.25 | K40: 2019-04-10 | L40: 31 | M40: INE676A01019
A41: AGLSL | B41: EQ | C41: 58.85 | D41: 59 | E41: 58.3 | F41: 59 | G41: 59 | H41: 58.25 | I41: 1229 | J41: 72404.7 | K41: 2019-04-10 | L41: 76 | M41: INE517U01013
A42: AGRITECH | B42: EQ | C42: 66.6 | D42: 66.6 | E42: 64 | F42: 64.3 | G42: 65.45 | H42: 63.6 | I42: 25902 | J42: 1689995.35 | K42: 2019-04-10 | L42: 460 | M42: INE449G01018
A43: AGROPHOS | B43: BE | C43: 68 | D43: 74 | E43: 68 | F43: 72.15 | G43: 71 | H43: 70.5 | I43: 415 | J43: 29825.8 | K43: 2019-04-10 | L43: 11 | M43: INE740V01019
A44: AHLEAST | B44: EQ | C44: 239.95 | D44: 243.9 | E44: 238.75 | F44: 242.45 | G44: 243.9 | H44: 238.4 | I44: 2507 | J44: 603615.45 | K44: 2019-04-10 | L44: 44 | M44: INE926K01017
A45: AHLUCONT | B45: EQ | C45: 339.9 | D45: 339.9 | E45: 334.15 | F45: 334.95 | G45: 335 | H45: 335.45 | I45: 2593 | J45: 870755.1 | K45: 2019-04-10 | L45: 127 | M45: INE758C01029
A46: AHLWEST | B46: EQ | C46: 360 | D46: 362.95 | E46: 346.6 | F46: 355 | G46: 355 | H46: 351.25 | I46: 130 | J46: 45691.6 | K46: 2019-04-10 | L46: 12 | M46: INE915K01010
A47: AIAENG | B47: EQ | C47: 1761 | D47: 1800.05 | E47: 1761 | F47: 1798.95 | G47: 1799.95 | H47: 1772.4 | I47: 72676 | J47: 130634104.5 | K47: 2019-04-10 | L47: 2849 | M47: INE212H01026
A48: AIFL | B48: BE | C48: 11.75 | D48: 12.3 | E48: 11.55 | F48: 11.95 | G48: 11.95 | H48: 11.75 | I48: 10744 | J48: 127300.8 | K48: 2019-04-10 | L48: 78 | M48: INE428O01016
A49: AIONJSW | B49: EQ | C49: 29.25 | D49: 29.25 | E49: 28.35 | F49: 28.55 | G49: 28.4 | H49: 28.9 | I49: 92155 | J49: 2663755.9 | K49: 2019-04-10 | L49: 205 | M49: INE743C01021
A50: AJANTPHARM | B50: EQ | C50: 1017 | D50: 1023.95 | E50: 1008.55 | F50: 1013.9 | G50: 1010.55 | H50: 1021.2 | I50: 212712 | J50: 216292081.3 | K50: 2019-04-10 | L50: 6957 | M50: INE031B01049
A51: AJMERA | B51: EQ | C51: 188.95 | D51: 194 | E51: 186.7 | F51: 187.7 | G51: 187.1 | H51: 190.15 | I51: 65704 | J51: 12517733.25 | K51: 2019-04-10 | L51: 1338 | M51: INE298G01027
A52: AKSHARCHEM | B52: EQ | C52: 328.9 | D52: 344.95 | E52: 325.85 | F52: 330.5 | G52: 334.4 | H52: 327.45 | I52: 2758 | J52: 919536.6 | K52: 2019-04-10 | L52: 303 | M52: INE542B01011
A53: AKSHOPTFBR | B53: EQ | C53: 18.5 | D53: 18.6 | E53: 18.25 | F53: 18.3 | G53: 18.35 | H53: 18.4 | I53: 307533 | J53: 5657337.65 | K53: 2019-04-10 | L53: 886 | M53: INE523B01011
A54: AKZOINDIA | B54: EQ | C54: 1770.5 | D54: 1813.7 | E54: 1770.5 | F54: 1780.6 | G54: 1776 | H54: 1796.85 | I54: 1134 | J54: 2026626.6 | K54: 2019-04-10 | L54: 241 | M54: INE133A01011
A55: ALANKIT | B55: EQ | C55: 30.65 | D55: 31.8 | E55: 30.65 | F55: 31.1 | G55: 31.3 | H55: 31.1 | I55: 554977 | J55: 17334292.2 | K55: 2019-04-10 | L55: 6174 | M55: INE914E01040
A56: ALBERTDAVD | B56: EQ | C56: 411.45 | D56: 419.6 | E56: 407.1 | F56: 415.1 | G56: 416.6 | H56: 407.9 | I56: 2825 | J56: 1172013.95 | K56: 2019-04-10 | L56: 212 | M56: INE155C01010
A57: ALBK | B57: EQ | C57: 53.2 | D57: 54 | E57: 52.85 | F57: 53.25 | G57: 53.3 | H57: 53.25 | I57: 5051753 | J57: 269396650 | K57: 2019-04-10 | L57: 11394 | M57: INE428A01015
A58: ALCHEM | B58: BE | C58: 2 | D58: 2 | E58: 1.9 | F58: 1.95 | G58: 2 | H58: 1.95 | I58: 4463 | J58: 8785.4 | K58: 2019-04-10 | L58: 12 | M58: INE964B01033
A59: ALEMBICLTD | B59: EQ | C59: 43.05 | D59: 43.45 | E59: 42.7 | F59: 42.8 | G59: 42.7 | H59: 43 | I59: 62913 | J59: 2709130.85 | K59: 2019-04-10 | L59: 456 | M59: INE426A01027
A60: ALICON | B60: EQ | C60: 597.8 | D60: 597.8 | E60: 577.5 | F60: 586.35 | G60: 586 | H60: 590.85 | I60: 852 | J60: 497323.7 | K60: 2019-04-10 | L60: 131 | M60: INE062D01024
A61: ALKALI | B61: EQ | C61: 42.2 | D61: 44.45 | E61: 42.2 | F61: 42.55 | G61: 43 | H61: 43.2 | I61: 4968 | J61: 214316.2 | K61: 2019-04-10 | L61: 143 | M61: INE773I01017
A62: ALKEM | B62: EQ | C62: 1734.5 | D62: 1762.35 | E62: 1730 | F62: 1742.2 | G62: 1736 | H62: 1734.5 | I62: 47515 | J62: 82934954.4 | K62: 2019-04-10 | L62: 3684 | M62: INE540L01014
A63: ALKYLAMINE | B63: EQ | C63: 836.6 | D63: 842.95 | E63: 825.1 | F63: 827.15 | G63: 830 | H63: 835.9 | I63: 1307 | J63: 1088224.4 | K63: 2019-04-10 | L63: 166 | M63: INE150B01021
A64: ALLCARGO | B64: EQ | C64: 111.75 | D64: 115.45 | E64: 111.75 | F64: 114.55 | G64: 114.7 | H64: 111.65 | I64: 257130 | J64: 29309872.5 | K64: 2019-04-10 | L64: 4139 | M64: INE418H01029
A65: ALLSEC | B65: BE | C65: 285.6 | D65: 290 | E65: 285 | F65: 287.6 | G65: 290 | H65: 285.6 | I65: 31966 | J65: 9211490.7 | K65: 2019-04-10 | L65: 162 | M65: INE835G01018
A66: ALMONDZ | B66: EQ | C66: 21.7 | D66: 22.4 | E66: 21.55 | F66: 22.4 | G66: 22.4 | H66: 22.15 | I66: 230 | J66: 5019 | K66: 2019-04-10 | L66: 10 | M66: INE326B01027
A67: ALOKTEXT | B67: BE | C67: 4.2 | D67: 4.6 | E67: 4.2 | F67: 4.6 | G67: 4.6 | H67: 4.4 | I67: 2869713 | J67: 12883753.5 | K67: 2019-04-10 | L67: 1851 | M67: INE270A01011
A68: ALPA | B68: EQ | C68: 26.6 | D68: 27.05 | E68: 26.55 | F68: 26.65 | G68: 26.6 | H68: 26.75 | I68: 5065 | J68: 135045.85 | K68: 2019-04-10 | L68: 58 | M68: INE385I01010
A69: ALPHAGEO | B69: EQ | C69: 484 | D69: 495.5 | E69: 482.25 | F69: 484.75 | G69: 484.9 | H69: 487.1 | I69: 3848 | J69: 1872746.2 | K69: 2019-04-10 | L69: 435 | M69: INE137C01018
A70: ALPSINDUS | B70: BE | C70: 2.25 | D70: 2.25 | E70: 2.25 | F70: 2.25 | G70: 2.25 | H70: 2.35 | I70: 9 | J70: 20.25 | K70: 2019-04-10 | L70: 1 | M70: INE093B01015
A71: AMARAJABAT | B71: EQ | C71: 670 | D71: 689.5 | E71: 666.1 | F71: 684.55 | G71: 684.5 | H71: 675.4 | I71: 866695 | J71: 588777554.5 | K71: 2019-04-10 | L71: 20612 | M71: INE885A01032
A72: AMBER | B72: EQ | C72: 837.9 | D72: 838.5 | E72: 828.05 | F72: 834.75 | G72: 830 | H72: 828.25 | I72: 108037 | J72: 90189765.5 | K72: 2019-04-10 | L72: 1886 | M72: INE371P01015
A73: AMBIKCO | B73: EQ | C73: 1129.9 | D73: 1130 | E73: 1122.05 | F73: 1128.65 | G73: 1122.05 | H73: 1128.25 | I73: 761 | J73: 859147.85 | K73: 2019-04-10 | L73: 104 | M73: INE540G01014
A74: AMBUJACEM | B74: EQ | C74: 226.5 | D74: 227.65 | E74: 223.05 | F74: 223.9 | G74: 223.85 | H74: 227.15 | I74: 1489964 | J74: 335045150.1 | K74: 2019-04-10 | L74: 19867 | M74: INE079A01024
A75: AMDIND | B75: EQ | C75: 21.5 | D75: 21.75 | E75: 21.05 | F75: 21.5 | G75: 21.6 | H75: 21.65 | I75: 7670 | J75: 163614.2 | K75: 2019-04-10 | L75: 43 | M75: INE005I01014
A76: AMJLAND | B76: EQ | C76: 19.4 | D76: 19.45 | E76: 19 | F76: 19.25 | G76: 19.15 | H76: 19.65 | I76: 3206 | J76: 61556.5 | K76: 2019-04-10 | L76: 46 | M76: INE606A01024
A77: AMRUTANJAN | B77: EQ | C77: 311 | D77: 316.85 | E77: 305.05 | F77: 305.75 | G77: 306.35 | H77: 310.55 | I77: 24485 | J77: 7610567.5 | K77: 2019-04-10 | L77: 1078 | M77: INE098F01031
A78: ANANTRAJ | B78: EQ | C78: 33.5 | D78: 34.6 | E78: 33.4 | F78: 34.1 | G78: 34.05 | H78: 33.5 | I78: 581210 | J78: 19804988.25 | K78: 2019-04-10 | L78: 1603 | M78: INE242C01024
A79: ANDHRABANK | B79: EQ | C79: 29.55 | D79: 29.75 | E79: 29.1 | F79: 29.25 | G79: 29.2 | H79: 29.55 | I79: 929497 | J79: 27313539.85 | K79: 2019-04-10 | L79: 2648 | M79: INE434A01013
A80: ANDHRACEMT | B80: BE | C80: 4.7 | D80: 4.7 | E80: 4.4 | F80: 4.45 | G80: 4.45 | H80: 4.6 | I80: 78436 | J80: 355914.8 | K80: 2019-04-10 | L80: 155 | M80: INE666E01012
A81: ANDHRSUGAR | B81: EQ | C81: 356 | D81: 357.05 | E81: 350.2 | F81: 351.15 | G81: 351 | H81: 355.1 | I81: 4354 | J81: 1538886.1 | K81: 2019-04-10 | L81: 271 | M81: INE715B01013
A82: ANIKINDS | B82: EQ | C82: 15 | D82: 15.35 | E82: 14.7 | F82: 15.35 | G82: 15.35 | H82: 15 | I82: 1835 | J82: 27820.25 | K82: 2019-04-10 | L82: 26 | M82: INE087B01017
A83: ANKITMETAL | B83: BE | C83: 0.5 | D83: 0.55 | E83: 0.5 | F83: 0.55 | G83: 0.55 | H83: 0.5 | I83: 48654 | J83: 26223 | K83: 2019-04-10 | L83: 27 | M83: INE106I01010
A84: ANSALAPI | B84: EQ | C84: 11.2 | D84: 11.5 | E84: 11 | F84: 11.15 | G84: 11.15 | H84: 11.2 | I84: 82757 | J84: 934349.85 | K84: 2019-04-10 | L84: 256 | M84: INE436A01026
A85: ANSALHSG | B85: EQ | C85: 12.25 | D85: 13.05 | E85: 12.25 | F85: 12.45 | G85: 12.5 | H85: 12.45 | I85: 82025 | J85: 1033411.2 | K85: 2019-04-10 | L85: 329 | M85: INE880B01015
A86: ANTGRAPHIC | B86: BE | C86: 0.55 | D86: 0.6 | E86: 0.5 | F86: 0.6 | G86: 0.6 | H86: 0.55 | I86: 150634 | J86: 79596.55 | K86: 2019-04-10 | L86: 42 | M86: INE414B01021
A87: ANUP | B87: EQ | C87: 515 | D87: 519.5 | E87: 506.7 | F87: 507.9 | G87: 508.05 | H87: 515.1 | I87: 15428 | J87: 7889444.5 | K87: 2019-04-10 | L87: 873 | M87: INE294Z01018
A88: APARINDS | B88: EQ | C88: 678.5 | D88: 683.95 | E88: 678.1 | F88: 681.05 | G88: 679.25 | H88: 677.05 | I88: 3389 | J88: 2304946.8 | K88: 2019-04-10 | L88: 131 | M88: INE372A01015
A89: APCL | B89: EQ | C89: 129.9 | D89: 130 | E89: 127.6 | F89: 130 | G89: 130 | H89: 130.1 | I89: 472 | J89: 61046.75 | K89: 2019-04-10 | L89: 30 | M89: INE071F01012
A90: APCOTEXIND | B90: EQ | C90: 537 | D90: 537 | E90: 530 | F90: 532.65 | G90: 532 | H90: 536.4 | I90: 3022 | J90: 1609840.65 | K90: 2019-04-10 | L90: 208 | M90: INE116A01024
A91: APEX | B91: EQ | C91: 333.45 | D91: 336.05 | E91: 331 | F91: 332.85 | G91: 333 | H91: 333.7 | I91: 38302 | J91: 12751368.5 | K91: 2019-04-10 | L91: 1228 | M91: INE346W01013
A92: APLAPOLLO | B92: EQ | C92: 1489.9 | D92: 1510 | E92: 1470 | F92: 1483.9 | G92: 1479.95 | H92: 1498.05 | I92: 40842 | J92: 61188468.6 | K92: 2019-04-10 | L92: 2218 | M92: INE702C01019
A93: APLLTD | B93: EQ | C93: 539.9 | D93: 542.5 | E93: 535.2 | F93: 537.6 | G93: 535.25 | H93: 539.3 | I93: 5999 | J93: 3230810.8 | K93: 2019-04-10 | L93: 576 | M93: INE901L01018
A94: APOLLO | B94: EQ | C94: 126.25 | D94: 148.9 | E94: 126.25 | F94: 141.4 | G94: 142.35 | H94: 128.85 | I94: 400703 | J94: 57513230.6 | K94: 2019-04-10 | L94: 7834 | M94: INE713T01010
A95: APOLLOHOSP | B95: EQ | C95: 1253.2 | D95: 1269.75 | E95: 1240.3 | F95: 1246.25 | G95: 1244 | H95: 1259.55 | I95: 251194 | J95: 314918134.2 | K95: 2019-04-10 | L95: 16975 | M95: INE437A01024
A96: APOLLOTYRE | B96: EQ | C96: 216.5 | D96: 219.25 | E96: 215.5 | F96: 216.1 | G96: 215.6 | H96: 216 | I96: 1582070 | J96: 343062375.5 | K96: 2019-04-10 | L96: 24054 | M96: INE438A01022
A97: APOLSINHOT | B97: EQ | C97: 872.95 | D97: 872.95 | E97: 850 | F97: 859.65 | G97: 859.6 | H97: 851.7 | I97: 257 | J97: 219750.65 | K97: 2019-04-10 | L97: 39 | M97: INE451F01024
A98: APTECHT | B98: EQ | C98: 177.45 | D98: 178.75 | E98: 174.2 | F98: 175 | G98: 175.45 | H98: 177.45 | I98: 113617 | J98: 20009037.05 | K98: 2019-04-10 | L98: 1779 | M98: INE266F01018
A99: ARCHIDPLY | B99: EQ | C99: 38.95 | D99: 39.5 | E99: 38.6 | F99: 38.75 | G99: 38.8 | H99: 39.25 | I99: 18665 | J99: 725368.6 | K99: 2019-04-10 | L99: 158 | M99: INE877I01016
A100: ARCHIES | B100: EQ | C100: 24.25 | D100: 24.5 | E100: 24.05 | F100: 24.2 | G100: 24.05 | H100: 24.25 | I100: 22167 | J100: 537860.15 | K100: 2019-04-10 | L100: 295 | M100: INE731A01020
A101: ARCOTECH | B101: BE | C101: 5.45 | D101: 5.75 | E101: 5.45 | F101: 5.75 | G101: 5.75 | H101: 5.5 | I101: 50336 | J101: 286487.2 | K101: 2019-04-10 | L101: 67 | M101: INE574I01035
A102: ARIES | B102: EQ | C102: 87 | D102: 88.6 | E102: 86.9 | F102: 87.05 | G102: 87.5 | H102: 86.9 | I102: 14604 | J102: 1274931.4 | K102: 2019-04-10 | L102: 224 | M102: INE298I01015
A103: ARIHANT | B103: EQ | C103: 29.45 | D103: 29.45 | E103: 28.4 | F103: 28.9 | G103: 29.4 | H103: 28.1 | I103: 1501 | J103: 43379.45 | K103: 2019-04-10 | L103: 7 | M103: INE413D01011
A104: ARIHANTSUP | B104: BE | C104: 58.3 | D104: 58.3 | E104: 55 | F104: 55 | G104: 55 | H104: 56.95 | I104: 7204 | J104: 398806.75 | K104: 2019-04-10 | L104: 21 | M104: INE643K01018
A105: ARMANFIN | B105: EQ | C105: 370 | D105: 376.8 | E105: 362.65 | F105: 365.55 | G105: 367 | H105: 369.95 | I105: 2277 | J105: 839114.8 | K105: 2019-04-10 | L105: 55 | M105: INE109C01017
A106: AROGRANITE | B106: EQ | C106: 50.55 | D106: 50.6 | E106: 49 | F106: 49.65 | G106: 49.75 | H106: 49.4 | I106: 4280 | J106: 212297 | K106: 2019-04-10 | L106: 142 | M106: INE210C01013
A107: ARROWGREEN | B107: EQ | C107: 83.95 | D107: 83.95 | E107: 77 | F107: 78.55 | G107: 78.9 | H107: 76.9 | I107: 7872 | J107: 623372.6 | K107: 2019-04-10 | L107: 155 | M107: INE570D01018
A108: ARROWTEX | B108: EQ | C108: 17.2 | D108: 17.5 | E108: 17.2 | F108: 17.4 | G108: 17.5 | H108: 17.2 | I108: 806 | J108: 13991.45 | K108: 2019-04-10 | L108: 19 | M108: INE933J01015
A109: ARSHIYA | B109: EQ | C109: 34.5 | D109: 35.3 | E109: 32.8 | F109: 33.7 | G109: 33.4 | H109: 34.4 | I109: 90604 | J109: 3062969.4 | K109: 2019-04-10 | L109: 697 | M109: INE968D01022
A110: ARSSINFRA | B110: EQ | C110: 55.5 | D110: 55.5 | E110: 52.25 | F110: 52.25 | G110: 52.25 | H110: 55 | I110: 49057 | J110: 2605082.9 | K110: 2019-04-10 | L110: 379 | M110: INE267I01010
A111: ARVIND | B111: EQ | C111: 87.85 | D111: 90.6 | E111: 87.8 | F111: 88.15 | G111: 87.9 | H111: 88.25 | I111: 2182593 | J111: 194471932.3 | K111: 2019-04-10 | L111: 9686 | M111: INE034A01011
A112: ARVINDFASN | B112: EQ | C112: 962.1 | D112: 977 | E112: 962 | F112: 969.9 | G112: 971 | H112: 968.55 | I112: 57945 | J112: 56073523.55 | K112: 2019-04-10 | L112: 5249 | M112: INE955V01021
A113: ARVSMART | B113: EQ | C113: 131.5 | D113: 131.95 | E113: 127.7 | F113: 128.35 | G113: 128.15 | H113: 129.85 | I113: 8245 | J113: 1069006.05 | K113: 2019-04-10 | L113: 257 | M113: INE034S01021
A114: ASAHIINDIA | B114: EQ | C114: 252.9 | D114: 252.9 | E114: 247 | F114: 250.15 | G114: 250.2 | H114: 251.4 | I114: 16247 | J114: 4065108.05 | K114: 2019-04-10 | L114: 378 | M114: INE439A01020
A115: ASAHISONG | B115: EQ | C115: 163.95 | D115: 165 | E115: 160.6 | F115: 160.95 | G115: 161 | H115: 162.95 | I115: 652 | J115: 105732.95 | K115: 2019-04-10 | L115: 48 | M115: INE228I01012
A116: ASAL | B116: EQ | C116: 54 | D116: 57 | E116: 54 | F116: 55.85 | G116: 56 | H116: 54.8 | I116: 4259 | J116: 237624.7 | K116: 2019-04-10 | L116: 63 | M116: INE900C01027
A117: ASHAPURMIN | B117: BE | C117: 28 | D117: 28.45 | E117: 27.35 | F117: 28.15 | G117: 28.45 | H117: 28 | I117: 24054 | J117: 676716.35 | K117: 2019-04-10 | L117: 81 | M117: INE348A01023
A118: ASHIANA | B118: EQ | C118: 119.55 | D118: 121.5 | E118: 118.75 | F118: 119.95 | G118: 120.25 | H118: 120.2 | I118: 17597 | J118: 2116154.65 | K118: 2019-04-10 | L118: 246 | M118: INE365D01021
A119: ASHIMASYN | B119: EQ | C119: 11.8 | D119: 12.25 | E119: 11.8 | F119: 11.8 | G119: 11.8 | H119: 12.15 | I119: 22433 | J119: 268336.45 | K119: 2019-04-10 | L119: 70 | M119: INE440A01010
A120: ASHOKA | B120: EQ | C120: 130.5 | D120: 132.5 | E120: 129 | F120: 129.35 | G120: 129.25 | H120: 131.4 | I120: 92150 | J120: 12031942.85 | K120: 2019-04-10 | L120: 1656 | M120: INE442H01029
A121: ASHOKLEY | B121: EQ | C121: 91.9 | D121: 92.3 | E121: 90.4 | F121: 91.55 | G121: 91.65 | H121: 91.7 | I121: 28021324 | J121: 2556994986 | K121: 2019-04-10 | L121: 76280 | M121: INE208A01029
A122: ASIANHOTNR | B122: EQ | C122: 136.85 | D122: 136.85 | E122: 133 | F122: 134.95 | G122: 135.95 | H122: 134.6 | I122: 523 | J122: 69919.75 | K122: 2019-04-10 | L122: 31 | M122: INE363A01022
A123: ASIANPAINT | B123: EQ | C123: 1449.8 | D123: 1451 | E123: 1405.35 | F123: 1409.85 | G123: 1409.7 | H123: 1444.85 | I123: 2608319 | J123: 3714086777 | K123: 2019-04-10 | L123: 98948 | M123: INE021A01026
A124: ASIANTILES | B124: EQ | C124: 225 | D124: 227 | E124: 218.45 | F124: 221.4 | G124: 220.15 | H124: 225.2 | I124: 47026 | J124: 10431843.95 | K124: 2019-04-10 | L124: 1065 | M124: INE022I01019
A125: ASPINWALL | B125: EQ | C125: 170 | D125: 170 | E125: 164.65 | F125: 165.05 | G125: 165 | H125: 168.25 | I125: 5733 | J125: 959717.4 | K125: 2019-04-10 | L125: 36 | M125: INE991I01015
A126: ASSAMCO | B126: BE | C126: 2.1 | D126: 2.15 | E126: 2.05 | F126: 2.15 | G126: 2.15 | H126: 2.15 | I126: 50144 | J126: 104566.6 | K126: 2019-04-10 | L126: 41 | M126: INE442A01024
A127: ASTEC | B127: EQ | C127: 515 | D127: 517.7 | E127: 507.2 | F127: 508.35 | G127: 507.2 | H127: 513.45 | I127: 21481 | J127: 10969954.9 | K127: 2019-04-10 | L127: 809 | M127: INE563J01010
A128: ASTERDM | B128: EQ | C128: 152.65 | D128: 155.35 | E128: 152 | F128: 154.55 | G128: 154.65 | H128: 152.85 | I128: 28126 | J128: 4322497.5 | K128: 2019-04-10 | L128: 979 | M128: INE914M01019
A129: ASTRAL | B129: EQ | C129: 1200 | D129: 1202.35 | E129: 1186.65 | F129: 1192.85 | G129: 1188 | H129: 1199.15 | I129: 11788 | J129: 14095134.65 | K129: 2019-04-10 | L129: 853 | M129: INE006I01046
A130: ASTRAMICRO | B130: EQ | C130: 97.65 | D130: 102.7 | E130: 96.55 | F130: 99.4 | G130: 98.85 | H130: 97.8 | I130: 365683 | J130: 36509503.65 | K130: 2019-04-10 | L130: 2957 | M130: INE386C01029
A131: ASTRAZEN | B131: EQ | C131: 1962 | D131: 2015 | E131: 1950 | F131: 2011.1 | G131: 2015 | H131: 1960.05 | I131: 10683 | J131: 21306769.25 | K131: 2019-04-10 | L131: 1641 | M131: INE203A01020
A132: ASTRON | B132: EQ | C132: 101.5 | D132: 103.5 | E132: 99.2 | F132: 100.35 | G132: 100.6 | H132: 102.1 | I132: 259160 | J132: 26477788.85 | K132: 2019-04-10 | L132: 3729 | M132: INE646X01014
A133: ATFL | B133: EQ | C133: 580.05 | D133: 583.4 | E133: 579.05 | F133: 580.1 | G133: 579.05 | H133: 582.6 | I133: 3353 | J133: 1945073.6 | K133: 2019-04-10 | L133: 115 | M133: INE209A01019
A134: ATLANTA | B134: EQ | C134: 19.1 | D134: 19.5 | E134: 18.9 | F134: 19.05 | G134: 19.15 | H134: 19.25 | I134: 12536 | J134: 239521.4 | K134: 2019-04-10 | L134: 169 | M134: INE285H01022
A135: ATLASCYCLE | B135: BE | C135: 74 | D135: 76.4 | E135: 73.25 | F135: 74.15 | G135: 74.4 | H135: 74.65 | I135: 1688 | J135: 124630.2 | K135: 2019-04-10 | L135: 45 | M135: INE446A01025
A136: ATNINTER | B136: BE | C136: 0.05 | D136: 0.05 | E136: 0.05 | F136: 0.05 | G136: 0.05 | H136: 0.05 | I136: 450 | J136: 22.5 | K136: 2019-04-10 | L136: 2 | M136: INE803A01027
A137: ATUL | B137: EQ | C137: 3519.95 | D137: 3546 | E137: 3479.95 | F137: 3534.05 | G137: 3525 | H137: 3511.15 | I137: 7087 | J137: 24813020.25 | K137: 2019-04-10 | L137: 1521 | M137: INE100A01010
A138: ATULAUTO | B138: EQ | C138: 339.65 | D138: 344 | E138: 333.55 | F138: 335.8 | G138: 333.55 | H138: 336.8 | I138: 7103 | J138: 2406569.85 | K138: 2019-04-10 | L138: 522 | M138: INE951D01028
A139: AUBANK | B139: EQ | C139: 585.4 | D139: 593.9 | E139: 583.5 | F139: 585.55 | G139: 587 | H139: 582.85 | I139: 215777 | J139: 126615759.2 | K139: 2019-04-10 | L139: 5190 | M139: INE949L01017
A140: AURIONPRO | B140: EQ | C140: 146.2 | D140: 147.7 | E140: 144.45 | F140: 146.55 | G140: 146 | H140: 146 | I140: 27863 | J140: 4076730.55 | K140: 2019-04-10 | L140: 397 | M140: INE132H01018
A141: AUROPHARMA | B141: EQ | C141: 782 | D141: 801.45 | E141: 780.25 | F141: 790.05 | G141: 789.75 | H141: 785.95 | I141: 2341755 | J141: 1851592366 | K141: 2019-04-10 | L141: 57227 | M141: INE406A01037
A142: AUSOMENT | B142: EQ | C142: 38 | D142: 38.45 | E142: 37.9 | F142: 37.95 | G142: 37.9 | H142: 38 | I142: 1336 | J142: 50754.75 | K142: 2019-04-10 | L142: 23 | M142: INE218C01016
A143: AUTOAXLES | B143: EQ | C143: 1215.7 | D143: 1222.45 | E143: 1206 | F143: 1216.95 | G143: 1214.25 | H143: 1217.7 | I143: 2484 | J143: 3020902.15 | K143: 2019-04-10 | L143: 289 | M143: INE449A01011
A144: AUTOIND | B144: EQ | C144: 49.7 | D144: 50.9 | E144: 49.6 | F144: 50.65 | G144: 50.8 | H144: 49.7 | I144: 11520 | J144: 578779.75 | K144: 2019-04-10 | L144: 188 | M144: INE718H01014
A145: AUTOLITIND | B145: EQ | C145: 38.1 | D145: 38.3 | E145: 36.45 | F145: 37.6 | G145: 37.2 | H145: 37.65 | I145: 3142 | J145: 117206.65 | K145: 2019-04-10 | L145: 48 | M145: INE448A01013
A146: AVADHSUGAR | B146: EQ | C146: 440.45 | D146: 450 | E146: 439.25 | F146: 440.55 | G146: 441 | H146: 439.55 | I146: 31868 | J146: 14149176.95 | K146: 2019-04-10 | L146: 1169 | M146: INE349W01017
A147: AVANTIFEED | B147: EQ | C147: 396.3 | D147: 396.45 | E147: 392.55 | F147: 393.55 | G147: 393.5 | H147: 396.7 | I147: 208008 | J147: 82006373.95 | K147: 2019-04-10 | L147: 7248 | M147: INE871C01038
A148: AVTNPL | B148: EQ | C148: 26.05 | D148: 26.5 | E148: 25.7 | F148: 26.2 | G148: 26.1 | H148: 25.85 | I148: 11579 | J148: 301674.5 | K148: 2019-04-10 | L148: 142 | M148: INE488D01021
A149: AXISBANK | B149: EQ | C149: 761.25 | D149: 767.9 | E149: 758 | F149: 760.85 | G149: 760.5 | H149: 763.4 | I149: 5933250 | J149: 4525937366 | K149: 2019-04-10 | L149: 97354 | M149: INE238A01034
A150: AXISCADES | B150: EQ | C150: 62.4 | D150: 62.4 | E150: 59 | F150: 60.1 | G150: 59.9 | H150: 61.6 | I150: 33910 | J150: 2061659.3 | K150: 2019-04-10 | L150: 592 | M150: INE555B01013
A151: AXISGOLD | B151: EQ | C151: 2808.7 | D151: 2816.9 | E151: 2804 | F151: 2806.95 | G151: 2810 | H151: 2799.75 | I151: 71 | J151: 199642.95 | K151: 2019-04-10 | L151: 33 | M151: INF846K01347
A152: AXISNIFTY | B152: EQ | C152: 1197 | D152: 1197 | E152: 1180 | F152: 1180 | G152: 1180 | H152: 1196.91 | I152: 136 | J152: 161437.92 | K152: 2019-04-10 | L152: 10 | M152: INF846K01ZL0
A153: AYMSYNTEX | B153: EQ | C153: 35.05 | D153: 36.5 | E153: 35 | F153: 35.65 | G153: 35.25 | H153: 35 | I153: 5101 | J153: 181238.6 | K153: 2019-04-10 | L153: 60 | M153: INE193B01039
A154: BAFNAPHARM | B154: EQ | C154: 9.6 | D154: 9.8 | E154: 9.45 | F154: 9.7 | G154: 9.6 | H154: 9.7 | I154: 8355 | J154: 80573.8 | K154: 2019-04-10 | L154: 77 | M154: INE878I01014
A155: BAGFILMS | B155: EQ | C155: 4.95 | D155: 5.1 | E155: 4.25 | F155: 4.85 | G155: 4.95 | H155: 4.95 | I155: 174822 | J155: 839943.8 | K155: 2019-04-10 | L155: 316 | M155: INE116D01028
A156: BAJAJ-AUTO | B156: EQ | C156: 2917.95 | D156: 2952 | E156: 2910.35 | F156: 2942.9 | G156: 2941.25 | H156: 2924.8 | I156: 530788 | J156: 1559200817 | K156: 2019-04-10 | L156: 25735 | M156: INE917I01010
A157: BAJAJCON | B157: EQ | C157: 320 | D157: 323 | E157: 315.5 | F157: 318.2 | G157: 319 | H157: 320.6 | I157: 171775 | J157: 54720550.95 | K157: 2019-04-10 | L157: 6739 | M157: INE933K01021
A158: BAJAJELEC | B158: EQ | C158: 541 | D158: 553.95 | E158: 541 | F158: 550.05 | G158: 549.95 | H158: 541 | I158: 223876 | J158: 123032204.3 | K158: 2019-04-10 | L158: 8371 | M158: INE193E01025
A159: BAJAJFINSV | B159: EQ | C159: 7373.9 | D159: 7445 | E159: 7345 | F159: 7423.3 | G159: 7423 | H159: 7379.2 | I159: 165487 | J159: 1225194614 | K159: 2019-04-10 | L159: 19788 | M159: INE918I01018
A160: BAJAJHIND | B160: EQ | C160: 9.25 | D160: 9.55 | E160: 9.05 | F160: 9.15 | G160: 9.2 | H160: 9.15 | I160: 1845465 | J160: 17152255.85 | K160: 2019-04-10 | L160: 2104 | M160: INE306A01021
A161: BAJAJHLDNG | B161: EQ | C161: 3314.65 | D161: 3347.95 | E161: 3275 | F161: 3304.75 | G161: 3310.65 | H161: 3284.45 | I161: 14305 | J161: 47429567.6 | K161: 2019-04-10 | L161: 2166 | M161: INE118A01012
A162: BAJFINANCE | B162: EQ | C162: 3011.1 | D162: 3037 | E162: 2986 | F162: 2998.35 | G162: 2997.45 | H162: 3008.7 | I162: 994899 | J162: 2994300477 | K162: 2019-04-10 | L162: 49654 | M162: INE296A01024
A163: BALAJITELE | B163: EQ | C163: 80.4 | D163: 80.8 | E163: 79.3 | F163: 79.55 | G163: 79.6 | H163: 80.4 | I163: 41815 | J163: 3346036.35 | K163: 2019-04-10 | L163: 604 | M163: INE794B01026
A164: BALAMINES | B164: EQ | C164: 486.15 | D164: 495.5 | E164: 480 | F164: 481.7 | G164: 484 | H164: 486.15 | I164: 19193 | J164: 9375689.8 | K164: 2019-04-10 | L164: 1493 | M164: INE050E01027
A165: BALAXI | B165: BE | C165: 55.9 | D165: 55.9 | E165: 55.9 | F165: 55.9 | G165: 55.9 | H165: 53.25 | I165: 3000 | J165: 167700 | K165: 2019-04-10 | L165: 8 | M165: INE618N01014
A166: BALKRISHNA | B166: EQ | C166: 41.8 | D166: 41.8 | E166: 39.5 | F166: 39.8 | G166: 40 | H166: 40.05 | I166: 6753 | J166: 271501.4 | K166: 2019-04-10 | L166: 98 | M166: INE875R01011
A167: BALKRISIND | B167: EQ | C167: 974.5 | D167: 983 | E167: 963.25 | F167: 966 | G167: 965 | H167: 973.55 | I167: 280925 | J167: 272441806.2 | K167: 2019-04-10 | L167: 5926 | M167: INE787D01026
A168: BALLARPUR | B168: EQ | C168: 2.9 | D168: 3.2 | E168: 2.9 | F168: 3 | G168: 3 | H168: 3.05 | I168: 3030383 | J168: 9039308.25 | K168: 2019-04-10 | L168: 1150 | M168: INE294A01037
A169: BALMLAWRIE | B169: EQ | C169: 183.9 | D169: 184.45 | E169: 181.7 | F169: 181.85 | G169: 181.9 | H169: 182.15 | I169: 23878 | J169: 4354108.45 | K169: 2019-04-10 | L169: 896 | M169: INE164A01016
A170: BALPHARMA | B170: EQ | C170: 71.5 | D170: 72.5 | E170: 70.6 | F170: 70.95 | G170: 71 | H170: 71.75 | I170: 10281 | J170: 734967.6 | K170: 2019-04-10 | L170: 199 | M170: INE083D01012
A171: BALRAMCHIN | B171: EQ | C171: 135 | D171: 137.7 | E171: 134.8 | F171: 136.1 | G171: 136.6 | H171: 134.35 | I171: 2121624 | J171: 289511383.9 | K171: 2019-04-10 | L171: 17050 | M171: INE119A01028
A172: BANARBEADS | B172: EQ | C172: 45.85 | D172: 46.5 | E172: 44.05 | F172: 45.2 | G172: 45.5 | H172: 44.75 | I172: 1001 | J172: 45493.4 | K172: 2019-04-10 | L172: 42 | M172: INE655B01011
A173: BANARISUG | B173: EQ | C173: 1560 | D173: 1560 | E173: 1511 | F173: 1513 | G173: 1511 | H173: 1525.05 | I173: 80 | J173: 121701.2 | K173: 2019-04-10 | L173: 33 | M173: INE459A01010
A174: BANCOINDIA | B174: EQ | C174: 151.8 | D174: 152.25 | E174: 150 | F174: 150.6 | G174: 150.8 | H174: 152.1 | I174: 22680 | J174: 3421749.2 | K174: 2019-04-10 | L174: 691 | M174: INE213C01025
A175: BANDHANBNK | B175: EQ | C175: 551.85 | D175: 556.6 | E175: 542.05 | F175: 549.65 | G175: 544.45 | H175: 552.3 | I175: 736805 | J175: 404909049.4 | K175: 2019-04-10 | L175: 11201 | M175: INE545U01014
A176: BANG | B176: EQ | C176: 38.45 | D176: 38.5 | E176: 37.2 | F176: 37.5 | G176: 37.7 | H176: 37.3 | I176: 3469 | J176: 131514.8 | K176: 2019-04-10 | L176: 38 | M176: INE863I01016
A177: BANKBARODA | B177: EQ | C177: 131.95 | D177: 132.7 | E177: 129.1 | F177: 129.7 | G177: 129.45 | H177: 132.05 | I177: 15717985 | J177: 2060230756 | K177: 2019-04-10 | L177: 43811 | M177: INE028A01039
A178: BANKBEES | B178: EQ | C178: 3076.5 | D178: 3076.5 | E178: 3027.69 | F178: 3040.62 | G178: 3038.42 | H178: 3075.31 | I178: 50574 | J178: 154039436.1 | K178: 2019-04-10 | L178: 591 | M178: INF732E01078
A179: BANKINDIA | B179: EQ | C179: 101.9 | D179: 103.5 | E179: 100.2 | F179: 100.5 | G179: 100.5 | H179: 102.25 | I179: 8176340 | J179: 831807995.6 | K179: 2019-04-10 | L179: 24416 | M179: INE084A01016
A180: BANSWRAS | B180: EQ | C180: 69.9 | D180: 69.9 | E180: 65.6 | F180: 68.55 | G180: 69 | H180: 67.8 | I180: 864 | J180: 57886.35 | K180: 2019-04-10 | L180: 43 | M180: INE629D01012
A181: BARTRONICS | B181: EQ | C181: 6.55 | D181: 6.65 | E181: 6.5 | F181: 6.5 | G181: 6.55 | H181: 6.6 | I181: 28233 | J181: 184952.05 | K181: 2019-04-10 | L181: 81 | M181: INE855F01034
A182: BASF | B182: EQ | C182: 1392.1 | D182: 1415.6 | E182: 1391 | F182: 1398.9 | G182: 1400 | H182: 1395.05 | I182: 10114 | J182: 14183899.5 | K182: 2019-04-10 | L182: 788 | M182: INE373A01013
A183: BASML | B183: EQ | C183: 187 | D183: 190.05 | E183: 187 | F183: 187 | G183: 187 | H183: 191.1 | I183: 507 | J183: 96299.1 | K183: 2019-04-10 | L183: 8 | M183: INE186H01014
A184: BATAINDIA | B184: EQ | C184: 1404 | D184: 1407.45 | E184: 1389.35 | F184: 1392.6 | G184: 1393 | H184: 1399.9 | I184: 381272 | J184: 532673380.5 | K184: 2019-04-10 | L184: 18905 | M184: INE176A01028
A185: BAYERCROP | B185: EQ | C185: 4253.25 | D185: 4270 | E185: 4213 | F185: 4247.15 | G185: 4216.1 | H185: 4296.15 | I185: 4577 | J185: 19440160.6 | K185: 2019-04-10 | L185: 1900 | M185: INE462A01022
A186: BBL | B186: EQ | C186: 1084.3 | D186: 1088 | E186: 1075 | F186: 1077.55 | G186: 1075.05 | H186: 1081.5 | I186: 2362 | J186: 2554162.75 | K186: 2019-04-10 | L186: 186 | M186: INE464A01028
A187: BBTC | B187: EQ | C187: 1284.8 | D187: 1294.75 | E187: 1277 | F187: 1283.7 | G187: 1285 | H187: 1285.55 | I187: 26451 | J187: 33962425.95 | K187: 2019-04-10 | L187: 2440 | M187: INE050A01025
A188: BCG | B188: BE | C188: 4.1 | D188: 4.2 | E188: 4 | F188: 4.15 | G188: 4.2 | H188: 4 | I188: 850557 | J188: 3547478.45 | K188: 2019-04-10 | L188: 378 | M188: INE425B01027
A189: BDL | B189: EQ | C189: 294 | D189: 294.65 | E189: 291.2 | F189: 291.85 | G189: 291.25 | H189: 294.15 | I189: 16536 | J189: 4836807.55 | K189: 2019-04-10 | L189: 981 | M189: INE171Z01018
A190: BEARDSELL | B190: EQ | C190: 15.5 | D190: 15.5 | E190: 15.05 | F190: 15.5 | G190: 15.5 | H190: 15.45 | I190: 944 | J190: 14527.5 | K190: 2019-04-10 | L190: 9 | M190: INE520H01022
A191: BEDMUTHA | B191: EQ | C191: 17.1 | D191: 18 | E191: 16.4 | F191: 16.65 | G191: 16.65 | H191: 17.5 | I191: 12462 | J191: 208995.9 | K191: 2019-04-10 | L191: 83 | M191: INE844K01012
A192: BEL | B192: EQ | C192: 95.55 | D192: 96.8 | E192: 94.9 | F192: 95.55 | G192: 95.6 | H192: 95.8 | I192: 7249763 | J192: 694143463.4 | K192: 2019-04-10 | L192: 30374 | M192: INE263A01024
A193: BEML | B193: EQ | C193: 965.2 | D193: 981.7 | E193: 962.2 | F193: 972.7 | G193: 972.5 | H193: 968.55 | I193: 1235557 | J193: 1204128615 | K193: 2019-04-10 | L193: 24159 | M193: INE258A01016
A194: BEPL | B194: EQ | C194: 71 | D194: 76 | E194: 70.95 | F194: 73.9 | G194: 74.5 | H194: 71.55 | I194: 1157932 | J194: 85714959.2 | K194: 2019-04-10 | L194: 8239 | M194: INE922A01025
A195: BERGEPAINT | B195: EQ | C195: 323.1 | D195: 327 | E195: 319 | F195: 321.3 | G195: 319.1 | H195: 325.95 | I195: 829256 | J195: 267602073.8 | K195: 2019-04-10 | L195: 9781 | M195: INE463A01038
A196: BFINVEST | B196: EQ | C196: 262.1 | D196: 272.2 | E196: 260.05 | F196: 260.9 | G196: 260.15 | H196: 263.4 | I196: 95834 | J196: 25328048.1 | K196: 2019-04-10 | L196: 2051 | M196: INE878K01010
A197: BFUTILITIE | B197: EQ | C197: 216.2 | D197: 219 | E197: 210.5 | F197: 212.25 | G197: 212.7 | H197: 217.25 | I197: 811080 | J197: 174466319.2 | K197: 2019-04-10 | L197: 13285 | M197: INE243D01012
A198: BGLOBAL | B198: BE | C198: 2.35 | D198: 2.45 | E198: 2.35 | F198: 2.45 | G198: 2.45 | H198: 2.35 | I198: 10452 | J198: 25595.6 | K198: 2019-04-10 | L198: 8 | M198: INE224M01013
A199: BGRENERGY | B199: EQ | C199: 61.55 | D199: 62.4 | E199: 60.6 | F199: 60.75 | G199: 60.95 | H199: 61.55 | I199: 71388 | J199: 4379438.8 | K199: 2019-04-10 | L199: 661 | M199: INE661I01014
A200: BHAGERIA | B200: EQ | C200: 278.15 | D200: 278.15 | E200: 271.1 | F200: 272.95 | G200: 272.2 | H200: 275.9 | I200: 2409 | J200: 657584.65 | K200: 2019-04-10 | L200: 206 | M200: INE354C01027
... 1441 more rows

Sheet Sheet1 (hidden)

Sheet Sheet3 (hidden)

Sheet Sheet4 (hidden)
